Workbook

Sheet Main
B10: 2018-07-04
B12: Sheet No. | C12: Template Name | D12: Summary
B13: 1 | C13: Future Intra | D13: For Intraday trading in F&O segment
B14: 2 | C14: Cash Intra | D14: For Intraday trading in cash market segment
B15: 3 | C15: Mid-cap Intra | D15: For Intraday trading in Mid-cap stocks
B16: 4 | C16: Bulk Deals | D16: Reveals Bulk Deals carried on NSE & BSE
B17: 5 | C17: Call Tracker

Sheet Future Intra
M5: Back to Main Page
A6: FOR INTRA DAY TRADING | L6: =Main!B10 -> 2018-07-04
A9: Sr.no | B9: Sector | C9: Scrip | D9: CLOSE RATE | E9: Pivot Point | F9: Supports | I9: Resistances
B10: Sector | D10: Point | E10: Point | F10: S1 | G10: S2 | H10: S3 | I10: R1 | J10: R2 | K10: R3 | L10: HIGH | M10: LOW | N10: OI | O10: % Change in OI
A11: 1 | B11: Index | C11: BANKNIFTY | D11: 26254.95 | E11: 26254.88 | F11: 26165.27 | G11: 26075.58 | H11: 25985.97 | I11: 26344.57 | J11: 26434.18 | K11: 26523.87 | L11: 26344.5 | M11: 26165.2 | N11: 2162720 | O11: 5.35%
A12: 2 | B12: Index | C12: NIFTY | D12: 10723.95 | E12: 10695.82 | F12: 10658.53 | G12: 10593.12 | H12: 10555.83 | I12: 10761.23 | J12: 10798.52 | K12: 10863.93 | L12: 10733.1 | M12: 10630.4 | N12: 20898300 | O12: 3.00%
A13: 3 | B13: Index | C13: NIFTYCPSE | D13: 2439.95 | E13: 813.32 | F13: 1626.63 | G13: 813.32 | H13: 1626.63 | I13: 1626.63 | J13: 813.32 | K13: 1626.63 | L13: 0 | M13: 0 | N13: 0 | O13: 0.00%
A14: 4 | B14: Index | C14: NIFTYINFRA | D14: 3500.75 | E14: 1166.92 | F14: 2333.83 | G14: 1166.92 | H14: 2333.83 | I14: 2333.83 | J14: 1166.92 | K14: 2333.83 | L14: 0 | M14: 0 | N14: 0 | O14: 0.00%
A15: 5 | B15: Index | C15: NIFTYIT | D15: 14226.00 | E15: 14179.67 | F15: 14115.33 | G15: 14004.67 | H15: 13940.33 | I15: 14290.33 | J15: 14354.67 | K15: 14465.33 | L15: 14244 | M15: 14069 | N15: 41700 | O15: 1.34%
A16: 6 | B16: Index | C16: NIFTYMID50 | D16: 4812.00 | E16: 4831.33 | F16: 4792.67 | G16: 4773.33 | H16: 4734.67 | I16: 4850.67 | J16: 4889.33 | K16: 4908.67 | L16: 4870 | M16: 4812 | N16: 591690 | O16: 0.04%
A17: 7 | B17: Index | C17: NIFTYPSE | D17: 3893.55 | E17: 1297.85 | F17: 2595.70 | G17: 1297.85 | H17: 2595.70 | I17: 2595.70 | J17: 1297.85 | K17: 2595.70 | L17: 0 | M17: 0 | N17: 0 | O17: 0.00%
A18: 8 | B18: Cement | C18: ACC | D18: 1332.60 | E18: 1323.25 | F18: 1304.85 | G18: 1277.10 | H18: 1258.70 | I18: 1351.00 | J18: 1369.40 | K18: 1397.15 | L18: 1341.65 | M18: 1295.5 | N18: 1981200 | O18: 5.11%
A19: 9 | B19: Others | C19: ADANIENT | D19: 105.70 | E19: 105.07 | F19: 102.68 | G19: 99.67 | H19: 97.28 | I19: 108.08 | J19: 110.47 | K19: 113.48 | L19: 107.45 | M19: 102.05 | N19: 15700000 | O19: 1.76%
A20: 10 | B20: Others | C20: ADANIPORTS | D20: 364.95 | E20: 364.58 | F20: 361.82 | G20: 358.68 | H20: 355.92 | I20: 367.72 | J20: 370.48 | K20: 373.62 | L20: 367.35 | M20: 361.45 | N20: 8115000 | O20: -0.22%
A21: 11 | B21: Power | C21: ADANIPOWER | D21: 16.10 | E21: 15.90 | F21: 15.60 | G21: 15.10 | H21: 14.80 | I21: 16.40 | J21: 16.70 | K21: 17.20 | L21: 16.2 | M21: 15.4 | N21: 97400000 | O21: -1.42%
A22: 12 | B22: Pharma | C22: AJANTPHARM | D22: 1034.45 | E22: 1017.48 | F22: 994.97 | G22: 955.48 | H22: 932.97 | I22: 1056.97 | J22: 1079.48 | K22: 1118.97 | L22: 1040 | M22: 978 | N22: 920000 | O22: 6.48%
A23: 13 | B23: Banking | C23: ALBK | D23: 41.30 | E23: 41.27 | F23: 40.63 | G23: 39.97 | H23: 39.33 | I23: 41.93 | J23: 42.57 | K23: 43.23 | L23: 41.9 | M23: 40.6 | N23: 11946000 | O23: -1.72%
A24: 14 | B24: Automobile | C24: AMARAJABAT | D24: 756.60 | E24: 749.93 | F24: 740.82 | G24: 725.03 | H24: 715.92 | I24: 765.72 | J24: 774.83 | K24: 790.62 | L24: 759.05 | M24: 734.15 | N24: 1489600 | O24: 4.62%
A25: 15 | B25: Cement | C25: AMBUJACEM | D25: 201.80 | E25: 201.35 | F25: 199.10 | G25: 196.40 | H25: 194.15 | I25: 204.05 | J25: 206.30 | K25: 209.00 | L25: 203.6 | M25: 198.65 | N25: 13810000 | O25: 4.15%
A26: 16 | B26: Banking | C26: ANDHRABANK | D26: 32.40 | E26: 32.27 | F26: 31.68 | G26: 30.97 | H26: 30.38 | I26: 32.98 | J26: 33.57 | K26: 34.28 | L26: 32.85 | M26: 31.55 | N26: 22490000 | O26: 0.29%
A27: 17 | B27: Others | C27: APOLLOHOSP | D27: 1057.65 | E27: 1057.17 | F27: 1045.98 | G27: 1034.32 | H27: 1023.13 | I27: 1068.83 | J27: 1080.02 | K27: 1091.68 | L27: 1068.35 | M27: 1045.5 | N27: 766000 | O27: -1.16%
A28: 18 | B28: Automobile | C28: APOLLOTYRE | D28: 250.00 | E28: 250.75 | F28: 248.00 | G28: 246.00 | H28: 243.25 | I28: 252.75 | J28: 255.50 | K28: 257.50 | L28: 253.5 | M28: 248.75 | N28: 9843000 | O28: 4.56%
A29: 19 | B29: Textile | C29: ARVIND | D29: 391.65 | E29: 390.63 | F29: 387.02 | G29: 382.38 | H29: 378.77 | I29: 395.27 | J29: 398.88 | K29: 403.52 | L29: 394.25 | M29: 386 | N29: 4786000 | O29: -1.07%
A30: 20 | B30: Automobile | C30: ASHOKLEY | D30: 127.45 | E30: 125.95 | F30: 123.70 | G30: 119.95 | H30: 117.70 | I30: 129.70 | J30: 131.95 | K30: 135.70 | L30: 128.2 | M30: 122.2 | N30: 81032000 | O30: -0.90%
A31: 21 | B31: FMCG | C31: ASIANPAINT | D31: 1296.75 | E31: 1299.77 | F31: 1289.53 | G31: 1282.32 | H31: 1272.08 | I31: 1306.98 | J31: 1317.22 | K31: 1324.43 | L31: 1310 | M31: 1292.55 | N31: 5240400 | O31: 0.15%
A32: 22 | B32: Pharma | C32: AUROPHARMA | D32: 630.40 | E32: 622.53 | F32: 612.17 | G32: 593.93 | H32: 583.57 | I32: 640.77 | J32: 651.13 | K32: 669.37 | L32: 632.9 | M32: 604.3 | N32: 20691000 | O32: 2.58%
A33: 23 | B33: Banking | C33: AXISBANK | D33: 514.05 | E33: 515.93 | F33: 510.12 | G33: 506.18 | H33: 500.37 | I33: 519.87 | J33: 525.68 | K33: 529.62 | L33: 521.75 | M33: 512 | N33: 39697200 | O33: -1.20%
A34: 24 | B34: Automobile | C34: BAJAJ-AUTO | D34: 2818.70 | E34: 2809.30 | F34: 2788.60 | G34: 2758.50 | H34: 2737.80 | I34: 2839.40 | J34: 2860.10 | K34: 2890.20 | L34: 2830 | M34: 2779.2 | N34: 2981250 | O34: -0.96%
A35: 25 | B35: Others | C35: BAJAJFINSV | D35: 5922.65 | E35: 5877.62 | F35: 5821.28 | G35: 5719.92 | H35: 5663.58 | I35: 5978.98 | J35: 6035.32 | K35: 6136.68 | L35: 5933.95 | M35: 5776.25 | N35: 756625 | O35: 0.15%
A36: 26 | B36: Finance | C36: BAJFINANCE | D36: 2332.40 | E36: 2321.98 | F36: 2301.27 | G36: 2270.13 | H36: 2249.42 | I36: 2353.12 | J36: 2373.83 | K36: 2404.97 | L36: 2342.7 | M36: 2290.85 | N36: 5198000 | O36: 0.98%
A37: 27 | B37: Others | C37: BALKRISIND | D37: 1087.75 | E37: 1080.50 | F37: 1067.60 | G37: 1047.45 | H37: 1034.55 | I37: 1100.65 | J37: 1113.55 | K37: 1133.70 | L37: 1093.4 | M37: 1060.35 | N37: 1374400 | O37: 3.56%
A38: 28 | B38: Others | C38: BALRAMCHIN | D38: 63.10 | E38: 62.82 | F38: 61.93 | G38: 60.77 | H38: 59.88 | I38: 63.98 | J38: 64.87 | K38: 66.03 | L38: 63.7 | M38: 61.65 | N38: 14490000 | O38: -0.48%
A39: 29 | B39: Banking | C39: BANKBARODA | D39: 113.70 | E39: 113.62 | F39: 112.18 | G39: 110.67 | H39: 109.23 | I39: 115.13 | J39: 116.57 | K39: 118.08 | L39: 115.05 | M39: 112.1 | N39: 76300000 | O39: 0.67%
A40: 30 | B40: Banking | C40: BANKINDIA | D40: 87.40 | E40: 87.65 | F40: 86.10 | G40: 84.80 | H40: 83.25 | I40: 88.95 | J40: 90.50 | K40: 91.80 | L40: 89.2 | M40: 86.35 | N40: 27282000 | O40: 0.07%
A41: 31 | B41: FMCG | C41: BATAINDIA | D41: 837.65 | E41: 840.77 | F41: 828.63 | G41: 819.62 | H41: 807.48 | I41: 849.78 | J41: 861.92 | K41: 870.93 | L41: 852.9 | M41: 831.75 | N41: 3111900 | O41: 6.63%
A42: 32 | B42: Capital_Goods | C42: BEL | D42: 108.00 | E42: 107.12 | F42: 105.83 | G42: 103.67 | H42: 102.38 | I42: 109.28 | J42: 110.57 | K42: 112.73 | L42: 108.4 | M42: 104.95 | N42: 29229750 | O42: -1.48%
A43: 33 | B43: Infrastructure | C43: BEML | D43: 822.85 | E43: 818.80 | F43: 809.10 | G43: 795.35 | H43: 785.65 | I43: 832.55 | J43: 842.25 | K43: 856.00 | L43: 828.5 | M43: 805.05 | N43: 1769000 | O43: -2.86%
A44: 34 | B44: Others | C44: BERGEPAINT | D44: 286.00 | E44: 285.05 | F44: 282.20 | G44: 278.40 | H44: 275.55 | I44: 288.85 | J44: 291.70 | K44: 295.50 | L44: 287.9 | M44: 281.25 | N44: 1914000 | O44: -0.80%
A45: 35 | B45: Finance | C45: BHARATFIN | D45: 1183.40 | E45: 1178.67 | F45: 1172.33 | G45: 1161.27 | H45: 1154.93 | I45: 1189.73 | J45: 1196.07 | K45: 1207.13 | L45: 1185 | M45: 1167.6 | N45: 5515500 | O45: -1.94%
A46: 36 | B46: Automobile | C46: BHARATFORG | D46: 623.05 | E46: 620.50 | F46: 613.55 | G46: 604.05 | H46: 597.10 | I46: 630.00 | J46: 636.95 | K46: 646.45 | L46: 627.45 | M46: 611 | N46: 8875200 | O46: -0.83%
A47: 37 | B47: Telecom | C47: BHARTIARTL | D47: 371.85 | E47: 370.52 | F47: 366.58 | G47: 361.32 | H47: 357.38 | I47: 375.78 | J47: 379.72 | K47: 384.98 | L47: 374.45 | M47: 365.25 | N47: 46372600 | O47: -0.77%
A48: 38 | B48: Capital_Goods | C48: BHEL | D48: 70.50 | E48: 70.48 | F48: 69.72 | G48: 68.93 | H48: 68.17 | I48: 71.27 | J48: 72.03 | K48: 72.82 | L48: 71.25 | M48: 69.7 | N48: 48892500 | O48: 1.05%
A49: 39 | B49: Pharma | C49: BIOCON | D49: 631.30 | E49: 626.40 | F49: 618.30 | G49: 605.30 | H49: 597.20 | I49: 639.40 | J49: 647.50 | K49: 660.50 | L49: 634.5 | M49: 613.4 | N49: 9450000 | O49: 4.79%
A50: 40 | B50: Automobile | C50: BOSCHLTD | D50: 17602.10 | E50: 17583.47 | F50: 17418.58 | G50: 17235.07 | H50: 17070.18 | I50: 17766.98 | J50: 17931.87 | K50: 18115.38 | L50: 17748.35 | M50: 17399.95 | N50: 135780 | O50: -0.61%
A51: 41 | B51: Oil_Gas | C51: BPCL | D51: 372.90 | E51: 370.55 | F51: 365.35 | G51: 357.80 | H51: 352.60 | I51: 378.10 | J51: 383.30 | K51: 390.85 | L51: 375.75 | M51: 363 | N51: 11070000 | O51: -5.27%
A52: 42 | B52: FMCG | C52: BRITANNIA | D52: 6246.65 | E52: 6240.15 | F52: 6216.50 | G52: 6186.35 | H52: 6162.70 | I52: 6270.30 | J52: 6293.95 | K52: 6324.10 | L52: 6263.8 | M52: 6210 | N52: 754200 | O52: -1.18%
A53: 43 | B53: Pharma | C53: CADILAHC | D53: 389.20 | E53: 387.97 | F53: 383.48 | G53: 377.77 | H53: 373.28 | I53: 393.68 | J53: 398.17 | K53: 403.88 | L53: 392.45 | M53: 382.25 | N53: 7897600 | O53: 3.94%
A54: 44 | B54: Banking | C54: CANBK | D54: 246.35 | E54: 248.30 | F54: 243.30 | G54: 240.25 | H54: 235.25 | I54: 251.35 | J54: 256.35 | K54: 259.40 | L54: 253.3 | M54: 245.25 | N54: 13442000 | O54: 2.53%
A55: 45 | B55: Others | C55: CANFINHOME | D55: 343.05 | E55: 341.20 | F55: 336.85 | G55: 330.65 | H55: 326.30 | I55: 347.40 | J55: 351.75 | K55: 357.95 | L55: 345.55 | M55: 335 | N55: 3743750 | O55: -1.55%
A56: 46 | B56: Finance | C56: CAPF | D56: 520.80 | E56: 518.98 | F56: 512.82 | G56: 504.83 | H56: 498.67 | I56: 526.97 | J56: 533.13 | K56: 541.12 | L56: 525.15 | M56: 511 | N56: 8017600 | O56: -0.76%
A57: 47 | B57: Oil_Gas | C57: CASTROLIND | D57: 157.85 | E57: 157.78 | F57: 155.92 | G57: 153.98 | H57: 152.12 | I57: 159.72 | J57: 161.58 | K57: 163.52 | L57: 159.65 | M57: 155.85 | N57: 10057600 | O57: 1.76%
A58: 48 | B58: Automobile | C58: CEATLTD | D58: 1251.65 | E58: 1252.55 | F58: 1240.10 | G58: 1228.55 | H58: 1216.10 | I58: 1264.10 | J58: 1276.55 | K58: 1288.10 | L58: 1265 | M58: 1241 | N58: 1637650 | O58: 0.88%
A59: 49 | B59: Textile | C59: CENTURYTEX | D59: 871.00 | E59: 864.78 | F59: 854.82 | G59: 838.63 | H59: 828.67 | I59: 880.97 | J59: 890.93 | K59: 907.12 | L59: 874.75 | M59: 848.6 | N59: 6012050 | O59: -2.38%
A60: 50 | B60: Power | C60: CESC | D60: 896.35 | E60: 895.03 | F60: 885.27 | G60: 874.18 | H60: 864.42 | I60: 906.12 | J60: 915.88 | K60: 926.97 | L60: 904.8 | M60: 883.95 | N60: 6107200 | O60: 0.89%
A61: 51 | B61: Power | C61: CGPOWER | D61: 57.80 | E61: 57.92 | F61: 57.08 | G61: 56.37 | H61: 55.53 | I61: 58.63 | J61: 59.47 | K61: 60.18 | L61: 58.75 | M61: 57.2 | N61: 34428000 | O61: 1.77%
A62: 52 | B62: Others | C62: CHENNPETRO | D62: 286.05 | E62: 286.02 | F62: 282.03 | G62: 278.02 | H62: 274.03 | I62: 290.03 | J62: 294.02 | K62: 298.03 | L62: 290 | M62: 282 | N62: 2064000 | O62: -1.36%
A63: 53 | B63: Others | C63: CHOLAFIN | D63: 1518.30 | E63: 1510.40 | F63: 1495.95 | G63: 1473.60 | H63: 1459.15 | I63: 1532.75 | J63: 1547.20 | K63: 1569.55 | L63: 1524.85 | M63: 1488.05 | N63: 846500 | O63: -0.24%
A64: 54 | B64: Pharma | C64: CIPLA | D64: 642.35 | E64: 631.48 | F64: 618.37 | G64: 594.38 | H64: 581.27 | I64: 655.47 | J64: 668.58 | K64: 692.57 | L64: 644.6 | M64: 607.5 | N64: 8833000 | O64: 8.00%
A65: 55 | B65: Others | C65: COALINDIA | D65: 262.25 | E65: 262.05 | F65: 260.20 | G65: 258.15 | H65: 256.30 | I65: 264.10 | J65: 265.95 | K65: 268.00 | L65: 263.9 | M65: 260 | N65: 19076200 | O65: 1.24%
A66: 56 | B66: FMCG | C66: COLPAL | D66: 1159.45 | E66: 1162.03 | F66: 1149.47 | G66: 1139.48 | H66: 1126.92 | I66: 1172.02 | J66: 1184.58 | K66: 1194.57 | L66: 1174.6 | M66: 1152.05 | N66: 2209200 | O66: 2.57%
A67: 57 | B67: Others | C67: CONCOR | D67: 647.55 | E67: 641.37 | F67: 632.93 | G67: 618.32 | H67: 609.88 | I67: 655.98 | J67: 664.42 | K67: 679.03 | L67: 649.8 | M67: 626.75 | N67: 2925000 | O67: 0.86%
A68: 58 | B68: Capital_Goods | C68: CUMMINSIND | D68: 654.95 | E68: 655.92 | F68: 646.23 | G68: 637.52 | H68: 627.83 | I68: 664.63 | J68: 674.32 | K68: 683.03 | L68: 665.6 | M68: 647.2 | N68: 810600 | O68: 0.09%
A69: 59 | B69: FMCG | C69: DABUR | D69: 380.65 | E69: 379.98 | F69: 378.12 | G69: 375.58 | H69: 373.72 | I69: 382.52 | J69: 384.38 | K69: 386.92 | L69: 381.85 | M69: 377.45 | N69: 16615000 | O69: 3.83%
A70: 60 | B70: Cement | C70: DALMIABHA | D70: 2224.00 | E70: 2226.17 | F70: 2192.33 | G70: 2160.67 | H70: 2126.83 | I70: 2257.83 | J70: 2291.67 | K70: 2323.33 | L70: 2260 | M70: 2194.5 | N70: 756900 | O70: 4.82%
A71: 61 | B71: Banking | C71: DCBBANK | D71: 166.90 | E71: 166.05 | F71: 164.05 | G71: 161.20 | H71: 159.20 | I71: 168.90 | J71: 170.90 | K71: 173.75 | L71: 168.05 | M71: 163.2 | N71: 6813000 | O71: -3.13%
A72: 62 | B72: Finance | C72: DHFL | D72: 627.60 | E72: 622.78 | F72: 616.12 | G72: 604.63 | H72: 597.97 | I72: 634.27 | J72: 640.93 | K72: 652.42 | L72: 629.45 | M72: 611.3 | N72: 26895000 | O72: 0.13%
A73: 63 | B73: Media | C73: DISHTV | D73: 72.60 | E73: 72.40 | F73: 71.95 | G73: 71.30 | H73: 70.85 | I73: 73.05 | J73: 73.50 | K73: 74.15 | L73: 72.85 | M73: 71.75 | N73: 54112000 | O73: 0.07%
A74: 64 | B74: Pharma | C74: DIVISLAB | D74: 1090.70 | E74: 1076.23 | F74: 1054.47 | G74: 1018.23 | H74: 996.47 | I74: 1112.47 | J74: 1134.23 | K74: 1170.47 | L74: 1098 | M74: 1040 | N74: 2752800 | O74: 4.18%
A75: 65 | B75: Realty | C75: DLF | D75: 186.50 | E75: 185.87 | F75: 183.18 | G75: 179.87 | H75: 177.18 | I75: 189.18 | J75: 191.87 | K75: 195.18 | L75: 188.55 | M75: 182.55 | N75: 33895000 | O75: -0.40%
A76: 66 | B76: Pharma | C76: DRREDDY | D76: 2266.45 | E76: 2254.37 | F76: 2231.73 | G76: 2197.02 | H76: 2174.38 | I76: 2289.08 | J76: 2311.72 | K76: 2346.43 | L76: 2277 | M76: 2219.65 | N76: 4977250 | O76: 3.88%
A77: 67 | B77: Automobile | C77: EICHERMOT | D77: 28148.50 | E77: 28169.52 | F77: 27989.03 | G77: 27829.57 | H77: 27649.08 | I77: 28328.98 | J77: 28509.47 | K77: 28668.93 | L77: 28350 | M77: 28010.05 | N77: 217650 | O77: 1.23%
A78: 68 | B78: Infrastructure | C78: ENGINERSIN | D78: 125.65 | E78: 124.18 | F78: 121.97 | G78: 118.28 | H78: 116.07 | I78: 127.87 | J78: 130.08 | K78: 133.77 | L78: 126.4 | M78: 120.5 | N78: 9138500 | O78: -2.39%
A79: 69 | B79: Finance | C79: EQUITAS | D79: 136.80 | E79: 136.85 | F79: 135.85 | G79: 134.90 | H79: 133.90 | I79: 137.80 | J79: 138.80 | K79: 139.75 | L79: 137.85 | M79: 135.9 | N79: 19872000 | O79: 0.61%
A80: 70 | B80: Automobile | C80: ESCORTS | D80: 869.25 | E80: 867.03 | F80: 854.27 | G80: 839.28 | H80: 826.52 | I80: 882.02 | J80: 894.78 | K80: 909.77 | L80: 879.8 | M80: 852.05 | N80: 4479200 | O80: 1.17%
A81: 71 | B81: Automobile | C81: EXIDEIND | D81: 263.35 | E81: 261.48 | F81: 258.27 | G81: 253.18 | H81: 249.97 | I81: 266.57 | J81: 269.78 | K81: 274.87 | L81: 264.7 | M81: 256.4 | N81: 9240000 | O81: 8.50%
A82: 72 | B82: Banking | C82: FEDERALBNK | D82: 83.40 | E82: 82.65 | F82: 81.55 | G82: 79.70 | H82: 78.60 | I82: 84.50 | J82: 85.60 | K82: 87.45 | L82: 83.75 | M82: 80.8 | N82: 60560500 | O82: -0.89%
A83: 73 | B83: Oil_Gas | C83: GAIL | D83: 345.80 | E83: 343.50 | F83: 339.45 | G83: 333.10 | H83: 329.05 | I83: 349.85 | J83: 353.90 | K83: 360.25 | L83: 347.55 | M83: 337.15 | N83: 13225653 | O83: 1.54%
A84: 74 | B84: Pharma | C84: GLENMARK | D84: 592.90 | E84: 587.93 | F84: 580.62 | G84: 568.33 | H84: 561.02 | I84: 600.22 | J84: 607.53 | K84: 619.82 | L84: 595.25 | M84: 575.65 | N84: 4451000 | O84: -0.54%
A85: 75 | B85: Infrastructure | C85: GMRINFRA | D85: 16.00 | E85: 15.87 | F85: 15.63 | G85: 15.27 | H85: 15.03 | I85: 16.23 | J85: 16.47 | K85: 16.83 | L85: 16.1 | M85: 15.5 | N85: 252180000 | O85: -2.49%
A86: 76 | B86: Others | C86: GODFRYPHLP | D86: 724.65 | E86: 723.53 | F86: 716.12 | G86: 707.58 | H86: 700.17 | I86: 732.07 | J86: 739.48 | K86: 748.02 | L86: 730.95 | M86: 715 | N86: 462700 | O86: 0.76%
A87: 77 | B87: FMCG | C87: GODREJCP | D87: 1254.65 | E87: 1248.68 | F87: 1239.97 | G87: 1225.28 | H87: 1216.57 | I87: 1263.37 | J87: 1272.08 | K87: 1286.77 | L87: 1257.4 | M87: 1234 | N87: 2174400 | O87: 1.95%
A88: 78 | B88: FMCG | C88: GODREJIND | D88: 622.05 | E88: 624.43 | F88: 614.87 | G88: 607.68 | H88: 598.12 | I88: 631.62 | J88: 641.18 | K88: 648.37 | L88: 634 | M88: 617.25 | N88: 1849500 | O88: 5.75%
A89: 79 | B89: Pharma | C89: GRANULES | D89: 80.30 | E89: 79.32 | F89: 77.53 | G89: 74.77 | H89: 72.98 | I89: 82.08 | J89: 83.87 | K89: 86.63 | L89: 81.1 | M89: 76.55 | N89: 11765000 | O89: 2.53%
A90: 80 | B90: Cement | C90: GRASIM | D90: 992.05 | E90: 985.42 | F90: 974.98 | G90: 957.92 | H90: 947.48 | I90: 1002.48 | J90: 1012.92 | K90: 1029.98 | L90: 995.85 | M90: 968.35 | N90: 5264250 | O90: -1.34%
A91: 81 | B91: Others | C91: GSFC | D91: 105.70 | E91: 104.57 | F91: 102.73 | G91: 99.77 | H91: 97.93 | I91: 107.53 | J91: 109.37 | K91: 112.33 | L91: 106.4 | M91: 101.6 | N91: 15507000 | O91: 0.29%
A92: 82 | B92: Others | C92: HAVELLS | D92: 542.05 | E92: 539.57 | F92: 532.13 | G92: 522.22 | H92: 514.78 | I92: 549.48 | J92: 556.92 | K92: 566.83 | L92: 547 | M92: 529.65 | N92: 4249000 | O92: -1.21%
A93: 83 | B93: Others | C93: HCC | D93: 12.35 | E93: 12.38 | F93: 12.07 | G93: 11.78 | H93: 11.47 | I93: 12.67 | J93: 12.98 | K93: 13.27 | L93: 12.7 | M93: 12.1 | N93: 41796000 | O93: -1.44%
A94: 84 | B94: Technology | C94: HCLTECH | D94: 943.25 | E94: 936.95 | F94: 928.40 | G94: 913.55 | H94: 905.00 | I94: 951.80 | J94: 960.35 | K94: 975.20 | L94: 945.5 | M94: 922.1 | N94: 10478300 | O94: 1.29%
A95: 85 | B95: Finance | C95: HDFC | D95: 1874.70 | E95: 1875.43 | F95: 1863.02 | G95: 1851.33 | H95: 1838.92 | I95: 1887.12 | J95: 1899.53 | K95: 1911.22 | L95: 1887.85 | M95: 1863.75 | N95: 23770000 | O95: 0.15%
A96: 86 | B96: Banking | C96: HDFCBANK | D96: 2077.35 | E96: 2079.40 | F96: 2069.50 | G96: 2061.65 | H96: 2051.75 | I96: 2087.25 | J96: 2097.15 | K96: 2105.00 | L96: 2089.3 | M96: 2071.55 | N96: 19295000 | O96: 0.67%
A97: 88 | B97: Automobile | C97: HEROMOTOCO | D97: 3422.55 | E97: 3426.78 | F97: 3405.82 | G97: 3389.08 | H97: 3368.12 | I97: 3443.52 | J97: 3464.48 | K97: 3481.22 | L97: 3447.75 | M97: 3410.05 | N97: 1638800 | O97: 0.26%
A98: 89 | B98: Technology | C98: HEXAWARE | D98: 466.50 | E98: 462.13 | F98: 455.37 | G98: 444.23 | H98: 437.47 | I98: 473.27 | J98: 480.03 | K98: 491.17 | L98: 468.9 | M98: 451 | N98: 4557000 | O98: 4.54%
A99: 90 | B99: Metals | C99: HINDALCO | D99: 226.65 | E99: 225.33 | F99: 222.97 | G99: 219.28 | H99: 216.92 | I99: 229.02 | J99: 231.38 | K99: 235.07 | L99: 227.7 | M99: 221.65 | N99: 35430500 | O99: -3.12%
A100: 91 | B100: Oil_Gas | C100: HINDPETRO | D100: 260.00 | E100: 260.97 | F100: 257.73 | G100: 255.47 | H100: 252.23 | I100: 263.23 | J100: 266.47 | K100: 268.73 | L100: 264.2 | M100: 258.7 | N100: 28334250 | O100: -1.08%
A101: 92 | B101: FMCG | C101: HINDUNILVR | D101: 1652.85 | E101: 1652.65 | F101: 1640.30 | G101: 1627.75 | H101: 1615.40 | I101: 1665.20 | J101: 1677.55 | K101: 1690.10 | L101: 1665 | M101: 1640.1 | N101: 9093600 | O101: 1.98%
A102: 93 | B102: Metals | C102: HINDZINC | D102: 277.50 | E102: 278.75 | F102: 274.65 | G102: 271.80 | H102: 267.70 | I102: 281.60 | J102: 285.70 | K102: 288.55 | L102: 282.85 | M102: 275.9 | N102: 10880000 | O102: -0.12%
A103: 94 | B103: Finance | C103: IBULHSGFIN | D103: 1130.90 | E103: 1126.23 | F103: 1116.62 | G103: 1102.33 | H103: 1092.72 | I103: 1140.52 | J103: 1150.13 | K103: 1164.42 | L103: 1135.85 | M103: 1111.95 | N103: 17141000 | O103: 0.71%
A104: 95 | B104: Banking | C104: ICICIBANK | D104: 273.10 | E104: 274.13 | F104: 271.47 | G104: 269.83 | H104: 267.17 | I104: 275.77 | J104: 278.43 | K104: 280.07 | L104: 276.8 | M104: 272.5 | N104: 116066500 | O104: 2.14%
A105: 96 | B105: Others | C105: ICICIPRULI | D105: 376.35 | E105: 372.70 | F105: 366.00 | G105: 355.65 | H105: 348.95 | I105: 383.05 | J105: 389.75 | K105: 400.10 | L105: 379.4 | M105: 362.35 | N105: 8195200 | O105: 0.90%
A106: 97 | B106: Banking | C106: IDBI | D106: 52.65 | E106: 53.58 | F106: 51.42 | G106: 50.18 | H106: 48.02 | I106: 54.82 | J106: 56.98 | K106: 58.22 | L106: 55.75 | M106: 52.35 | N106: 67870000 | O106: 2.32%
A107: 98 | B107: Telecom | C107: IDEA | D107: 57.15 | E107: 57.18 | F107: 56.22 | G107: 55.28 | H107: 54.32 | I107: 58.12 | J107: 59.08 | K107: 60.02 | L107: 58.15 | M107: 56.25 | N107: 129514000 | O107: 0.52%
A108: 99 | B108: Finance | C108: IDFC | D108: 45.95 | E108: 45.67 | F108: 45.18 | G108: 44.42 | H108: 43.93 | I108: 46.43 | J108: 46.92 | K108: 47.68 | L108: 46.15 | M108: 44.9 | N108: 151430400 | O108: -0.36%
A109: 100 | B109: Banking | C109: IDFCBANK | D109: 38.70 | E109: 38.57 | F109: 38.03 | G109: 37.37 | H109: 36.83 | I109: 39.23 | J109: 39.77 | K109: 40.43 | L109: 39.1 | M109: 37.9 | N109: 195195000 | O109: -1.29%
A110: 101 | B110: Finance | C110: IFCI | D110: 15.35 | E110: 15.22 | F110: 15.03 | G110: 14.72 | H110: 14.53 | I110: 15.53 | J110: 15.72 | K110: 16.03 | L110: 15.4 | M110: 14.9 | N110: 63300000 | O110: -0.31%
A111: 102 | B111: Oil_Gas | C111: IGL | D111: 261.65 | E111: 259.03 | F111: 255.52 | G111: 249.38 | H111: 245.87 | I111: 265.17 | J111: 268.68 | K111: 274.82 | L111: 262.55 | M111: 252.9 | N111: 5821750 | O111: -1.95%
A112: 103 | B112: Cement | C112: INDIACEM | D112: 105.25 | E112: 104.83 | F112: 103.17 | G112: 101.08 | H112: 99.42 | I112: 106.92 | J112: 108.58 | K112: 110.67 | L112: 106.5 | M112: 102.75 | N112: 22151500 | O112: 0.00%
A113: 104 | B113: Banking | C113: INDIANB | D113: 338.30 | E113: 338.43 | F113: 335.07 | G113: 331.83 | H113: 328.47 | I113: 341.67 | J113: 345.03 | K113: 348.27 | L113: 341.8 | M113: 335.2 | N113: 2826000 | O113: 3.97%
A114: 105 | B114: Others | C114: INDIGO | D114: 1063.95 | E114: 1055.37 | F114: 1041.68 | G114: 1019.42 | H114: 1005.73 | I114: 1077.63 | J114: 1091.32 | K114: 1113.58 | L114: 1069.05 | M114: 1033.1 | N114: 4941000 | O114: -3.59%
A115: 106 | B115: Banking | C115: INDUSINDBK | D115: 1945.05 | E115: 1940.03 | F115: 1930.17 | G115: 1915.28 | H115: 1905.42 | I115: 1954.92 | J115: 1964.78 | K115: 1979.67 | L115: 1949.9 | M115: 1925.15 | N115: 6206100 | O115: -1.93%
A116: 107 | B116: Technology | C116: INFIBEAM | D116: 146.55 | E116: 146.83 | F116: 144.02 | G116: 141.48 | H116: 138.67 | I116: 149.37 | J116: 152.18 | K116: 154.72 | L116: 149.65 | M116: 144.3 | N116: 47044000 | O116: 4.53%
A117: 108 | B117: Telecom | C117: INFRATEL | D117: 279.45 | E117: 279.75 | F117: 274.00 | G117: 268.55 | H117: 262.80 | I117: 285.20 | J117: 290.95 | K117: 296.40 | L117: 285.5 | M117: 274.3 | N117: 6019700 | O117: 2.40%
A118: 109 | B118: Technology | C118: INFY | D118: 1353.75 | E118: 1346.78 | F118: 1335.57 | G118: 1317.38 | H118: 1306.17 | I118: 1364.97 | J118: 1376.18 | K118: 1394.37 | L118: 1358 | M118: 1328.6 | N118: 28510200 | O118: 1.32%
A119: 110 | B119: Oil_Gas | C119: IOC | D119: 156.00 | E119: 155.28 | F119: 154.12 | G119: 152.23 | H119: 151.07 | I119: 157.17 | J119: 158.33 | K119: 160.22 | L119: 156.45 | M119: 153.4 | N119: 31512000 | O119: -2.22%
A120: 111 | B120: Infrastructure | C120: IRB | D120: 208.50 | E120: 207.08 | F120: 202.67 | G120: 196.83 | H120: 192.42 | I120: 212.92 | J120: 217.33 | K120: 223.17 | L120: 211.5 | M120: 201.25 | N120: 17655000 | O120: 0.21%
A121: 112 | B121: FMCG | C121: ITC | D121: 266.70 | E121: 265.52 | F121: 263.63 | G121: 260.57 | H121: 258.68 | I121: 268.58 | J121: 270.47 | K121: 273.53 | L121: 267.4 | M121: 262.45 | N121: 73492800 | O121: -1.63%
A122: 113 | B122: Others | C122: JETAIRWAYS | D122: 343.90 | E122: 343.57 | F122: 337.13 | G122: 330.37 | H122: 323.93 | I122: 350.33 | J122: 356.77 | K122: 363.53 | L122: 350 | M122: 336.8 | N122: 7058400 | O122: 1.41%
A123: 114 | B123: Metals | C123: JINDALSTEL | D123: 209.80 | E123: 209.67 | F123: 205.88 | G123: 201.97 | H123: 198.18 | I123: 213.58 | J123: 217.37 | K123: 221.28 | L123: 213.45 | M123: 205.75 | N123: 33268500 | O123: -3.64%
A124: 115 | B124: Others | C124: JISLJALEQS | D124: 78.05 | E124: 77.57 | F124: 76.13 | G124: 74.22 | H124: 72.78 | I124: 79.48 | J124: 80.92 | K124: 82.83 | L124: 79 | M124: 75.65 | N124: 43902000 | O124: 1.35%
A125: 116 | B125: Realty | C125: JPASSOCIAT | D125: 15.80 | E125: 15.65 | F125: 15.35 | G125: 14.90 | H125: 14.60 | I125: 16.10 | J125: 16.40 | K125: 16.85 | L125: 15.95 | M125: 15.2 | N125: 193052000 | O125: 1.87%
A126: 117 | B126: Metals | C126: JSWSTEEL | D126: 310.45 | E126: 309.35 | F126: 305.30 | G126: 300.15 | H126: 296.10 | I126: 314.50 | J126: 318.55 | K126: 323.70 | L126: 313.4 | M126: 304.2 | N126: 65181000 | O126: -0.42%
A127: 118 | B127: Others | C127: JUBLFOOD | D127: 1435.95 | E127: 1430.28 | F127: 1418.22 | G127: 1400.48 | H127: 1388.42 | I127: 1448.02 | J127: 1460.08 | K127: 1477.82 | L127: 1442.35 | M127: 1412.55 | N127: 3561000 | O127: -1.91%
A128: 119 | B128: Others | C128: JUSTDIAL | D128: 571.85 | E128: 557.92 | F128: 540.73 | G128: 509.62 | H128: 492.43 | I128: 589.03 | J128: 606.22 | K128: 637.33 | L128: 575.1 | M128: 526.8 | N128: 4366600 | O128: 28.83%
A129: 120 | B129: Others | C129: KAJARIACER | D129: 468.90 | E129: 470.87 | F129: 466.03 | G129: 463.17 | H129: 458.33 | I129: 473.73 | J129: 478.57 | K129: 481.43 | L129: 475.7 | M129: 468 | N129: 1786000 | O129: 2.94%
A130: 121 | B130: Banking | C130: KOTAKBANK | D130: 1350.80 | E130: 1344.05 | F130: 1335.00 | G130: 1319.20 | H130: 1310.15 | I130: 1359.85 | J130: 1368.90 | K130: 1384.70 | L130: 1353.1 | M130: 1328.25 | N130: 11167200 | O130: 1.22%
A131: 122 | B131: Technology | C131: KPIT | D131: 279.15 | E131: 276.40 | F131: 272.80 | G131: 266.45 | H131: 262.85 | I131: 282.75 | J131: 286.35 | K131: 292.70 | L131: 280 | M131: 270.05 | N131: 4869000 | O131: 13.89%
A132: 123 | B132: Others | C132: KSCL | D132: 548.40 | E132: 546.98 | F132: 540.12 | G132: 531.83 | H132: 524.97 | I132: 555.27 | J132: 562.13 | K132: 570.42 | L132: 553.85 | M132: 538.7 | N132: 2013000 | O132: 0.68%
A133: 124 | B133: Banking | C133: KTKBANK | D133: 105.85 | E133: 105.25 | F133: 104.10 | G133: 102.35 | H133: 101.20 | I133: 107.00 | J133: 108.15 | K133: 109.90 | L133: 106.4 | M133: 103.5 | N133: 19435500 | O133: -0.76%
A134: 125 | B134: Finance | C134: L&TFH | D134: 148.05 | E134: 147.43 | F134: 145.62 | G134: 143.18 | H134: 141.37 | I134: 149.87 | J134: 151.68 | K134: 154.12 | L134: 149.25 | M134: 145 | N134: 31621500 | O134: -2.69%
A135: 126 | B135: Finance | C135: LICHSGFIN | D135: 474.40 | E135: 469.87 | F135: 463.43 | G135: 452.47 | H135: 446.03 | I135: 480.83 | J135: 487.27 | K135: 498.23 | L135: 476.3 | M135: 458.9 | N135: 12427800 | O135: 0.88%
A136: 127 | B136: Capital_Goods | C136: LT | D136: 1258.25 | E136: 1259.52 | F136: 1251.58 | G136: 1244.92 | H136: 1236.98 | I136: 1266.18 | J136: 1274.12 | K136: 1280.78 | L136: 1267.45 | M136: 1252.85 | N136: 15324750 | O136: -0.22%
A137: 128 | B137: Pharma | C137: LUPIN | D137: 906.15 | E137: 897.45 | F137: 886.05 | G137: 865.95 | H137: 854.55 | I137: 917.55 | J137: 928.95 | K137: 949.05 | L137: 908.85 | M137: 877.35 | N137: 10472000 | O137: 0.80%
A138: 129 | B138: Automobile | C138: M&M | D138: 890.40 | E138: 886.52 | F138: 878.98 | G138: 867.57 | H138: 860.03 | I138: 897.93 | J138: 905.47 | K138: 916.88 | L138: 894.05 | M138: 875.1 | N138: 15108000 | O138: -1.71%
A139: 130 | B139: Finance | C139: M&MFIN | D139: 463.30 | E139: 458.18 | F139: 448.87 | G139: 434.43 | H139: 425.12 | I139: 472.62 | J139: 481.93 | K139: 496.37 | L139: 467.5 | M139: 443.75 | N139: 8455000 | O139: -2.10%
A140: 131 | B140: Others | C140: MANAPPURAM | D140: 100.00 | E140: 99.63 | F140: 98.22 | G140: 96.43 | H140: 95.02 | I140: 101.42 | J140: 102.83 | K140: 104.62 | L140: 101.05 | M140: 97.85 | N140: 17790000 | O140: -2.40%
A141: 132 | B141: FMCG | C141: MARICO | D141: 342.15 | E141: 338.67 | F141: 334.48 | G141: 326.82 | H141: 322.63 | I141: 346.33 | J141: 350.52 | K141: 358.18 | L141: 342.85 | M141: 331 | N141: 4864600 | O141: 2.41%
A142: 133 | B142: Automobile | C142: MARUTI | D142: 8996.35 | E142: 8931.45 | F142: 8842.90 | G142: 8689.45 | H142: 8600.90 | I142: 9084.90 | J142: 9173.45 | K142: 9326.90 | L142: 9020 | M142: 8778 | N142: 2249850 | O142: -0.80%
A143: 134 | B143: FMCG | C143: MCDOWELL-N | D143: 659.30 | E143: 657.62 | F143: 652.23 | G143: 645.17 | H143: 639.78 | I143: 664.68 | J143: 670.07 | K143: 677.13 | L143: 663 | M143: 650.55 | N143: 10390000 | O143: 0.48%
A144: 135 | B144: Others | C144: MCX | D144: 754.50 | E144: 744.32 | F144: 726.18 | G144: 697.87 | H144: 679.73 | I144: 772.63 | J144: 790.77 | K144: 819.08 | L144: 762.45 | M144: 716 | N144: 3615500 | O144: 0.98%
A145: 136 | B145: Finance | C145: MFSL | D145: 426.15 | E145: 428.30 | F145: 420.60 | G145: 415.05 | H145: 407.35 | I145: 433.85 | J145: 441.55 | K145: 447.10 | L145: 436 | M145: 422.75 | N145: 3159600 | O145: 2.37%
A146: 137 | B146: Others | C146: MGL | D146: 825.25 | E146: 821.40 | F146: 814.35 | G146: 803.45 | H146: 796.40 | I146: 832.30 | J146: 839.35 | K146: 850.25 | L146: 828.45 | M146: 810.5 | N146: 1404600 | O146: -1.89%
A147: 138 | B147: Technology | C147: MINDTREE | D147: 1007.90 | E147: 1000.90 | F147: 990.80 | G147: 973.70 | H147: 963.60 | I147: 1018.00 | J147: 1028.10 | K147: 1045.20 | L147: 1011 | M147: 983.8 | N147: 4180800 | O147: 1.31%
A148: 139 | B148: Automobile | C148: MOTHERSUMI | D148: 292.20 | E148: 289.53 | F148: 285.22 | G148: 278.23 | H148: 273.92 | I148: 296.52 | J148: 300.83 | K148: 307.82 | L148: 293.85 | M148: 282.55 | N148: 13899200 | O148: -2.32%
A149: 140 | B149: Automobile | C149: MRF | D149: 75795.55 | E149: 75694.23 | F149: 75201.32 | G149: 74607.08 | H149: 74114.17 | I149: 76288.47 | J149: 76781.38 | K149: 77375.62 | L149: 76187.15 | M149: 75100 | N149: 23910 | O149: -0.75%
A150: 141 | B150: Others | C150: MRPL | D150: 79.00 | E150: 78.77 | F150: 77.53 | G150: 76.07 | H150: 74.83 | I150: 80.23 | J150: 81.47 | K150: 82.93 | L150: 80 | M150: 77.3 | N150: 6804000 | O150: 0.13%
A151: 142 | B151: Finance | C151: MUTHOOTFIN | D151: 390.75 | E151: 388.32 | F151: 382.73 | G151: 374.72 | H151: 369.13 | I151: 396.33 | J151: 401.92 | K151: 409.93 | L151: 393.9 | M151: 380.3 | N151: 1650000 | O151: 2.90%
A152: 143 | B152: Others | C152: NATIONALUM | D152: 64.00 | E152: 63.18 | F152: 61.92 | G152: 59.83 | H152: 58.57 | I152: 65.27 | J152: 66.53 | K152: 68.62 | L152: 64.45 | M152: 61.1 | N152: 46608000 | O152: -0.70%
A153: 144 | B153: Others | C153: NBCC | D153: 71.75 | E153: 72.15 | F153: 70.80 | G153: 69.85 | H153: 68.50 | I153: 73.10 | J153: 74.45 | K153: 75.40 | L153: 73.5 | M153: 71.2 | N153: 22320000 | O153: 4.06%
A154: 145 | B154: Infrastructure | C154: NCC | D154: 99.30 | E154: 99.63 | F154: 97.87 | G154: 96.43 | H154: 94.67 | I154: 101.07 | J154: 102.83 | K154: 104.27 | L154: 101.4 | M154: 98.2 | N154: 45968000 | O154: 1.83%
A155: 146 | B155: Others | C155: NESTLEIND | D155: 9847.50 | E155: 9825.25 | F155: 9778.50 | G155: 9709.50 | H155: 9662.75 | I155: 9894.25 | J155: 9941.00 | K155: 10010.00 | L155: 9872 | M155: 9756.25 | N155: 268600 | O155: 0.79%
A156: 147 | B156: Power | C156: NHPC | D156: 22.95 | E156: 22.92 | F156: 22.73 | G156: 22.52 | H156: 22.33 | I156: 23.13 | J156: 23.32 | K156: 23.53 | L156: 23.1 | M156: 22.7 | N156: 29430000 | O156: 1.58%
A157: 148 | B157: Technology | C157: NIITTECH | D157: 1119.20 | E157: 1112.50 | F157: 1101.70 | G157: 1084.20 | H157: 1073.40 | I157: 1130.00 | J157: 1140.80 | K157: 1158.30 | L157: 1123.3 | M157: 1095 | N157: 1503750 | O157: 6.82%
A158: 149 | B158: Metals | C158: NMDC | D158: 105.35 | E158: 105.35 | F158: 104.60 | G158: 103.85 | H158: 103.10 | I158: 106.10 | J158: 106.85 | K158: 107.60 | L158: 106.1 | M158: 104.6 | N158: 25422000 | O158: 0.67%
A159: 150 | B159: Power | C159: NTPC | D159: 156.00 | E159: 154.90 | F159: 153.45 | G159: 150.90 | H159: 149.45 | I159: 157.45 | J159: 158.90 | K159: 161.45 | L159: 156.35 | M159: 152.35 | N159: 44476000 | O159: -1.71%
A160: 151 | B160: Technology | C160: OFSS | D160: 3999.70 | E160: 4003.35 | F160: 3976.15 | G160: 3952.60 | H160: 3925.40 | I160: 4026.90 | J160: 4054.10 | K160: 4077.65 | L160: 4030.55 | M160: 3979.8 | N160: 57300 | O160: 7.00%
A161: 152 | B161: Oil_Gas | C161: OIL | D161: 209.70 | E161: 209.08 | F161: 207.02 | G161: 204.33 | H161: 202.27 | I161: 211.77 | J161: 213.83 | K161: 216.52 | L161: 211.15 | M161: 206.4 | N161: 2739594 | O161: 1.13%
A162: 153 | B162: Oil_Gas | C162: ONGC | D162: 158.55 | E162: 158.53 | F162: 155.27 | G162: 151.98 | H162: 148.72 | I162: 161.82 | J162: 165.08 | K162: 168.37 | L162: 161.8 | M162: 155.25 | N162: 39315000 | O162: -2.52%
A163: 154 | B163: Banking | C163: ORIENTBANK | D163: 75.35 | E163: 75.58 | F163: 74.17 | G163: 72.98 | H163: 71.57 | I163: 76.77 | J163: 78.18 | K163: 79.37 | L163: 77 | M163: 74.4 | N163: 12336000 | O163: -1.86%
A164: 155 | B164: Textile | C164: PAGEIND | D164: 28356.35 | E164: 28324.13 | F164: 28149.27 | G164: 27942.18 | H164: 27767.32 | I164: 28531.22 | J164: 28706.08 | K164: 28913.17 | L164: 28499 | M164: 28117.05 | N164: 54175 | O164: 0.05%
A165: 156 | B165: Others | C165: PCJEWELLER | D165: 134.95 | E165: 135.18 | F165: 133.57 | G165: 132.18 | H165: 130.57 | I165: 136.57 | J165: 138.18 | K165: 139.57 | L165: 136.8 | M165: 133.8 | N165: 7462500 | O165: 3.75%
A166: 157 | B166: Pharma | C166: PEL | D166: 2452.45 | E166: 2445.13 | F166: 2417.32 | G166: 2382.18 | H166: 2354.37 | I166: 2480.27 | J166: 2508.08 | K166: 2543.22 | L166: 2472.95 | M166: 2410 | N166: 2063264 | O166: 0.19%
A167: 158 | B167: Oil_Gas | C167: PETRONET | D167: 218.30 | E167: 218.07 | F167: 215.53 | G167: 212.77 | H167: 210.23 | I167: 220.83 | J167: 223.37 | K167: 226.13 | L167: 220.6 | M167: 215.3 | N167: 16563000 | O167: 0.42%
A168: 159 | B168: Finance | C168: PFC | D168: 74.30 | E168: 74.25 | F168: 73.40 | G168: 72.50 | H168: 71.65 | I168: 75.15 | J168: 76.00 | K168: 76.90 | L168: 75.1 | M168: 73.35 | N168: 88008000 | O168: 0.64%
A169: 160 | B169: FMCG | C169: PIDILITIND | D169: 1070.60 | E169: 1073.12 | F169: 1063.53 | G169: 1056.47 | H169: 1046.88 | I169: 1080.18 | J169: 1089.77 | K169: 1096.83 | L169: 1082.7 | M169: 1066.05 | N169: 3523000 | O169: -0.65%
A170: 161 | B170: Banking | C170: PNB | D170: 77.55 | E170: 77.38 | F170: 76.37 | G170: 75.18 | H170: 74.17 | I170: 78.57 | J170: 79.58 | K170: 80.77 | L170: 78.4 | M170: 76.2 | N170: 84711000 | O170: 1.28%
A171: 162 | B171: Power | C171: POWERGRID | D171: 185.50 | E171: 184.57 | F171: 182.98 | G171: 180.47 | H171: 178.88 | I171: 187.08 | J171: 188.67 | K171: 191.18 | L171: 186.15 | M171: 182.05 | N171: 55664000 | O171: -1.05%
A172: 163 | B172: Power | C172: PTC | D172: 74.25 | E172: 74.05 | F172: 72.75 | G172: 71.25 | H172: 69.95 | I172: 75.55 | J172: 76.85 | K172: 78.35 | L172: 75.35 | M172: 72.55 | N172: 16936000 | O172: -1.26%
A173: 164 | B173: Others | C173: PVR | D173: 1378.90 | E173: 1377.60 | F173: 1357.30 | G173: 1335.70 | H173: 1315.40 | I173: 1399.20 | J173: 1419.50 | K173: 1441.10 | L173: 1397.9 | M173: 1356 | N173: 848400 | O173: -0.24%
A174: 165 | B174: Cement | C174: RAMCOCEM | D174: 702.40 | E174: 699.70 | F174: 693.00 | G174: 683.60 | H174: 676.90 | I174: 709.10 | J174: 715.80 | K174: 725.20 | L174: 706.4 | M174: 690.3 | N174: 896800 | O174: 0.99%
A175: 166 | B175: Others | C175: RAYMOND | D175: 896.70 | E175: 896.57 | F175: 887.93 | G175: 879.17 | H175: 870.53 | I175: 905.33 | J175: 913.97 | K175: 922.73 | L175: 905.2 | M175: 887.8 | N175: 4901600 | O175: 0.86%
A176: 167 | B176: Banking | C176: RBLBANK | D176: 567.85 | E176: 563.77 | F176: 556.18 | G176: 544.52 | H176: 536.93 | I176: 575.43 | J176: 583.02 | K176: 594.68 | L176: 571.35 | M176: 552.1 | N176: 3963600 | O176: 4.33%
A177: 168 | B177: Telecom | C177: RCOM | D177: 13.45 | E177: 13.38 | F177: 13.22 | G177: 12.98 | H177: 12.82 | I177: 13.62 | J177: 13.78 | K177: 14.02 | L177: 13.55 | M177: 13.15 | N177: 87584000 | O177: -0.06%
A178: 169 | B178: Power | C178: RECLTD | D178: 102.55 | E178: 102.75 | F178: 101.15 | G178: 99.75 | H178: 98.15 | I178: 104.15 | J178: 105.75 | K178: 107.15 | L178: 104.35 | M178: 101.35 | N178: 41262000 | O178: 0.73%
A179: 170 | B179: Finance | C179: RELCAPITAL | D179: 370.00 | E179: 371.35 | F179: 364.30 | G179: 358.60 | H179: 351.55 | I179: 377.05 | J179: 384.10 | K179: 389.80 | L179: 378.4 | M179: 365.65 | N179: 8988000 | O179: -0.63%
A180: 171 | B180: Oil_Gas | C180: RELIANCE | D180: 977.15 | E180: 973.32 | F180: 965.73 | G180: 954.32 | H180: 946.73 | I180: 984.73 | J180: 992.32 | K180: 1003.73 | L180: 980.9 | M180: 961.9 | N180: 48558000 | O180: 0.44%
A181: 172 | B181: Power | C181: RELINFRA | D181: 388.85 | E181: 387.02 | F181: 382.03 | G181: 375.22 | H181: 370.23 | I181: 393.83 | J181: 398.82 | K181: 405.63 | L181: 392 | M181: 380.2 | N181: 7135700 | O181: -0.36%
A182: 173 | B182: Others | C182: REPCOHOME | D182: 564.50 | E182: 558.75 | F182: 548.25 | G182: 532.00 | H182: 521.50 | I182: 575.00 | J182: 585.50 | K182: 601.75 | L182: 569.25 | M182: 542.5 | N182: 543600 | O182: -0.66%
A183: 174 | B183: Power | C183: RPOWER | D183: 31.45 | E183: 31.38 | F183: 30.87 | G183: 30.28 | H183: 29.77 | I183: 31.97 | J183: 32.48 | K183: 33.07 | L183: 31.9 | M183: 30.8 | N183: 50648000 | O183: -1.54%
A184: 175 | B184: Metals | C184: SAIL | D184: 80.90 | E184: 80.68 | F184: 79.47 | G184: 78.03 | H184: 76.82 | I184: 82.12 | J184: 83.33 | K184: 84.77 | L184: 81.9 | M184: 79.25 | N184: 89232000 | O184: 2.14%
A185: 176 | B185: Banking | C185: SBIN | D185: 259.05 | E185: 259.42 | F185: 256.98 | G185: 254.92 | H185: 252.48 | I185: 261.48 | J185: 263.92 | K185: 265.98 | L185: 261.85 | M185: 257.35 | N185: 73242000 | O185: -0.97%
A186: 177 | B186: Cement | C186: SHREECEM | D186: 15975.90 | E186: 15875.93 | F186: 15720.47 | G186: 15465.03 | H186: 15309.57 | I186: 16131.37 | J186: 16286.83 | K186: 16542.27 | L186: 16031.4 | M186: 15620.5 | N186: 87950 | O186: 2.75%
A187: 178 | B187: Capital_Goods | C187: SIEMENS | D187: 980.35 | E187: 978.40 | F187: 968.90 | G187: 957.45 | H187: 947.95 | I187: 989.85 | J187: 999.35 | K187: 1010.80 | L187: 987.9 | M187: 966.95 | N187: 1127000 | O187: 0.71%
A188: 179 | B188: Banking | C188: SOUTHBANK | D188: 21.75 | E188: 21.55 | F188: 21.25 | G188: 20.75 | H188: 20.45 | I188: 22.05 | J188: 22.35 | K188: 22.85 | L188: 21.85 | M188: 21.05 | N188: 148670526 | O188: -0.18%
A189: 180 | B189: Others | C189: SREINFRA | D189: 59.90 | E189: 58.98 | F189: 56.17 | G189: 52.43 | H189: 49.62 | I189: 62.72 | J189: 65.53 | K189: 69.27 | L189: 61.8 | M189: 55.25 | N189: 19915000 | O189: -0.25%
A190: 181 | B190: Textile | C190: SRF | D190: 1669.25 | E190: 1660.62 | F190: 1644.23 | G190: 1619.22 | H190: 1602.83 | I190: 1685.63 | J190: 1702.02 | K190: 1727.03 | L190: 1677 | M190: 1635.6 | N190: 688000 | O190: -4.51%
A191: 182 | B191: Finance | C191: SRTRANSFIN | D191: 1299.30 | E191: 1307.00 | F191: 1282.00 | G191: 1264.70 | H191: 1239.70 | I191: 1324.30 | J191: 1349.30 | K191: 1366.60 | L191: 1332 | M191: 1289.7 | N191: 4684200 | O191: 1.51%
A192: 183 | B192: Pharma | C192: STAR | D192: 398.75 | E192: 397.73 | F192: 390.47 | G192: 382.18 | H192: 374.92 | I192: 406.02 | J192: 413.28 | K192: 421.57 | L192: 405 | M192: 389.45 | N192: 4067200 | O192: 1.76%
A193: 184 | B193: Pharma | C193: SUNPHARMA | D193: 577.10 | E193: 573.23 | F193: 566.82 | G193: 556.53 | H193: 550.12 | I193: 583.52 | J193: 589.93 | K193: 600.22 | L193: 579.65 | M193: 562.95 | N193: 43513800 | O193: 2.35%
A194: 185 | B194: Media | C194: SUNTV | D194: 795.60 | E194: 790.20 | F194: 782.40 | G194: 769.20 | H194: 761.40 | I194: 803.40 | J194: 811.20 | K194: 824.40 | L194: 798 | M194: 777 | N194: 7055000 | O194: -2.82%
A195: 186 | B195: Power | C195: SUZLON | D195: 7.55 | E195: 7.48 | F195: 7.37 | G195: 7.18 | H195: 7.07 | I195: 7.67 | J195: 7.78 | K195: 7.97 | L195: 7.6 | M195: 7.3 | N195: 294750000 | O195: 0.32%
A196: 187 | B196: Banking | C196: SYNDIBANK | D196: 40.85 | E196: 40.75 | F196: 40.15 | G196: 39.45 | H196: 38.85 | I196: 41.45 | J196: 42.05 | K196: 42.75 | L196: 41.35 | M196: 40.05 | N196: 26937000 | O196: 0.17%
A197: 188 | B197: Fertilisers | C197: TATACHEM | D197: 686.15 | E197: 682.67 | F197: 668.33 | G197: 650.52 | H197: 636.18 | I197: 700.48 | J197: 714.82 | K197: 732.63 | L197: 697 | M197: 664.85 | N197: 3516000 | O197: 3.21%
A198: 189 | B198: Telecom | C198: TATACOMM | D198: 590.85 | E198: 588.53 | F198: 582.07 | G198: 573.28 | H198: 566.82 | I198: 597.32 | J198: 603.78 | K198: 612.57 | L198: 595 | M198: 579.75 | N198: 3174400 | O198: 0.38%
A199: 190 | B199: Technology | C199: TATAELXSI | D199: 1364.20 | E199: 1352.62 | F199: 1336.58 | G199: 1308.97 | H199: 1292.93 | I199: 1380.23 | J199: 1396.27 | K199: 1423.88 | L199: 1368.65 | M199: 1325 | N199: 1420000 | O199: 14.44%
A200: 191 | B200: FMCG | C200: TATAGLOBAL | D200: 281.90 | E200: 276.77 | F200: 268.13 | G200: 254.37 | H200: 245.73 | I200: 290.53 | J200: 299.17 | K200: 312.93 | L200: 285.4 | M200: 263 | N200: 12867750 | O200: 2.11%
A201: 192 | B201: Automobile | C201: TATAMOTORS | D201: 271.10 | E201: 270.87 | F201: 268.78 | G201: 266.47 | H201: 264.38 | I201: 273.18 | J201: 275.27 | K201: 277.58 | L201: 272.95 | M201: 268.55 | N201: 92419500 | O201: -0.88%
A202: 193 | B202: Automobile | C202: TATAMTRDVR | D202: 158.60 | E202: 158.85 | F202: 157.55 | G202: 156.50 | H202: 155.20 | I202: 159.90 | J202: 161.20 | K202: 162.25 | L202: 160.15 | M202: 157.8 | N202: 26423600 | O202: 2.56%
A203: 194 | B203: Power | C203: TATAPOWER | D203: 71.35 | E203: 71.48 | F203: 70.82 | G203: 70.28 | H203: 69.62 | I203: 72.02 | J203: 72.68 | K203: 73.22 | L203: 72.15 | M203: 70.95 | N203: 44892000 | O203: 1.73%
A204: 195 | B204: Metals | C204: TATASTEEL | D204: 559.70 | E204: 556.68 | F204: 547.87 | G204: 536.03 | H204: 527.22 | I204: 568.52 | J204: 577.33 | K204: 589.17 | L204: 565.5 | M204: 544.85 | N204: 45766235 | O204: 2.44%
A205: 196 | B205: Technology | C205: TCS | D205: 1882.85 | E205: 1877.43 | F205: 1866.42 | G205: 1849.98 | H205: 1838.97 | I205: 1893.87 | J205: 1904.88 | K205: 1921.32 | L205: 1888.45 | M205: 1861 | N205: 11537500 | O205: 1.64%
A206: 197 | B206: Technology | C206: TECHM | D206: 648.95 | E206: 648.45 | F206: 643.10 | G206: 637.25 | H206: 631.90 | I206: 654.30 | J206: 659.65 | K206: 665.50 | L206: 653.8 | M206: 642.6 | N206: 17394000 | O206: -1.06%
... 35 more rows

Sheet Cash Intra
M5: Back to Main Page
A6: FOR INTRA DAY TRADING | K6: =Main!B10 -> 2018-07-04
A8: Sr.no | B8: Scrip | C8: CLOSE RATE | D8: Pivot Point | E8: Supports | H8: Resistances
C9: Point | E9: S1 | F9: S2 | G9: S3 | H9: R1 | I9: R2 | J9: R3 | K9: HIGH | L9: LOW | M9: Total Trade Quanity in Lakhs
A10: 1 | B10: Nifty 50 | C10: 10699.9 | D10: 10681.15 | E10: 10649.00 | F10: 10598.10 | G10: 10565.95 | H10: 10732.05 | I10: 10764.20 | J10: 10815.10 | K10: 10713.3 | L10: 10630.25
A11: 2 | B11: Nifty Bank | C11: 26204.1 | D11: 26220.73 | E11: 26125.37 | F11: 26046.63 | G11: 25951.27 | H11: 26299.47 | I11: 26394.83 | J11: 26473.57 | K11: 26316.1 | L11: 26142
A12: 3 | B12: Nifty CPSE | C12: 2208.4 | D12: 2200.67 | E12: 2188.58 | F12: 2168.77 | G12: 2156.68 | H12: 2220.48 | I12: 2232.57 | J12: 2252.38 | K12: 2212.75 | L12: 2180.85
A13: 4 | B13: Nifty Infra | C13: 3063.85 | D13: 3058.70 | E13: 3046.50 | F13: 3029.15 | G13: 3016.95 | H13: 3076.05 | I13: 3088.25 | J13: 3105.60 | K13: 3070.9 | L13: 3041.35
A14: 5 | B14: Nifty IT | C14: 14222.55 | D14: 14178.77 | E14: 14118.63 | F14: 14014.72 | G14: 13954.58 | H14: 14282.68 | I14: 14342.82 | J14: 14446.73 | K14: 14238.9 | L14: 14074.85
A15: 6 | B15: Nifty PSE | C15: 3488 | D15: 3476.40 | E15: 3459.90 | F15: 3431.80 | G15: 3415.30 | H15: 3504.50 | I15: 3521.00 | J15: 3549.10 | K15: 3492.9 | L15: 3448.3
A16: 7 | B16: Nifty Midcap 50 | C16: 4883.8 | D16: 4857.42 | E16: 4822.58 | F16: 4761.37 | G16: 4726.53 | H16: 4918.63 | I16: 4953.47 | J16: 5014.68 | K16: 4892.25 | L16: 4796.2
A17: 8 | B17: ABB | C17: 1173.55 | D17: 1177.38 | E17: 1166.17 | F17: 1158.78 | G17: 1147.57 | H17: 1184.77 | I17: 1195.98 | J17: 1203.37 | K17: 1188.6 | L17: 1170 | M17: 0.1962
A18: 9 | B18: ACC | C18: 1332.85 | D18: 1325.95 | E18: 1308.90 | F18: 1284.95 | G18: 1267.90 | H18: 1349.90 | I18: 1366.95 | J18: 1390.90 | K18: 1343 | L18: 1302 | M18: 2.84242
A19: 10 | B19: AIAENG | C19: 1515.65 | D19: 1510.00 | E19: 1487.30 | F19: 1458.95 | G19: 1436.25 | H19: 1538.35 | I19: 1561.05 | J19: 1589.40 | K19: 1532.7 | L19: 1481.65 | M19: 0.62427
A20: 11 | B20: AUBANK | C20: 670.6 | D20: 669.52 | E20: 659.23 | F20: 647.87 | G20: 637.58 | H20: 680.88 | I20: 691.17 | J20: 702.53 | K20: 679.8 | L20: 658.15 | M20: 0.91579
A21: 12 | B21: ADANIENT | C21: 106.25 | D21: 105.60 | E21: 103.25 | F21: 100.25 | G21: 97.90 | H21: 108.60 | I21: 110.95 | J21: 113.95 | K21: 107.95 | L21: 102.6 | M21: 75.63035
A22: 13 | B22: ADANIPORTS | C22: 362.75 | D22: 362.82 | E22: 360.18 | F22: 357.62 | G22: 354.98 | H22: 365.38 | I22: 368.02 | J22: 370.58 | K22: 365.45 | L22: 360.25 | M22: 14.88048
A23: 14 | B23: ADANIPOWER | C23: 16 | D23: 15.82 | E23: 15.48 | F23: 14.97 | G23: 14.63 | H23: 16.33 | I23: 16.67 | J23: 17.18 | K23: 16.15 | L23: 15.3 | M23: 104.69657
A24: 15 | B24: ABFRL | C24: 139.55 | D24: 138.70 | E24: 137.00 | F24: 134.45 | G24: 132.75 | H24: 141.25 | I24: 142.95 | J24: 145.50 | K24: 140.4 | L24: 136.15 | M24: 2.0236
A25: 16 | B25: AJANTPHARM | C25: 1028.75 | D25: 1013.20 | E25: 991.55 | F25: 954.35 | G25: 932.70 | H25: 1050.40 | I25: 1072.05 | J25: 1109.25 | K25: 1034.85 | L25: 976 | M25: 5.45333
A26: 17 | B26: ALKEM | C26: 1894.9 | D26: 1873.07 | E26: 1827.63 | F26: 1760.37 | G26: 1714.93 | H26: 1940.33 | I26: 1985.77 | J26: 2053.03 | K26: 1918.5 | L26: 1805.8 | M26: 0.21583
A27: 18 | B27: AMARAJABAT | C27: 762.35 | D27: 755.43 | E27: 746.42 | F27: 730.48 | G27: 721.47 | H27: 771.37 | I27: 780.38 | J27: 796.32 | K27: 764.45 | L27: 739.5 | M27: 4.01035
A28: 19 | B28: AMBUJACEM | C28: 200.9 | D28: 200.35 | E28: 198.40 | F28: 195.90 | G28: 193.95 | H28: 202.85 | I28: 204.80 | J28: 207.30 | K28: 202.3 | L28: 197.85 | M28: 41.34828
A29: 20 | B29: APOLLOHOSP | C29: 1063.8 | D29: 1061.45 | E29: 1049.60 | F29: 1035.40 | G29: 1023.55 | H29: 1075.65 | I29: 1087.50 | J29: 1101.70 | K29: 1073.3 | L29: 1047.25 | M29: 5.36081
A30: 21 | B30: APOLLOTYRE | C30: 251.65 | D30: 252.58 | E30: 249.57 | F30: 247.48 | G30: 244.47 | H30: 254.67 | I30: 257.68 | J30: 259.77 | K30: 255.6 | L30: 250.5 | M30: 19.29833
A31: 22 | B31: ARVIND | C31: 390.5 | D31: 390.67 | E31: 386.53 | F31: 382.57 | G31: 378.43 | H31: 394.63 | I31: 398.77 | J31: 402.73 | K31: 394.8 | L31: 386.7 | M31: 5.43808
A32: 23 | B32: ASHOKLEY | C32: 129.5 | D32: 128.07 | E32: 125.83 | F32: 122.17 | G32: 119.93 | H32: 131.73 | I32: 133.97 | J32: 137.63 | K32: 130.3 | L32: 124.4 | M32: 169.65698
A33: 24 | B33: ASIANPAINT | C33: 1291.85 | D33: 1296.18 | E33: 1283.77 | F33: 1275.68 | G33: 1263.27 | H33: 1304.27 | I33: 1316.68 | J33: 1324.77 | K33: 1308.6 | L33: 1288.1 | M33: 13.99979
A34: 25 | B34: AUROPHARMA | C34: 626.8 | D34: 619.52 | E34: 609.28 | F34: 591.77 | G34: 581.53 | H34: 637.03 | I34: 647.27 | J34: 664.78 | K34: 629.75 | L34: 602 | M34: 45.26156
A35: 26 | B35: DMART | C35: 1521.95 | D35: 1522.47 | E35: 1504.98 | F35: 1488.02 | G35: 1470.53 | H35: 1539.43 | I35: 1556.92 | J35: 1573.88 | K35: 1539.95 | L35: 1505.5 | M35: 3.53842
A36: 27 | B36: AXISBANK | C36: 511.55 | D36: 513.57 | E36: 507.23 | F36: 502.92 | G36: 496.58 | H36: 517.88 | I36: 524.22 | J36: 528.53 | K36: 519.9 | L36: 509.25 | M36: 66.58467
A37: 28 | B37: BAJAJ-AUTO | C37: 2862.4 | D37: 2859.80 | E37: 2837.60 | F37: 2812.80 | G37: 2790.60 | H37: 2884.60 | I37: 2906.80 | J37: 2931.60 | K37: 2882 | L37: 2835 | M37: 5.10764
A38: 29 | B38: BAJFINANCE | C38: 2321.1 | D38: 2313.62 | E38: 2293.23 | F38: 2265.37 | G38: 2244.98 | H38: 2341.48 | I38: 2361.87 | J38: 2389.73 | K38: 2334 | L38: 2285.75 | M38: 8.10667
A39: 30 | B39: BAJAJFINSV | C39: 5885.2 | D39: 5848.00 | E39: 5797.00 | F39: 5708.80 | G39: 5657.80 | H39: 5936.20 | I39: 5987.20 | J39: 6075.40 | K39: 5899 | L39: 5759.8 | M39: 1.62273
A40: 31 | B40: BALKRISIND | C40: 1082.55 | D40: 1074.80 | E40: 1064.60 | F40: 1046.65 | G40: 1036.45 | H40: 1092.75 | I40: 1102.95 | J40: 1120.90 | K40: 1085 | L40: 1056.85 | M40: 4.54025
A41: 32 | B41: BANKBARODA | C41: 113 | D41: 113.15 | E41: 111.65 | F41: 110.30 | G41: 108.80 | H41: 114.50 | I41: 116.00 | J41: 117.35 | K41: 114.65 | L41: 111.8 | M41: 126.9136
A42: 33 | B42: BANKINDIA | C42: 86.95 | D42: 87.32 | E42: 85.83 | F42: 84.72 | G42: 83.23 | H42: 88.43 | I42: 89.92 | J42: 91.03 | K42: 88.8 | L42: 86.2 | M42: 49.44188
A43: 34 | B43: BATAINDIA | C43: 835.85 | D43: 840.47 | E43: 827.33 | F43: 818.82 | G43: 805.68 | H43: 848.98 | I43: 862.12 | J43: 870.63 | K43: 853.6 | L43: 831.95 | M43: 12.3817
A44: 35 | B44: BERGEPAINT | C44: 286.15 | D44: 286.07 | E44: 282.63 | F44: 279.12 | G44: 275.68 | H44: 289.58 | I44: 293.02 | J44: 296.53 | K44: 289.5 | L44: 282.55 | M44: 5.90255
A45: 36 | B45: BEL | C45: 107.45 | D45: 106.53 | E45: 105.22 | F45: 102.98 | G45: 101.67 | H45: 108.77 | I45: 110.08 | J45: 112.32 | K45: 107.85 | L45: 104.3 | M45: 62.89381
A46: 37 | B46: BHARATFIN | C46: 1180.95 | D46: 1175.95 | E46: 1169.00 | F46: 1157.05 | G46: 1150.10 | H46: 1187.90 | I46: 1194.85 | J46: 1206.80 | K46: 1182.9 | L46: 1164 | M46: 4.33231
A47: 38 | B47: BHARATFORG | C47: 620.4 | D47: 617.73 | E47: 611.22 | F47: 602.03 | G47: 595.52 | H47: 626.92 | I47: 633.43 | J47: 642.62 | K47: 624.25 | L47: 608.55 | M47: 6.80435
A48: 39 | B48: BHEL | C48: 70 | D48: 70.13 | E48: 69.32 | F48: 68.63 | G48: 67.82 | H48: 70.82 | I48: 71.63 | J48: 72.32 | K48: 70.95 | L48: 69.45 | M48: 58.61611
A49: 40 | B49: BPCL | C49: 373.9 | D49: 371.58 | E49: 366.42 | F49: 358.93 | G49: 353.77 | H49: 379.07 | I49: 384.23 | J49: 391.72 | K49: 376.75 | L49: 364.1 | M49: 39.96833
A50: 41 | B50: BHARTIARTL | C50: 370.75 | D50: 370.48 | E50: 366.37 | F50: 361.98 | G50: 357.87 | H50: 374.87 | I50: 378.98 | J50: 383.37 | K50: 374.6 | L50: 366.1 | M50: 27.87262
A51: 42 | B51: INFRATEL | C51: 291.5 | D51: 291.97 | E51: 286.13 | F51: 280.77 | G51: 274.93 | H51: 297.33 | I51: 303.17 | J51: 308.53 | K51: 297.8 | L51: 286.6 | M51: 24.04666
A52: 43 | B52: BIOCON | C52: 628.55 | D52: 624.05 | E52: 616.60 | F52: 604.65 | G52: 597.20 | H52: 636.00 | I52: 643.45 | J52: 655.40 | K52: 631.5 | L52: 612.1 | M52: 16.54383
A53: 44 | B53: BOSCHLTD | C53: 17488.7 | D53: 17513.00 | E53: 17326.00 | F53: 17163.30 | G53: 16976.30 | H53: 17675.70 | I53: 17862.70 | J53: 18025.40 | K53: 17700 | L53: 17350.3 | M53: 0.07835
A54: 45 | B54: BRITANNIA | C54: 6216.55 | D54: 6220.73 | E54: 6181.87 | F54: 6147.18 | G54: 6108.32 | H54: 6255.42 | I54: 6294.28 | J54: 6328.97 | K54: 6259.6 | L54: 6186.05 | M54: 0.93841
A55: 46 | B55: CRISIL | C55: 1763.4 | D55: 1767.47 | E55: 1728.93 | F55: 1694.47 | G55: 1655.93 | H55: 1801.93 | I55: 1840.47 | J55: 1874.93 | K55: 1806 | L55: 1733 | M55: 0.44718
A56: 47 | B56: CADILAHC | C56: 386.75 | D56: 385.88 | E56: 381.77 | F56: 376.78 | G56: 372.67 | H56: 390.87 | I56: 394.98 | J56: 399.97 | K56: 390 | L56: 380.9 | M56: 12.20377
A57: 48 | B57: CANBK | C57: 244.75 | D57: 246.83 | E57: 241.77 | F57: 238.78 | G57: 233.72 | H57: 249.82 | I57: 254.88 | J57: 257.87 | K57: 251.9 | L57: 243.85 | M57: 66.43456
A58: 49 | B58: CASTROLIND | C58: 157 | D58: 157.67 | E58: 155.33 | F58: 153.67 | G58: 151.33 | H58: 159.33 | I58: 161.67 | J58: 163.33 | K58: 160 | L58: 156 | M58: 16.65099
A59: 50 | B59: CENTRALBK | C59: 67.75 | D59: 68.33 | E59: 66.67 | F59: 65.58 | G59: 63.92 | H59: 69.42 | I59: 71.08 | J59: 72.17 | K59: 70 | L59: 67.25 | M59: 8.59871
A60: 51 | B60: CENTURYTEX | C60: 873.6 | D60: 867.88 | E60: 858.02 | F60: 842.43 | G60: 832.57 | H60: 883.47 | I60: 893.33 | J60: 908.92 | K60: 877.75 | L60: 852.3 | M60: 6.29559
A61: 52 | B61: CHOLAFIN | C61: 1512.45 | D61: 1508.40 | E61: 1490.35 | F61: 1468.25 | G61: 1450.20 | H61: 1530.50 | I61: 1548.55 | J61: 1570.65 | K61: 1526.45 | L61: 1486.3 | M61: 1.66425
A62: 53 | B62: CIPLA | C62: 640.4 | D62: 631.03 | E62: 617.42 | F62: 594.43 | G62: 580.82 | H62: 654.02 | I62: 667.63 | J62: 690.62 | K62: 644.65 | L62: 608.05 | M62: 52.716
A63: 54 | B63: COALINDIA | C63: 260.85 | D63: 260.95 | E63: 259.20 | F63: 257.55 | G63: 255.80 | H63: 262.60 | I63: 264.35 | J63: 266.00 | K63: 262.7 | L63: 259.3 | M63: 26.91217
A64: 55 | B64: COLPAL | C64: 1150.5 | D64: 1155.98 | E64: 1139.02 | F64: 1127.53 | G64: 1110.57 | H64: 1167.47 | I64: 1184.43 | J64: 1195.92 | K64: 1172.95 | L64: 1144.5 | M64: 2.05116
A65: 56 | B65: CONCOR | C65: 645.1 | D65: 639.28 | E65: 631.82 | F65: 618.53 | G65: 611.07 | H65: 652.57 | I65: 660.03 | J65: 673.32 | K65: 646.75 | L65: 626 | M65: 3.99032
A66: 57 | B66: COROMANDEL | C66: 423.55 | D66: 418.75 | E66: 408.50 | F66: 393.45 | G66: 383.20 | H66: 433.80 | I66: 444.05 | J66: 459.10 | K66: 429 | L66: 403.7 | M66: 2.02409
A67: 58 | B67: CROMPTON | C67: 226.15 | D67: 226.52 | E67: 223.18 | F67: 220.22 | G67: 216.88 | H67: 229.48 | I67: 232.82 | J67: 235.78 | K67: 229.85 | L67: 223.55 | M67: 6.64922
A68: 59 | B68: CUMMINSIND | C68: 654.6 | D68: 657.02 | E68: 645.63 | F68: 636.67 | G68: 625.28 | H68: 665.98 | I68: 677.37 | J68: 686.33 | K68: 668.4 | L68: 648.05 | M68: 1.81542
A69: 60 | B69: DLF | C69: 185.8 | D69: 185.27 | E69: 182.83 | F69: 179.87 | G69: 177.43 | H69: 188.23 | I69: 190.67 | J69: 193.63 | K69: 187.7 | L69: 182.3 | M69: 43.88316
A70: 61 | B70: DABUR | C70: 384.75 | D70: 384.53 | E70: 381.57 | F70: 378.38 | G70: 375.42 | H70: 387.72 | I70: 390.68 | J70: 393.87 | K70: 387.5 | L70: 381.35 | M70: 18.93774
A71: 62 | B71: DALMIABHA | C71: 2204.2 | D71: 2211.15 | E71: 2171.75 | F71: 2139.30 | G71: 2099.90 | H71: 2243.60 | I71: 2283.00 | J71: 2315.45 | K71: 2250.55 | L71: 2178.7 | M71: 1.42222
A72: 63 | B72: DHFL | C72: 624.55 | D72: 620.18 | E72: 614.37 | F72: 604.18 | G72: 598.37 | H72: 630.37 | I72: 636.18 | J72: 646.37 | K72: 626 | L72: 610 | M72: 58.92885
A73: 64 | B73: DISHTV | C73: 72.35 | D73: 72.20 | E73: 71.80 | F73: 71.25 | G73: 70.85 | H73: 72.75 | I73: 73.15 | J73: 73.70 | K73: 72.6 | L73: 71.65 | M73: 21.98677
A74: 65 | B74: DIVISLAB | C74: 1085.8 | D74: 1073.08 | E74: 1049.22 | F74: 1012.63 | G74: 988.77 | H74: 1109.67 | I74: 1133.53 | J74: 1170.12 | K74: 1096.95 | L74: 1036.5 | M74: 12.41172
A75: 66 | B75: LALPATHLAB | C75: 938.85 | D75: 928.97 | E75: 911.98 | F75: 885.12 | G75: 868.13 | H75: 955.83 | I75: 972.82 | J75: 999.68 | K75: 945.95 | L75: 902.1 | M75: 0.51373
A76: 67 | B76: DRREDDY | C76: 2273.75 | D76: 2264.32 | E76: 2244.63 | F76: 2215.52 | G76: 2195.83 | H76: 2293.43 | I76: 2313.12 | J76: 2342.23 | K76: 2284 | L76: 2235.2 | M76: 7.56573
A77: 68 | B77: EDELWEISS | C77: 292.5 | D77: 293.88 | E77: 289.07 | F77: 285.63 | G77: 280.82 | H77: 297.32 | I77: 302.13 | J77: 305.57 | K77: 298.7 | L77: 290.45 | M77: 9.90282
A78: 69 | B78: EICHERMOT | C78: 28079 | D78: 28153.00 | E78: 27931.00 | F78: 27783.00 | G78: 27561.00 | H78: 28301.00 | I78: 28523.00 | J78: 28671.00 | K78: 28375 | L78: 28005 | M78: 0.50476
A79: 70 | B79: EMAMILTD | C79: 522.55 | D79: 522.53 | E79: 515.17 | F79: 507.78 | G79: 500.42 | H79: 529.92 | I79: 537.28 | J79: 544.67 | K79: 529.9 | L79: 515.15 | M79: 0.54298
A80: 71 | B80: ENDURANCE | C80: 1245.15 | D80: 1239.63 | E80: 1209.52 | F80: 1173.88 | G80: 1143.77 | H80: 1275.27 | I80: 1305.38 | J80: 1341.02 | K80: 1269.75 | L80: 1204 | M80: 0.32943
A81: 72 | B81: ENGINERSIN | C81: 125.05 | D81: 123.63 | E81: 121.47 | F81: 117.88 | G81: 115.72 | H81: 127.22 | I81: 129.38 | J81: 132.97 | K81: 125.8 | L81: 120.05 | M81: 18.66774
A82: 73 | B82: EXIDEIND | C82: 262.35 | D82: 260.82 | E82: 257.33 | F82: 252.32 | G82: 248.83 | H82: 265.83 | I82: 269.32 | J82: 274.33 | K82: 264.3 | L82: 255.8 | M82: 22.15093
A83: 74 | B83: FEDERALBNK | C83: 83.3 | D83: 82.53 | E83: 81.47 | F83: 79.63 | G83: 78.57 | H83: 84.37 | I83: 85.43 | J83: 87.27 | K83: 83.6 | L83: 80.7 | M83: 77.27791
A84: 75 | B84: GAIL | C84: 345.3 | D84: 342.92 | E84: 338.38 | F84: 331.47 | G84: 326.93 | H84: 349.83 | I84: 354.37 | J84: 361.28 | K84: 347.45 | L84: 336 | M84: 37.36925
A85: 76 | B85: GMRINFRA | C85: 16 | D85: 15.87 | E85: 15.63 | F85: 15.27 | G85: 15.03 | H85: 16.23 | I85: 16.47 | J85: 16.83 | K85: 16.1 | L85: 15.5 | M85: 323.51704
A86: 77 | B86: GSKCONS | C86: 6405 | D86: 6420.23 | E86: 6344.87 | F86: 6284.73 | G86: 6209.37 | H86: 6480.37 | I86: 6555.73 | J86: 6615.87 | K86: 6495.6 | L86: 6360.1 | M86: 0.08702
A87: 78 | B87: GLAXO | C87: 2834.45 | D87: 2821.45 | E87: 2794.90 | F87: 2755.35 | G87: 2728.80 | H87: 2861.00 | I87: 2887.55 | J87: 2927.10 | K87: 2848 | L87: 2781.9 | M87: 0.10964
A88: 79 | B88: GLENMARK | C88: 588.8 | D88: 584.83 | E88: 577.47 | F88: 566.13 | G88: 558.77 | H88: 596.17 | I88: 603.53 | J88: 614.87 | K88: 592.2 | L88: 573.5 | M88: 7.77737
A89: 80 | B89: GODREJCP | C89: 1250.55 | D89: 1246.95 | E89: 1238.90 | F89: 1227.25 | G89: 1219.20 | H89: 1258.60 | I89: 1266.65 | J89: 1278.30 | K89: 1255 | L89: 1235.3 | M89: 3.31231
A90: 81 | B90: GODREJIND | C90: 617.65 | D90: 621.25 | E90: 610.50 | F90: 603.35 | G90: 592.60 | H90: 628.40 | I90: 639.15 | J90: 646.30 | K90: 632 | L90: 614.1 | M90: 8.12091
A91: 82 | B91: GRUH | C91: 319.65 | D91: 315.52 | E91: 309.03 | F91: 298.42 | G91: 291.93 | H91: 326.13 | I91: 332.62 | J91: 343.23 | K91: 322 | L91: 304.9 | M91: 5.52118
A92: 83 | B92: GPPL | C92: 103.8 | D92: 103.67 | E92: 102.23 | F92: 100.67 | G92: 99.23 | H92: 105.23 | I92: 106.67 | J92: 108.23 | K92: 105.1 | L92: 102.1 | M92: 0.99552
A93: 84 | B93: GSPL | C93: 177.35 | D93: 178.38 | E93: 175.77 | F93: 174.18 | G93: 171.57 | H93: 179.97 | I93: 182.58 | J93: 184.17 | K93: 181 | L93: 176.8 | M93: 0.7477
A94: 85 | B94: HCLTECH | C94: 937.5 | D94: 931.52 | E94: 923.13 | F94: 908.77 | G94: 900.38 | H94: 945.88 | I94: 954.27 | J94: 968.63 | K94: 939.9 | L94: 917.15 | M94: 10.27238
A95: 86 | B95: HDFCBANK | C95: 2070.2 | D95: 2073.60 | E95: 2062.20 | F95: 2054.20 | G95: 2042.80 | H95: 2081.60 | I95: 2093.00 | J95: 2101.00 | K95: 2085 | L95: 2065.6 | M95: 17.15775
A96: 87 | B96: HAVELLS | C96: 543.5 | D96: 541.38 | E96: 534.77 | F96: 526.03 | G96: 519.42 | H96: 550.12 | I96: 556.73 | J96: 565.47 | K96: 548 | L96: 532.65 | M96: 5.5237
A97: 88 | B97: HEROMOTOCO | C97: 3447.65 | D97: 3455.05 | E97: 3425.15 | F97: 3402.65 | G97: 3372.75 | H97: 3477.55 | I97: 3507.45 | J97: 3529.95 | K97: 3484.95 | L97: 3432.55 | M97: 2.89618
A98: 89 | B98: HEXAWARE | C98: 468.35 | D98: 464.33 | E98: 457.77 | F98: 447.18 | G98: 440.62 | H98: 474.92 | I98: 481.48 | J98: 492.07 | K98: 470.9 | L98: 453.75 | M98: 9.32875
A99: 90 | B99: HINDALCO | C99: 226.1 | D99: 224.75 | E99: 222.05 | F99: 218.00 | G99: 215.30 | H99: 228.80 | I99: 231.50 | J99: 235.55 | K99: 227.45 | L99: 220.7 | M99: 80.01296
A100: 91 | B100: HINDPETRO | C100: 258.85 | D100: 259.78 | E100: 256.57 | F100: 254.28 | G100: 251.07 | H100: 262.07 | I100: 265.28 | J100: 267.57 | K100: 263 | L100: 257.5 | M100: 43.21401
A101: 92 | B101: HINDUNILVR | C101: 1643.5 | D101: 1646.53 | E101: 1631.97 | F101: 1620.43 | G101: 1605.87 | H101: 1658.07 | I101: 1672.63 | J101: 1684.17 | K101: 1661.1 | L101: 1635 | M101: 13.81265
A102: 93 | B102: HINDZINC | C102: 277.35 | D102: 278.55 | E102: 274.45 | F102: 271.55 | G102: 267.45 | H102: 281.45 | I102: 285.55 | J102: 288.45 | K102: 282.65 | L102: 275.65 | M102: 15.9995
A103: 94 | B103: HUDCO | C103: 55.2 | D103: 55.22 | E103: 54.83 | F103: 54.47 | G103: 54.08 | H103: 55.58 | I103: 55.97 | J103: 56.33 | K103: 55.6 | L103: 54.85 | M103: 4.41095
A104: 95 | B104: HDFC | C104: 1879.7 | D104: 1884.78 | E104: 1869.57 | F104: 1859.43 | G104: 1844.22 | H104: 1894.92 | I104: 1910.13 | J104: 1920.27 | K104: 1900 | L104: 1874.65 | M104: 16.87705
A105: 96 | B105: ITC | C105: 265.45 | D105: 264.45 | E105: 262.15 | F105: 258.85 | G105: 256.55 | H105: 267.75 | I105: 270.05 | J105: 273.35 | K105: 266.75 | L105: 261.15 | M105: 103.85004
A106: 97 | B106: ICICIBANK | C106: 272.9 | D106: 273.97 | E106: 271.13 | F106: 269.37 | G106: 266.53 | H106: 275.73 | I106: 278.57 | J106: 280.33 | K106: 276.8 | L106: 272.2 | M106: 140.20388
A107: 98 | B107: ICICIPRULI | C107: 375.2 | D107: 371.67 | E107: 364.78 | F107: 354.37 | G107: 347.48 | H107: 382.08 | I107: 388.97 | J107: 399.38 | K107: 378.55 | L107: 361.25 | M107: 19.89096
A108: 99 | B108: IDBI | C108: 52.45 | D108: 53.43 | E108: 51.22 | F108: 49.98 | G108: 47.77 | H108: 54.67 | I108: 56.88 | J108: 58.12 | K108: 55.65 | L108: 52.2 | M108: 296.6814
A109: 100 | B109: IDFCBANK | C109: 39.2 | D109: 39.07 | E109: 38.48 | F109: 37.77 | G109: 37.18 | H109: 39.78 | I109: 40.37 | J109: 41.08 | K109: 39.65 | L109: 38.35 | M109: 162.80684
A110: 101 | B110: IDFC | C110: 46.4 | D110: 46.12 | E110: 45.63 | F110: 44.87 | G110: 44.38 | H110: 46.88 | I110: 47.37 | J110: 48.13 | K110: 46.6 | L110: 45.35 | M110: 21.2274
A111: 102 | B111: IRB | C111: 208.3 | D111: 207.22 | E111: 203.93 | F111: 199.57 | G111: 196.28 | H111: 211.58 | I111: 214.87 | J111: 219.23 | K111: 210.5 | L111: 202.85 | M111: 10.7663
A112: 103 | B112: IDEA | C112: 56.8 | D112: 56.95 | E112: 55.95 | F112: 55.10 | G112: 54.10 | H112: 57.80 | I112: 58.80 | J112: 59.65 | K112: 57.95 | L112: 56.1 | M112: 102.96382
A113: 104 | B113: IBULHSGFIN | C113: 1125.5 | D113: 1120.82 | E113: 1111.73 | F113: 1097.97 | G113: 1088.88 | H113: 1134.58 | I113: 1143.67 | J113: 1157.43 | K113: 1129.9 | L113: 1107.05 | M113: 10.28758
A114: 105 | B114: INDIANB | C114: 339.4 | D114: 340.30 | E114: 336.55 | F114: 333.70 | G114: 329.95 | H114: 343.15 | I114: 346.90 | J114: 349.75 | K114: 344.05 | L114: 337.45 | M114: 6.51334
A115: 106 | B115: INDHOTEL | C115: 131.35 | D115: 131.08 | E115: 129.27 | F115: 127.18 | G115: 125.37 | H115: 133.17 | I115: 134.98 | J115: 137.07 | K115: 132.9 | L115: 129 | M115: 8.07438
A116: 107 | B116: IOC | C116: 155.3 | D116: 154.70 | E116: 153.60 | F116: 151.90 | G116: 150.80 | H116: 156.40 | I116: 157.50 | J116: 159.20 | K116: 155.8 | L116: 153 | M116: 81.48192
A117: 108 | B117: IGL | C117: 261 | D117: 258.72 | E117: 255.43 | F117: 249.87 | G117: 246.58 | H117: 264.28 | I117: 267.57 | J117: 273.13 | K117: 262 | L117: 253.15 | M117: 18.72353
A118: 109 | B118: INDUSINDBK | C118: 1951 | D118: 1947.27 | E118: 1938.73 | F118: 1926.47 | G118: 1917.93 | H118: 1959.53 | I118: 1968.07 | J118: 1980.33 | K118: 1955.8 | L118: 1935 | M118: 9.26035
A119: 110 | B119: NAUKRI | C119: 1169.75 | D119: 1179.25 | E119: 1145.50 | F119: 1121.25 | G119: 1087.50 | H119: 1203.50 | I119: 1237.25 | J119: 1261.50 | K119: 1213 | L119: 1155 | M119: 0.51303
A120: 111 | B120: INFY | C120: 1353.75 | D120: 1347.80 | E120: 1337.70 | F120: 1321.65 | G120: 1311.55 | H120: 1363.85 | I120: 1373.95 | J120: 1390.00 | K120: 1357.9 | L120: 1331.75 | M120: 40.63726
A121: 112 | B121: INDIGO | C121: 1063.95 | D121: 1056.42 | E121: 1042.83 | F121: 1021.72 | G121: 1008.13 | H121: 1077.53 | I121: 1091.12 | J121: 1112.23 | K121: 1070 | L121: 1035.3 | M121: 16.70197
A122: 113 | B122: IPCALAB | C122: 679.2 | D122: 682.10 | E122: 672.20 | F122: 665.20 | G122: 655.30 | H122: 689.10 | I122: 699.00 | J122: 706.00 | K122: 692 | L122: 675.1 | M122: 0.74458
A123: 114 | B123: JSWENERGY | C123: 64.45 | D123: 64.13 | E123: 63.32 | F123: 62.18 | G123: 61.37 | H123: 65.27 | I123: 66.08 | J123: 67.22 | K123: 64.95 | L123: 63 | M123: 8.06459
A124: 115 | B124: JSWSTEEL | C124: 311.7 | D124: 310.83 | E124: 306.87 | F124: 302.03 | G124: 298.07 | H124: 315.67 | I124: 319.63 | J124: 324.47 | K124: 314.8 | L124: 306 | M124: 53.55915
A125: 116 | B125: JINDALSTEL | C125: 208.65 | D125: 209.03 | E125: 205.17 | F125: 201.68 | G125: 197.82 | H125: 212.52 | I125: 216.38 | J125: 219.87 | K125: 212.9 | L125: 205.55 | M125: 100.71955
A126: 117 | B126: JUBLFOOD | C126: 1431.85 | D126: 1425.98 | E126: 1413.97 | F126: 1396.08 | G126: 1384.07 | H126: 1443.87 | I126: 1455.88 | J126: 1473.77 | K126: 1438 | L126: 1408.1 | M126: 14.60747
A127: 118 | B127: JUBILANT | C127: 696.7 | D127: 700.30 | E127: 688.60 | F127: 680.50 | G127: 668.80 | H127: 708.40 | I127: 720.10 | J127: 728.20 | K127: 712 | L127: 692.2 | M127: 3.13929
A128: 119 | B128: KARURVYSYA | C128: 102.85 | D128: 102.57 | E128: 101.53 | F128: 100.22 | G128: 99.18 | H128: 103.88 | I128: 104.92 | J128: 106.23 | K128: 103.6 | L128: 101.25 | M128: 3.75472
A129: 120 | B129: KOTAKBANK | C129: 1353.15 | D129: 1345.92 | E129: 1334.83 | F129: 1316.52 | G129: 1305.43 | H129: 1364.23 | I129: 1375.32 | J129: 1393.63 | K129: 1357 | L129: 1327.6 | M129: 14.87237
A130: 121 | B130: L&TFH | C130: 147.8 | D130: 147.23 | E130: 145.72 | F130: 143.63 | G130: 142.12 | H130: 149.32 | I130: 150.83 | J130: 152.92 | K130: 148.75 | L130: 145.15 | M130: 35.26545
A131: 122 | B131: LICHSGFIN | C131: 472.55 | D131: 468.65 | E131: 462.50 | F131: 452.45 | G131: 446.30 | H131: 478.70 | I131: 484.85 | J131: 494.90 | K131: 474.8 | L131: 458.6 | M131: 17.39412
A132: 123 | B132: LT | C132: 1251.5 | D132: 1253.85 | E132: 1243.70 | F132: 1235.90 | G132: 1225.75 | H132: 1261.65 | I132: 1271.80 | J132: 1279.60 | K132: 1264 | L132: 1246.05 | M132: 20.967
A133: 124 | B133: LUPIN | C133: 903.1 | D133: 897.03 | E133: 887.07 | F133: 871.03 | G133: 861.07 | H133: 913.07 | I133: 923.03 | J133: 939.07 | K133: 907 | L133: 881 | M133: 23.04392
A134: 125 | B134: MRF | C134: 75459.2 | D134: 75403.07 | E134: 74956.13 | F134: 74453.07 | G134: 74006.13 | H134: 75906.13 | I134: 76353.07 | J134: 76856.13 | K134: 75850 | L134: 74900 | M134: 0.02537
A135: 126 | B135: MGL | C135: 823.9 | D135: 820.32 | E135: 813.63 | F135: 803.37 | G135: 796.68 | H135: 830.58 | I135: 837.27 | J135: 847.53 | K135: 827 | L135: 810.05 | M135: 1.65659
A136: 127 | B136: M&MFIN | C136: 464.8 | D136: 460.72 | E136: 451.08 | F136: 437.37 | G136: 427.73 | H136: 474.43 | I136: 484.07 | J136: 497.78 | K136: 470.35 | L136: 447 | M136: 13.90195
A137: 128 | B137: M&M | C137: 894.2 | D137: 890.58 | E137: 882.67 | F137: 871.13 | G137: 863.22 | H137: 902.12 | I137: 910.03 | J137: 921.57 | K137: 898.5 | L137: 879.05 | M137: 14.06654
A138: 129 | B138: MANAPPURAM | C138: 99.65 | D138: 99.35 | E138: 97.90 | F138: 96.15 | G138: 94.70 | H138: 101.10 | I138: 102.55 | J138: 104.30 | K138: 100.8 | L138: 97.6 | M138: 23.69292
A139: 130 | B139: MRPL | C139: 78.5 | D139: 78.30 | E139: 77.00 | F139: 75.50 | G139: 74.20 | H139: 79.80 | I139: 81.10 | J139: 82.60 | K139: 79.6 | L139: 76.8 | M139: 10.11062
A140: 131 | B140: MARICO | C140: 340.8 | D140: 337.67 | E140: 333.13 | F140: 325.47 | G140: 320.93 | H140: 345.33 | I140: 349.87 | J140: 357.53 | K140: 342.2 | L140: 330 | M140: 15.93709
A141: 132 | B141: MARUTI | C141: 8975.15 | D141: 8906.72 | E141: 8818.43 | F141: 8661.72 | G141: 8573.43 | H141: 9063.43 | I141: 9151.72 | J141: 9308.43 | K141: 8995 | L141: 8750 | M141: 3.75718
A142: 133 | B142: MFSL | C142: 423.6 | D142: 425.83 | E142: 417.87 | F142: 412.13 | G142: 404.17 | H142: 431.57 | I142: 439.53 | J142: 445.27 | K142: 433.8 | L142: 420.1 | M142: 6.19346
A143: 134 | B143: MINDTREE | C143: 1004.55 | D143: 998.15 | E143: 987.50 | F143: 970.45 | G143: 959.80 | H143: 1015.20 | I143: 1025.85 | J143: 1042.90 | K143: 1008.8 | L143: 981.1 | M143: 8.98479
A144: 135 | B144: MOTHERSUMI | C144: 292.55 | D144: 289.87 | E144: 285.73 | F144: 278.92 | G144: 274.78 | H144: 296.68 | I144: 300.82 | J144: 307.63 | K144: 294 | L144: 283.05 | M144: 37.6362
A145: 136 | B145: MPHASIS | C145: 1099.8 | D145: 1090.60 | E145: 1071.20 | F145: 1042.60 | G145: 1023.20 | H145: 1119.20 | I145: 1138.60 | J145: 1167.20 | K145: 1110 | L145: 1062 | M145: 4.61917
A146: 137 | B146: MUTHOOTFIN | C146: 388.35 | D146: 386.75 | E146: 381.65 | F146: 374.95 | G146: 369.85 | H146: 393.45 | I146: 398.55 | J146: 405.25 | K146: 391.85 | L146: 380.05 | M146: 2.07448
A147: 138 | B147: NATCOPHARM | C147: 796.55 | D147: 797.83 | E147: 787.67 | F147: 778.78 | G147: 768.62 | H147: 806.72 | I147: 816.88 | J147: 825.77 | K147: 808 | L147: 788.95 | M147: 0.9987
A148: 139 | B148: NBCC | C148: 71.3 | D148: 71.83 | E148: 70.22 | F148: 69.13 | G148: 67.52 | H148: 72.92 | I148: 74.53 | J148: 75.62 | K148: 73.45 | L148: 70.75 | M148: 51.91117
A149: 140 | B149: NHPC | C149: 22.8 | D149: 22.80 | E149: 22.60 | F149: 22.40 | G149: 22.20 | H149: 23.00 | I149: 23.20 | J149: 23.40 | K149: 23 | L149: 22.6 | M149: 58.7178
A150: 141 | B150: NMDC | C150: 104.7 | D150: 104.88 | E150: 103.97 | F150: 103.23 | G150: 102.32 | H150: 105.62 | I150: 106.53 | J150: 107.27 | K150: 105.8 | L150: 104.15 | M150: 8.7269
A151: 142 | B151: NTPC | C151: 155 | D151: 154.02 | E151: 152.58 | F151: 150.17 | G151: 148.73 | H151: 156.43 | I151: 157.87 | J151: 160.28 | K151: 155.45 | L151: 151.6 | M151: 62.55606
A152: 143 | B152: NATIONALUM | C152: 63.55 | D152: 62.83 | E152: 61.57 | F152: 59.58 | G152: 58.32 | H152: 64.82 | I152: 66.08 | J152: 68.07 | K152: 64.1 | L152: 60.85 | M152: 139.61589
A153: 144 | B153: OBEROIRLTY | C153: 476.5 | D153: 474.17 | E153: 468.33 | F153: 460.17 | G153: 454.33 | H153: 482.33 | I153: 488.17 | J153: 496.33 | K153: 480 | L153: 466 | M153: 2.91741
A154: 145 | B154: ONGC | C154: 157.7 | D154: 158.00 | E154: 154.40 | F154: 151.10 | G154: 147.50 | H154: 161.30 | I154: 164.90 | J154: 168.20 | K154: 161.6 | L154: 154.7 | M154: 120.8783
A155: 146 | B155: OIL | C155: 208.5 | D155: 208.30 | E155: 206.35 | F155: 204.20 | G155: 202.25 | H155: 210.45 | I155: 212.40 | J155: 214.55 | K155: 210.25 | L155: 206.15 | M155: 4.59786
A156: 147 | B156: OFSS | C156: 4003.9 | D156: 4007.87 | E156: 3956.03 | F156: 3908.17 | G156: 3856.33 | H156: 4055.73 | I156: 4107.57 | J156: 4155.43 | K156: 4059.7 | L156: 3960 | M156: 0.20805
A157: 148 | B157: PCJEWELLER | C157: 134.5 | D157: 134.83 | E157: 133.22 | F157: 131.93 | G157: 130.32 | H157: 136.12 | I157: 137.73 | J157: 139.02 | K157: 136.45 | L157: 133.55 | M157: 61.82708
A158: 149 | B158: PIIND | C158: 760.2 | D158: 758.08 | E158: 752.17 | F158: 744.13 | G158: 738.22 | H158: 766.12 | I158: 772.03 | J158: 780.07 | K158: 764 | L158: 750.05 | M158: 1.10452
A159: 150 | B159: PNBHOUSING | C159: 1097.85 | D159: 1096.05 | E159: 1085.15 | F159: 1072.45 | G159: 1061.55 | H159: 1108.75 | I159: 1119.65 | J159: 1132.35 | K159: 1106.95 | L159: 1083.35 | M159: 1.18708
A160: 151 | B160: PAGEIND | C160: 28193.05 | D160: 28170.20 | E160: 27989.85 | F160: 27786.65 | G160: 27606.30 | H160: 28373.40 | I160: 28553.75 | J160: 28756.95 | K160: 28350.55 | L160: 27967 | M160: 0.13321
A161: 152 | B161: PETRONET | C161: 216.9 | D161: 216.97 | E161: 214.18 | F161: 211.47 | G161: 208.68 | H161: 219.68 | I161: 222.47 | J161: 225.18 | K161: 219.75 | L161: 214.25 | M161: 19.84479
A162: 153 | B162: PIDILITIND | C162: 1064.05 | D162: 1067.33 | E162: 1056.72 | F162: 1049.38 | G162: 1038.77 | H162: 1074.67 | I162: 1085.28 | J162: 1092.62 | K162: 1077.95 | L162: 1060 | M162: 4.37192
A163: 154 | B163: PEL | C163: 2462.75 | D163: 2456.00 | E163: 2428.70 | F163: 2394.65 | G163: 2367.35 | H163: 2490.05 | I163: 2517.35 | J163: 2551.40 | K163: 2483.3 | L163: 2421.95 | M163: 1.56467
A164: 155 | B164: PFC | C164: 73.8 | D164: 73.83 | E164: 73.02 | F164: 72.23 | G164: 71.42 | H164: 74.62 | I164: 75.43 | J164: 76.22 | K164: 74.65 | L164: 73.05 | M164: 72.17413
A165: 156 | B165: POWERGRID | C165: 184.55 | D165: 183.73 | E165: 182.02 | F165: 179.48 | G165: 177.77 | H165: 186.27 | I165: 187.98 | J165: 190.52 | K165: 185.45 | L165: 181.2 | M165: 56.19804
A166: 157 | B166: PRESTIGE | C166: 272.9 | D166: 273.78 | E166: 267.62 | F166: 262.33 | G166: 256.17 | H166: 279.07 | I166: 285.23 | J166: 290.52 | K166: 279.95 | L166: 268.5 | M166: 0.90783
A167: 158 | B167: PGHH | C167: 9844.35 | D167: 9852.80 | E167: 9791.55 | F167: 9738.75 | G167: 9677.50 | H167: 9905.60 | I167: 9966.85 | J167: 10019.65 | K167: 9914.05 | L167: 9800 | M167: 0.05708
A168: 159 | B168: PNB | C168: 77.15 | D168: 77.05 | E168: 75.95 | F168: 74.75 | G168: 73.65 | H168: 78.25 | I168: 79.35 | J168: 80.55 | K168: 78.15 | L168: 75.85 | M168: 207.67258
A169: 160 | B169: RBLBANK | C169: 564.95 | D169: 560.52 | E169: 553.18 | F169: 541.42 | G169: 534.08 | H169: 572.28 | I169: 579.62 | J169: 591.38 | K169: 567.85 | L169: 548.75 | M169: 12.15241
A170: 161 | B170: RAJESHEXPO | C170: 586.45 | D170: 589.88 | E170: 576.77 | F170: 567.08 | G170: 553.97 | H170: 599.57 | I170: 612.68 | J170: 622.37 | K170: 603 | L170: 580.2 | M170: 6.27419
A171: 162 | B171: RELCAPITAL | C171: 369.4 | D171: 370.40 | E171: 364.20 | F171: 359.00 | G171: 352.80 | H171: 375.60 | I171: 381.80 | J171: 387.00 | K171: 376.6 | L171: 365.2 | M171: 43.90806
A172: 163 | B172: RCOM | C172: 13.35 | D172: 13.33 | E172: 13.17 | F172: 12.98 | G172: 12.82 | H172: 13.52 | I172: 13.68 | J172: 13.87 | K172: 13.5 | L172: 13.15 | M172: 310.02638
A173: 164 | B173: RELIANCE | C173: 971.3 | D173: 970.03 | E173: 961.62 | F173: 951.93 | G173: 943.52 | H173: 979.72 | I173: 988.13 | J173: 997.82 | K173: 978.45 | L173: 960.35 | M173: 50.67261
A174: 165 | B174: RELINFRA | C174: 387.5 | D174: 385.65 | E174: 380.85 | F174: 374.20 | G174: 369.40 | H174: 392.30 | I174: 397.10 | J174: 403.75 | K174: 390.45 | L174: 379 | M174: 22.69043
A175: 166 | B175: RPOWER | C175: 31.3 | D175: 31.22 | E175: 30.83 | F175: 30.37 | G175: 29.98 | H175: 31.68 | I175: 32.07 | J175: 32.53 | K175: 31.6 | L175: 30.75 | M175: 40.79607
A176: 167 | B176: RECLTD | C176: 102 | D176: 102.22 | E176: 100.68 | F176: 99.37 | G176: 97.83 | H176: 103.53 | I176: 105.07 | J176: 106.38 | K176: 103.75 | L176: 100.9 | M176: 30.28917
A177: 168 | B177: SRF | C177: 1661 | D177: 1653.92 | E177: 1638.63 | F177: 1616.27 | G177: 1600.98 | H177: 1676.28 | I177: 1691.57 | J177: 1713.93 | K177: 1669.2 | L177: 1631.55 | M177: 2.90724
A178: 169 | B178: SHREECEM | C178: 15978.45 | D178: 15886.55 | E178: 15726.95 | F178: 15475.45 | G178: 15315.85 | H178: 16138.05 | I178: 16297.65 | J178: 16549.15 | K178: 16046.15 | L178: 15635.05 | M178: 0.16353
A179: 170 | B179: SRTRANSFIN | C179: 1297 | D179: 1305.43 | E179: 1279.62 | F179: 1262.23 | G179: 1236.42 | H179: 1322.82 | I179: 1348.63 | J179: 1366.02 | K179: 1331.25 | L179: 1288.05 | M179: 9.44024
A180: 171 | B180: SIEMENS | C180: 975.2 | D180: 974.37 | E180: 964.28 | F180: 953.37 | G180: 943.28 | H180: 985.28 | I180: 995.37 | J180: 1006.28 | K180: 984.45 | L180: 963.45 | M180: 0.87674
A181: 172 | B181: SBIN | C181: 257.5 | D181: 258.27 | E181: 255.63 | F181: 253.77 | G181: 251.13 | H181: 260.13 | I181: 262.77 | J181: 264.63 | K181: 260.9 | L181: 256.4 | M181: 160.9903
A182: 173 | B182: SAIL | C182: 80.5 | D182: 80.38 | E182: 79.17 | F182: 77.83 | G182: 76.62 | H182: 81.72 | I182: 82.93 | J182: 84.27 | K182: 81.6 | L182: 79.05 | M182: 95.87521
A183: 174 | B183: SPARC | C183: 384.2 | D183: 377.72 | E183: 367.43 | F183: 350.67 | G183: 340.38 | H183: 394.48 | I183: 404.77 | J183: 421.53 | K183: 388 | L183: 360.95 | M183: 5.17924
A184: 175 | B184: SUNPHARMA | C184: 573.6 | D184: 570.37 | E184: 563.93 | F184: 554.27 | G184: 547.83 | H184: 580.03 | I184: 586.47 | J184: 596.13 | K184: 576.8 | L184: 560.7 | M184: 59.50013
A185: 176 | B185: SUNTV | C185: 793.1 | D185: 787.92 | E185: 779.83 | F185: 766.57 | G185: 758.48 | H185: 801.18 | I185: 809.27 | J185: 822.53 | K185: 796 | L185: 774.65 | M185: 11.51034
A186: 177 | B186: SUZLON | C186: 7.5 | D186: 7.45 | E186: 7.30 | F186: 7.10 | G186: 6.95 | H186: 7.65 | I186: 7.80 | J186: 8.00 | K186: 7.6 | L186: 7.25 | M186: 253.80328
A187: 178 | B187: SYNDIBANK | C187: 40.6 | D187: 40.57 | E187: 39.98 | F187: 39.37 | G187: 38.78 | H187: 41.18 | I187: 41.77 | J187: 42.38 | K187: 41.15 | L187: 39.95 | M187: 31.73193
A188: 179 | B188: SYNGENE | C188: 611 | D188: 607.52 | E188: 590.63 | F188: 570.27 | G188: 553.38 | H188: 627.88 | I188: 644.77 | J188: 665.13 | K188: 624.4 | L188: 587.15 | M188: 0.86047
A189: 180 | B189: TV18BRDCST | C189: 48.85 | D189: 48.42 | E189: 47.13 | F189: 45.42 | G189: 44.13 | H189: 50.13 | I189: 51.42 | J189: 53.13 | K189: 49.7 | L189: 46.7 | M189: 64.58721
A190: 181 | B190: TVSMOTOR | C190: 561.15 | D190: 559.38 | E190: 553.77 | F190: 546.38 | G190: 540.77 | H190: 566.77 | I190: 572.38 | J190: 579.77 | K190: 565 | L190: 552 | M190: 5.67046
A191: 182 | B191: TATACHEM | C191: 703.65 | D191: 702.22 | E191: 686.43 | F191: 669.22 | G191: 653.43 | H191: 719.43 | I191: 735.22 | J191: 752.43 | K191: 718 | L191: 685 | M191: 6.7808
A192: 183 | B192: TATACOMM | C192: 588.2 | D192: 587.88 | E192: 580.97 | F192: 573.73 | G192: 566.82 | H192: 595.12 | I192: 602.03 | J192: 609.27 | K192: 594.8 | L192: 580.65 | M192: 14.65494
A193: 184 | B193: TCS | C193: 1874.05 | D193: 1870.33 | E193: 1860.77 | F193: 1847.48 | G193: 1837.92 | H193: 1883.62 | I193: 1893.18 | J193: 1906.47 | K193: 1879.9 | L193: 1857.05 | M193: 32.42233
A194: 185 | B194: TATAGLOBAL | C194: 281 | D194: 276.07 | E194: 267.63 | F194: 254.27 | G194: 245.83 | H194: 289.43 | I194: 297.87 | J194: 311.23 | K194: 284.5 | L194: 262.7 | M194: 66.7666
A195: 186 | B195: TATAMTRDVR | C195: 157.6 | D195: 158.00 | E195: 156.40 | F195: 155.20 | G195: 153.60 | H195: 159.20 | I195: 160.80 | J195: 162.00 | K195: 159.6 | L195: 156.8 | M195: 21.78787
A196: 187 | B196: TATAMOTORS | C196: 269.45 | D196: 269.38 | E196: 267.27 | F196: 265.08 | G196: 262.97 | H196: 271.57 | I196: 273.68 | J196: 275.87 | K196: 271.5 | L196: 267.2 | M196: 114.84332
A197: 188 | B197: TATAPOWER | C197: 72.2 | D197: 72.37 | E197: 71.73 | F197: 71.27 | G197: 70.63 | H197: 72.83 | I197: 73.47 | J197: 73.93 | K197: 73 | L197: 71.9 | M197: 31.49476
A198: 189 | B198: TATASTEEL | C198: 566 | D198: 563.95 | E198: 555.50 | F198: 545.00 | G198: 536.55 | H198: 574.45 | I198: 582.90 | J198: 593.40 | K198: 572.4 | L198: 553.45 | M198: 112.36177
A199: 190 | B199: TECHM | C199: 660.85 | D199: 660.45 | E199: 654.70 | F199: 648.55 | G199: 642.80 | H199: 666.60 | I199: 672.35 | J199: 678.50 | K199: 666.2 | L199: 654.3 | M199: 35.06534
A200: 191 | B200: RAMCOCEM | C200: 704 | D200: 702.53 | E200: 697.47 | F200: 690.93 | G200: 685.87 | H200: 709.07 | I200: 714.13 | J200: 720.67 | K200: 707.6 | L200: 696 | M200: 0.69822
A201: 192 | B201: TITAN | C201: 893.2 | D201: 893.27 | E201: 883.73 | F201: 874.27 | G201: 864.73 | H201: 902.73 | I201: 912.27 | J201: 921.73 | K201: 902.8 | L201: 883.8 | M201: 27.70123
A202: 193 | B202: TORNTPHARM | C202: 1446.4 | D202: 1435.62 | E202: 1411.18 | F202: 1375.97 | G202: 1351.53 | H202: 1470.83 | I202: 1495.27 | J202: 1530.48 | K202: 1460.05 | L202: 1400.4 | M202: 2.62769
A203: 194 | B203: TORNTPOWER | C203: 220.4 | D203: 221.13 | E203: 217.77 | F203: 215.13 | G203: 211.77 | H203: 223.77 | I203: 227.13 | J203: 229.77 | K203: 224.5 | L203: 218.5 | M203: 7.48009
A204: 195 | B204: UPL | C204: 630.25 | D204: 625.75 | E204: 619.50 | F204: 608.75 | G204: 602.50 | H204: 636.50 | I204: 642.75 | J204: 653.50 | K204: 632 | L204: 615 | M204: 8.73384
A205: 196 | B205: ULTRACEMCO | C205: 3749.85 | D205: 3755.07 | E205: 3725.13 | F205: 3700.42 | G205: 3670.48 | H205: 3779.78 | I205: 3809.72 | J205: 3834.43 | K205: 3785 | L205: 3730.35 | M205: 2.44401
... 30 more rows

Sheet MidCap Intra
L5: Back To Main Page
A6: FOR INTRA DAY TRADING | K6: =Main!B10 -> 2018-07-04
A9: Sr.no | B9: Scrip | C9: CLOSE RATE | D9: Pivot Point | E9: Supports | H9: Resistances
C10: Point | E10: S1 | F10: S2 | G10: S3 | H10: R1 | I10: R2 | J10: R3 | K10: HIGH | L10: LOW | M10: Total Trade Quanity in Lakhs
A11: 1 | B11: 3MINDIA | C11: 19553.75 | D11: 19601.43 | E11: 19402.37 | F11: 19250.98 | G11: 19051.92 | H11: 19752.82 | I11: 19951.88 | J11: 20103.27 | K11: 19800.5 | L11: 19450.05 | M11: 0.00472
A12: 2 | B12: 8KMILES | C12: 316.4 | D12: 331.40 | E12: 298.80 | F12: 281.20 | G12: 248.60 | H12: 349.00 | I12: 381.60 | J12: 399.20 | K12: 364 | L12: 313.8 | M12: 66.48146
A13: 3 | B13: AARTIIND | C13: 1215.65 | D13: 1207.32 | E13: 1195.33 | F13: 1175.02 | G13: 1163.03 | H13: 1227.63 | I13: 1239.62 | J13: 1259.93 | K13: 1219.3 | L13: 1187 | M13: 0.13905
A14: 4 | B14: ABAN | C14: 116.2 | D14: 114.72 | E14: 108.98 | F14: 101.77 | G14: 96.03 | H14: 121.93 | I14: 127.67 | J14: 134.88 | K14: 120.45 | L14: 107.5 | M14: 20.12079
A15: 5 | B15: ABB | C15: 1173.55 | D15: 1177.38 | E15: 1166.17 | F15: 1158.78 | G15: 1147.57 | H15: 1184.77 | I15: 1195.98 | J15: 1203.37 | K15: 1188.6 | L15: 1170 | M15: 0.1962
A16: 6 | B16: ABCAPITAL | C16: 129.75 | D16: 129.75 | E16: 128.50 | F16: 127.25 | G16: 126.00 | H16: 131.00 | I16: 132.25 | J16: 133.50 | K16: 131 | L16: 128.5 | M16: 7.21282
A17: 7 | B17: ABFRL | C17: 139.55 | D17: 138.70 | E17: 137.00 | F17: 134.45 | G17: 132.75 | H17: 141.25 | I17: 142.95 | J17: 145.50 | K17: 140.4 | L17: 136.15 | M17: 2.0236
A18: 8 | B18: ACC | C18: 1332.85 | D18: 1325.95 | E18: 1308.90 | F18: 1284.95 | G18: 1267.90 | H18: 1349.90 | I18: 1366.95 | J18: 1390.90 | K18: 1343 | L18: 1302 | M18: 2.84242
A19: 9 | B19: ADANIPORTS | C19: 362.75 | D19: 362.82 | E19: 360.18 | F19: 357.62 | G19: 354.98 | H19: 365.38 | I19: 368.02 | J19: 370.58 | K19: 365.45 | L19: 360.25 | M19: 14.88048
A20: 10 | B20: ADANIPOWER | C20: 16 | D20: 15.82 | E20: 15.48 | F20: 14.97 | G20: 14.63 | H20: 16.33 | I20: 16.67 | J20: 17.18 | K20: 16.15 | L20: 15.3 | M20: 104.69657
A21: 11 | B21: ADANITRANS | C21: 153.65 | D21: 152.25 | E21: 149.70 | F21: 145.75 | G21: 143.20 | H21: 156.20 | I21: 158.75 | J21: 162.70 | K21: 154.8 | L21: 148.3 | M21: 5.94571
A22: 12 | B22: ADVENZYMES | C22: 213.25 | D22: 213.08 | E22: 211.17 | F22: 209.08 | G22: 207.17 | H22: 215.17 | I22: 217.08 | J22: 219.17 | K22: 215 | L22: 211 | M22: 0.69347
A23: 13 | B23: AEGISCHEM | C23: 207.45 | D23: 206.45 | E23: 204.70 | F23: 201.95 | G23: 200.20 | H23: 209.20 | I23: 210.95 | J23: 213.70 | K23: 208.2 | L23: 203.7 | M23: 0.75675
A24: 14 | B24: AIAENG | C24: 1515.65 | D24: 1510.00 | E24: 1487.30 | F24: 1458.95 | G24: 1436.25 | H24: 1538.35 | I24: 1561.05 | J24: 1589.40 | K24: 1532.7 | L24: 1481.65 | M24: 0.62427
A25: 15 | B25: AJANTPHARM | C25: 1028.75 | D25: 1013.20 | E25: 991.55 | F25: 954.35 | G25: 932.70 | H25: 1050.40 | I25: 1072.05 | J25: 1109.25 | K25: 1034.85 | L25: 976 | M25: 5.45333
A26: 16 | B26: AKZOINDIA | C26: 1870.7 | D26: 1860.83 | E26: 1849.87 | F26: 1829.03 | G26: 1818.07 | H26: 1881.67 | I26: 1892.63 | J26: 1913.47 | K26: 1871.8 | L26: 1840 | M26: 0.05185
A27: 17 | B27: ALBK | C27: 41.2 | D27: 41.18 | E27: 40.57 | F27: 39.93 | G27: 39.32 | H27: 41.82 | I27: 42.43 | J27: 43.07 | K27: 41.8 | L27: 40.55 | M27: 50.32937
A28: 18 | B28: ALKEM | C28: 1894.9 | D28: 1873.07 | E28: 1827.63 | F28: 1760.37 | G28: 1714.93 | H28: 1940.33 | I28: 1985.77 | J28: 2053.03 | K28: 1918.5 | L28: 1805.8 | M28: 0.21583
A29: 19 | B29: ALLCARGO | C29: 111.25 | D29: 110.77 | E29: 106.48 | F29: 101.72 | G29: 97.43 | H29: 115.53 | I29: 119.82 | J29: 124.58 | K29: 115.05 | L29: 106 | M29: 16.98565
A30: 20 | B30: AMARAJABAT | C30: 762.35 | D30: 755.43 | E30: 746.42 | F30: 730.48 | G30: 721.47 | H30: 771.37 | I30: 780.38 | J30: 796.32 | K30: 764.45 | L30: 739.5 | M30: 4.01035
A31: 21 | B31: AMBUJACEM | C31: 200.9 | D31: 200.35 | E31: 198.40 | F31: 195.90 | G31: 193.95 | H31: 202.85 | I31: 204.80 | J31: 207.30 | K31: 202.3 | L31: 197.85 | M31: 41.34828
A32: 22 | B32: ANDHRABANK | C32: 32.2 | D32: 32.20 | E32: 31.45 | F32: 30.70 | G32: 29.95 | H32: 32.95 | I32: 33.70 | J32: 34.45 | K32: 32.95 | L32: 31.45 | M32: 42.34054
A33: 23 | B33: APLAPOLLO | C33: 1600.4 | D33: 1592.17 | E33: 1569.48 | F33: 1538.57 | G33: 1515.88 | H33: 1623.08 | I33: 1645.77 | J33: 1676.68 | K33: 1614.85 | L33: 1561.25 | M33: 0.18584
A34: 24 | B34: APLLTD | C34: 532.3 | D34: 525.27 | E34: 511.13 | F34: 489.97 | G34: 475.83 | H34: 546.43 | I34: 560.57 | J34: 581.73 | K34: 539.4 | L34: 504.1 | M34: 1.57509
A35: 25 | B35: APOLLOHOSP | C35: 1063.8 | D35: 1061.45 | E35: 1049.60 | F35: 1035.40 | G35: 1023.55 | H35: 1075.65 | I35: 1087.50 | J35: 1101.70 | K35: 1073.3 | L35: 1047.25 | M35: 5.36081
A36: 26 | B36: APOLLOTYRE | C36: 251.65 | D36: 252.58 | E36: 249.57 | F36: 247.48 | G36: 244.47 | H36: 254.67 | I36: 257.68 | J36: 259.77 | K36: 255.6 | L36: 250.5 | M36: 19.29833
A37: 27 | B37: ARVIND | C37: 390.5 | D37: 390.67 | E37: 386.53 | F37: 382.57 | G37: 378.43 | H37: 394.63 | I37: 398.77 | J37: 402.73 | K37: 394.8 | L37: 386.7 | M37: 5.43808
A38: 28 | B38: ASAHIINDIA | C38: 330.1 | D38: 330.35 | E38: 327.80 | F38: 325.50 | G38: 322.95 | H38: 332.65 | I38: 335.20 | J38: 337.50 | K38: 332.9 | L38: 328.05 | M38: 0.11759
A39: 29 | B39: ASHOKA | C39: 231.6 | D39: 230.03 | E39: 226.07 | F39: 220.53 | G39: 216.57 | H39: 235.57 | I39: 239.53 | J39: 245.07 | K39: 234 | L39: 224.5 | M39: 1.26864
A40: 30 | B40: ASHOKLEY | C40: 129.5 | D40: 128.07 | E40: 125.83 | F40: 122.17 | G40: 119.93 | H40: 131.73 | I40: 133.97 | J40: 137.63 | K40: 130.3 | L40: 124.4 | M40: 169.65698
A41: 31 | B41: ASIANPAINT | C41: 1291.85 | D41: 1296.18 | E41: 1283.77 | F41: 1275.68 | G41: 1263.27 | H41: 1304.27 | I41: 1316.68 | J41: 1324.77 | K41: 1308.6 | L41: 1288.1 | M41: 13.99979
A42: 32 | B42: ASTRAL | C42: 980.7 | D42: 982.25 | E42: 970.50 | F42: 960.30 | G42: 948.55 | H42: 992.45 | I42: 1004.20 | J42: 1014.40 | K42: 994 | L42: 972.05 | M42: 0.30593
A43: 33 | B43: ATUL | C43: 2694.4 | D43: 2681.42 | E43: 2652.98 | F43: 2611.57 | G43: 2583.13 | H43: 2722.83 | I43: 2751.27 | J43: 2792.68 | K43: 2709.85 | L43: 2640 | M43: 0.02004
A44: 34 | B44: AUBANK | C44: 670.6 | D44: 669.52 | E44: 659.23 | F44: 647.87 | G44: 637.58 | H44: 680.88 | I44: 691.17 | J44: 702.53 | K44: 679.8 | L44: 658.15 | M44: 0.91579
A45: 35 | B45: AUROPHARMA | C45: 626.8 | D45: 619.52 | E45: 609.28 | F45: 591.77 | G45: 581.53 | H45: 637.03 | I45: 647.27 | J45: 664.78 | K45: 629.75 | L45: 602 | M45: 45.26156
A46: 36 | B46: AVANTIFEED | C46: 483.05 | D46: 485.03 | E46: 469.02 | F46: 454.98 | G46: 438.97 | H46: 499.07 | I46: 515.08 | J46: 529.12 | K46: 501.05 | L46: 471 | M46: 13.26493
A47: 37 | B47: AXISBANK | C47: 511.55 | D47: 513.57 | E47: 507.23 | F47: 502.92 | G47: 496.58 | H47: 517.88 | I47: 524.22 | J47: 528.53 | K47: 519.9 | L47: 509.25 | M47: 66.58467
A48: 38 | B48: BAJAJ-AUTO | C48: 2862.4 | D48: 2859.80 | E48: 2837.60 | F48: 2812.80 | G48: 2790.60 | H48: 2884.60 | I48: 2906.80 | J48: 2931.60 | K48: 2882 | L48: 2835 | M48: 5.10764
A49: 39 | B49: BAJAJCORP | C49: 401.65 | D49: 401.23 | E49: 397.47 | F49: 393.28 | G49: 389.52 | H49: 405.42 | I49: 409.18 | J49: 413.37 | K49: 405 | L49: 397.05 | M49: 0.06662
A50: 40 | B50: BAJAJELEC | C50: 525.65 | D50: 526.32 | E50: 519.73 | F50: 513.82 | G50: 507.23 | H50: 532.23 | I50: 538.82 | J50: 544.73 | K50: 532.9 | L50: 520.4 | M50: 4.18657
A51: 41 | B51: BAJAJFINSV | C51: 5885.2 | D51: 5848.00 | E51: 5797.00 | F51: 5708.80 | G51: 5657.80 | H51: 5936.20 | I51: 5987.20 | J51: 6075.40 | K51: 5899 | L51: 5759.8 | M51: 1.62273
A52: 42 | B52: BAJAJHIND | C52: 6.5 | D52: 6.55 | E52: 6.40 | F52: 6.30 | G52: 6.15 | H52: 6.65 | I52: 6.80 | J52: 6.90 | K52: 6.7 | L52: 6.45 | M52: 14.21939
A53: 43 | B53: BAJAJHLDNG | C53: 2895.9 | D53: 2893.65 | E53: 2853.25 | F53: 2810.60 | G53: 2770.20 | H53: 2936.30 | I53: 2976.70 | J53: 3019.35 | K53: 2934.05 | L53: 2851 | M53: 0.16455
A54: 44 | B54: BAJFINANCE | C54: 2321.1 | D54: 2313.62 | E54: 2293.23 | F54: 2265.37 | G54: 2244.98 | H54: 2341.48 | I54: 2361.87 | J54: 2389.73 | K54: 2334 | L54: 2285.75 | M54: 8.10667
A55: 45 | B55: BALKRISIND | C55: 1082.55 | D55: 1074.80 | E55: 1064.60 | F55: 1046.65 | G55: 1036.45 | H55: 1092.75 | I55: 1102.95 | J55: 1120.90 | K55: 1085 | L55: 1056.85 | M55: 4.54025
A56: 46 | B56: BALLARPUR | C56: 10.15 | D56: 10.23 | E56: 9.87 | F56: 9.58 | G56: 9.22 | H56: 10.52 | I56: 10.88 | J56: 11.17 | K56: 10.6 | L56: 9.95 | M56: 5.13387
A57: 47 | B57: BALMLAWRIE | C57: 211.85 | D57: 210.97 | E57: 208.93 | F57: 206.02 | G57: 203.98 | H57: 213.88 | I57: 215.92 | J57: 218.83 | K57: 213 | L57: 208.05 | M57: 0.18254
A58: 48 | B58: BALRAMCHIN | C58: 62.6 | D58: 62.53 | E58: 61.57 | F58: 60.53 | G58: 59.57 | H58: 63.57 | I58: 64.53 | J58: 65.57 | K58: 63.5 | L58: 61.5 | M58: 32.08931
A59: 49 | B59: BANKBARODA | C59: 113 | D59: 113.15 | E59: 111.65 | F59: 110.30 | G59: 108.80 | H59: 114.50 | I59: 116.00 | J59: 117.35 | K59: 114.65 | L59: 111.8 | M59: 126.9136
A60: 50 | B60: BANKINDIA | C60: 86.95 | D60: 87.32 | E60: 85.83 | F60: 84.72 | G60: 83.23 | H60: 88.43 | I60: 89.92 | J60: 91.03 | K60: 88.8 | L60: 86.2 | M60: 49.44188
A61: 51 | B61: BASF | C61: 1892 | D61: 1899.07 | E61: 1874.93 | F61: 1857.87 | G61: 1833.73 | H61: 1916.13 | I61: 1940.27 | J61: 1957.33 | K61: 1923.2 | L61: 1882 | M61: 0.02425
A62: 52 | B62: BATAINDIA | C62: 835.85 | D62: 840.47 | E62: 827.33 | F62: 818.82 | G62: 805.68 | H62: 848.98 | I62: 862.12 | J62: 870.63 | K62: 853.6 | L62: 831.95 | M62: 12.3817
A63: 53 | B63: BBTC | C63: 1425.15 | D63: 1424.93 | E63: 1409.92 | F63: 1394.68 | G63: 1379.67 | H63: 1440.17 | I63: 1455.18 | J63: 1470.42 | K63: 1439.95 | L63: 1409.7 | M63: 0.72235
A64: 54 | B64: BEL | C64: 107.45 | D64: 106.53 | E64: 105.22 | F64: 102.98 | G64: 101.67 | H64: 108.77 | I64: 110.08 | J64: 112.32 | K64: 107.85 | L64: 104.3 | M64: 62.89381
A65: 55 | B65: BEML | C65: 819.15 | D65: 815.33 | E65: 806.17 | F65: 793.18 | G65: 784.02 | H65: 828.32 | I65: 837.48 | J65: 850.47 | K65: 824.5 | L65: 802.35 | M65: 8.53969
A66: 56 | B66: BERGEPAINT | C66: 286.15 | D66: 286.07 | E66: 282.63 | F66: 279.12 | G66: 275.68 | H66: 289.58 | I66: 293.02 | J66: 296.53 | K66: 289.5 | L66: 282.55 | M66: 5.90255
A67: 57 | B67: BFUTILITIE | C67: 307.65 | D67: 307.08 | E67: 301.77 | F67: 295.88 | G67: 290.57 | H67: 312.97 | I67: 318.28 | J67: 324.17 | K67: 312.4 | L67: 301.2 | M67: 2.92265
A68: 58 | B68: BGRENERGY | C68: 91.8 | D68: 92.43 | E68: 90.72 | F68: 89.63 | G68: 87.92 | H68: 93.52 | I68: 95.23 | J68: 96.32 | K68: 94.15 | L68: 91.35 | M68: 0.84012
A69: 59 | B69: BHARATFIN | C69: 1180.95 | D69: 1175.95 | E69: 1169.00 | F69: 1157.05 | G69: 1150.10 | H69: 1187.90 | I69: 1194.85 | J69: 1206.80 | K69: 1182.9 | L69: 1164 | M69: 4.33231
A70: 60 | B70: BHARATFORG | C70: 620.4 | D70: 617.73 | E70: 611.22 | F70: 602.03 | G70: 595.52 | H70: 626.92 | I70: 633.43 | J70: 642.62 | K70: 624.25 | L70: 608.55 | M70: 6.80435
A71: 61 | B71: BHARTIARTL | C71: 370.75 | D71: 370.48 | E71: 366.37 | F71: 361.98 | G71: 357.87 | H71: 374.87 | I71: 378.98 | J71: 383.37 | K71: 374.6 | L71: 366.1 | M71: 27.87262
A72: 62 | B72: BHEL | C72: 70 | D72: 70.13 | E72: 69.32 | F72: 68.63 | G72: 67.82 | H72: 70.82 | I72: 71.63 | J72: 72.32 | K72: 70.95 | L72: 69.45 | M72: 58.61611
A73: 63 | B73: BHUSANSTL | C73: 27.95 | D73: 28.03 | E73: 27.37 | F73: 26.78 | G73: 26.12 | H73: 28.62 | I73: 29.28 | J73: 29.87 | K73: 28.7 | L73: 27.45 | M73: 9.84666
A74: 64 | B74: BIOCON | C74: 628.55 | D74: 624.05 | E74: 616.60 | F74: 604.65 | G74: 597.20 | H74: 636.00 | I74: 643.45 | J74: 655.40 | K74: 631.5 | L74: 612.1 | M74: 16.54383
A75: 65 | B75: BIRLACORPN | C75: 713.15 | D75: 716.40 | E75: 704.80 | F75: 696.45 | G75: 684.85 | H75: 724.75 | I75: 736.35 | J75: 744.70 | K75: 728 | L75: 708.05 | M75: 0.18958
A76: 66 | B76: BLISSGVS | C76: 164.45 | D76: 164.63 | E76: 161.32 | F76: 158.18 | G76: 154.87 | H76: 167.77 | I76: 171.08 | J76: 174.22 | K76: 167.95 | L76: 161.5 | M76: 0.42692
A77: 67 | B77: BLUEDART | C77: 3665.45 | D77: 3676.92 | E77: 3638.83 | F77: 3612.22 | G77: 3574.13 | H77: 3703.53 | I77: 3741.62 | J77: 3768.23 | K77: 3715 | L77: 3650.3 | M77: 0.04362
A78: 68 | B78: BLUESTARCO | C78: 640.9 | D78: 644.62 | E78: 635.28 | F78: 629.67 | G78: 620.33 | H78: 650.23 | I78: 659.57 | J78: 665.18 | K78: 653.95 | L78: 639 | M78: 0.13023
A79: 69 | B79: BOMDYEING | C79: 216.4 | D79: 216.75 | E79: 213.65 | F79: 210.90 | G79: 207.80 | H79: 219.50 | I79: 222.60 | J79: 225.35 | K79: 219.85 | L79: 214 | M79: 4.4122
A80: 70 | B80: BOSCHLTD | C80: 17488.7 | D80: 17513.00 | E80: 17326.00 | F80: 17163.30 | G80: 16976.30 | H80: 17675.70 | I80: 17862.70 | J80: 18025.40 | K80: 17700 | L80: 17350.3 | M80: 0.07835
A81: 71 | B81: BPCL | C81: 373.9 | D81: 371.58 | E81: 366.42 | F81: 358.93 | G81: 353.77 | H81: 379.07 | I81: 384.23 | J81: 391.72 | K81: 376.75 | L81: 364.1 | M81: 39.96833
A82: 72 | B82: BRFL | C82: 24.4 | D82: 24.57 | E82: 23.83 | F82: 23.27 | G82: 22.53 | H82: 25.13 | I82: 25.87 | J82: 26.43 | K82: 25.3 | L82: 24 | M82: 0.34658
A83: 73 | B83: BRIGADE | C83: 209.1 | D83: 208.82 | E83: 205.58 | F83: 202.07 | G83: 198.83 | H83: 212.33 | I83: 215.57 | J83: 219.08 | K83: 212.05 | L83: 205.3 | M83: 0.20611
A84: 74 | B84: BRITANNIA | C84: 6216.55 | D84: 6220.73 | E84: 6181.87 | F84: 6147.18 | G84: 6108.32 | H84: 6255.42 | I84: 6294.28 | J84: 6328.97 | K84: 6259.6 | L84: 6186.05 | M84: 0.93841
A85: 75 | B85: BSE | C85: 839.25 | D85: 840.78 | E85: 836.47 | F85: 833.68 | G85: 829.37 | H85: 843.57 | I85: 847.88 | J85: 850.67 | K85: 845.1 | L85: 838 | M85: 0.79906
A86: 77 | B86: CADILAHC | C86: 386.75 | D86: 385.88 | E86: 381.77 | F86: 376.78 | G86: 372.67 | H86: 390.87 | I86: 394.98 | J86: 399.97 | K86: 390 | L86: 380.9 | M86: 12.20377
A87: 78 | B87: CANBK | C87: 244.75 | D87: 246.83 | E87: 241.77 | F87: 238.78 | G87: 233.72 | H87: 249.82 | I87: 254.88 | J87: 257.87 | K87: 251.9 | L87: 243.85 | M87: 66.43456
A88: 79 | B88: CANFINHOME | C88: 342.25 | D88: 340.52 | E88: 336.33 | F88: 330.42 | G88: 326.23 | H88: 346.43 | I88: 350.62 | J88: 356.53 | K88: 344.7 | L88: 334.6 | M88: 5.66587
A89: 80 | B89: CAPF | C89: 517.65 | D89: 516.27 | E89: 510.53 | F89: 503.42 | G89: 497.68 | H89: 523.38 | I89: 529.12 | J89: 536.23 | K89: 522 | L89: 509.15 | M89: 3.64094
A90: 81 | B90: CAPLIPOINT | C90: 409.85 | D90: 414.95 | E90: 402.90 | F90: 395.95 | G90: 383.90 | H90: 421.90 | I90: 433.95 | J90: 440.90 | K90: 427 | L90: 408 | M90: 0.23058
A91: 82 | B91: CARBORUNIV | C91: 319.05 | D91: 318.02 | E91: 315.03 | F91: 311.02 | G91: 308.03 | H91: 322.03 | I91: 325.02 | J91: 329.03 | K91: 321 | L91: 314 | M91: 0.19824
A92: 83 | B92: CARERATING | C92: 1224.25 | D92: 1228.68 | E92: 1215.67 | F92: 1207.08 | G92: 1194.07 | H92: 1237.27 | I92: 1250.28 | J92: 1258.87 | K92: 1241.7 | L92: 1220.1 | M92: 0.26144
A93: 84 | B93: CASTROLIND | C93: 157 | D93: 157.67 | E93: 155.33 | F93: 153.67 | G93: 151.33 | H93: 159.33 | I93: 161.67 | J93: 163.33 | K93: 160 | L93: 156 | M93: 16.65099
A94: 85 | B94: CCL | C94: 266.5 | D94: 268.83 | E94: 262.67 | F94: 258.83 | G94: 252.67 | H94: 272.67 | I94: 278.83 | J94: 282.67 | K94: 275 | L94: 265 | M94: 1.25552
A95: 86 | B95: CDSL | C95: 269.5 | D95: 270.20 | E95: 267.55 | F95: 265.60 | G95: 262.95 | H95: 272.15 | I95: 274.80 | J95: 276.75 | K95: 272.85 | L95: 268.25 | M95: 2.57487
A96: 87 | B96: CEATLTD | C96: 1257.6 | D96: 1258.25 | E96: 1246.00 | F96: 1234.40 | G96: 1222.15 | H96: 1269.85 | I96: 1282.10 | J96: 1293.70 | K96: 1270.5 | L96: 1246.65 | M96: 3.45059
A97: 88 | B97: CENTRALBK | C97: 67.75 | D97: 68.33 | E97: 66.67 | F97: 65.58 | G97: 63.92 | H97: 69.42 | I97: 71.08 | J97: 72.17 | K97: 70 | L97: 67.25 | M97: 8.59871
A98: 89 | B98: CENTURYPLY | C98: 249.45 | D98: 250.42 | E98: 246.93 | F98: 244.42 | G98: 240.93 | H98: 252.93 | I98: 256.42 | J98: 258.93 | K98: 253.9 | L98: 247.9 | M98: 0.97134
A99: 90 | B99: CENTURYTEX | C99: 873.6 | D99: 867.88 | E99: 858.02 | F99: 842.43 | G99: 832.57 | H99: 883.47 | I99: 893.33 | J99: 908.92 | K99: 877.75 | L99: 852.3 | M99: 6.29559
A100: 91 | B100: CERA | C100: 2776.7 | D100: 2769.18 | E100: 2743.87 | F100: 2711.03 | G100: 2685.72 | H100: 2802.02 | I100: 2827.33 | J100: 2860.17 | K100: 2794.5 | L100: 2736.35 | M100: 0.05537
A101: 92 | B101: CGPOWER | C101: 57.5 | D101: 57.72 | E101: 56.78 | F101: 56.07 | G101: 55.13 | H101: 58.43 | I101: 59.37 | J101: 60.08 | K101: 58.65 | L101: 57 | M101: 48.10209
A102: 93 | B102: CHAMBLFERT | C102: 154.3 | D102: 153.78 | E102: 151.82 | F102: 149.33 | G102: 147.37 | H102: 156.27 | I102: 158.23 | J102: 160.72 | K102: 155.75 | L102: 151.3 | M102: 5.34591
A103: 94 | B103: CHENNPETRO | C103: 295.05 | D103: 295.75 | E103: 292.55 | F103: 290.05 | G103: 286.85 | H103: 298.25 | I103: 301.45 | J103: 303.95 | K103: 298.95 | L103: 293.25 | M103: 4.64447
A104: 95 | B104: CHOLAFIN | C104: 1512.45 | D104: 1508.40 | E104: 1490.35 | F104: 1468.25 | G104: 1450.20 | H104: 1530.50 | I104: 1548.55 | J104: 1570.65 | K104: 1526.45 | L104: 1486.3 | M104: 1.66425
A105: 96 | B105: CIPLA | C105: 640.4 | D105: 631.03 | E105: 617.42 | F105: 594.43 | G105: 580.82 | H105: 654.02 | I105: 667.63 | J105: 690.62 | K105: 644.65 | L105: 608.05 | M105: 52.716
A106: 97 | B106: COALINDIA | C106: 260.85 | D106: 260.95 | E106: 259.20 | F106: 257.55 | G106: 255.80 | H106: 262.60 | I106: 264.35 | J106: 266.00 | K106: 262.7 | L106: 259.3 | M106: 26.91217
A107: 98 | B107: COCHINSHIP | C107: 434.95 | D107: 435.98 | E107: 432.47 | F107: 429.98 | G107: 426.47 | H107: 438.47 | I107: 441.98 | J107: 444.47 | K107: 439.5 | L107: 433.5 | M107: 0.32234
A108: 99 | B108: COFFEEDAY | C108: 265.55 | D108: 266.08 | E108: 262.52 | F108: 259.48 | G108: 255.92 | H108: 269.12 | I108: 272.68 | J108: 275.72 | K108: 269.65 | L108: 263.05 | M108: 1.00121
A109: 100 | B109: COLPAL | C109: 1150.5 | D109: 1155.98 | E109: 1139.02 | F109: 1127.53 | G109: 1110.57 | H109: 1167.47 | I109: 1184.43 | J109: 1195.92 | K109: 1172.95 | L109: 1144.5 | M109: 2.05116
A110: 101 | B110: CONCOR | C110: 645.1 | D110: 639.28 | E110: 631.82 | F110: 618.53 | G110: 611.07 | H110: 652.57 | I110: 660.03 | J110: 673.32 | K110: 646.75 | L110: 626 | M110: 3.99032
A111: 102 | B111: COROMANDEL | C111: 423.55 | D111: 418.75 | E111: 408.50 | F111: 393.45 | G111: 383.20 | H111: 433.80 | I111: 444.05 | J111: 459.10 | K111: 429 | L111: 403.7 | M111: 2.02409
A112: 103 | B112: COX&KINGS | C112: 207.1 | D112: 205.78 | E112: 203.42 | F112: 199.73 | G112: 197.37 | H112: 209.47 | I112: 211.83 | J112: 215.52 | K112: 208.15 | L112: 202.1 | M112: 1.00608
A113: 104 | B113: CRISIL | C113: 1763.4 | D113: 1767.47 | E113: 1728.93 | F113: 1694.47 | G113: 1655.93 | H113: 1801.93 | I113: 1840.47 | J113: 1874.93 | K113: 1806 | L113: 1733 | M113: 0.44718
A114: 105 | B114: CROMPTON | C114: 226.15 | D114: 226.52 | E114: 223.18 | F114: 220.22 | G114: 216.88 | H114: 229.48 | I114: 232.82 | J114: 235.78 | K114: 229.85 | L114: 223.55 | M114: 6.64922
A115: 106 | B115: CUB | C115: 187.4 | D115: 186.55 | E115: 184.45 | F115: 181.50 | G115: 179.40 | H115: 189.50 | I115: 191.60 | J115: 194.55 | K115: 188.65 | L115: 183.6 | M115: 2.18086
A116: 107 | B116: CUMMINSIND | C116: 654.6 | D116: 657.02 | E116: 645.63 | F116: 636.67 | G116: 625.28 | H116: 665.98 | I116: 677.37 | J116: 686.33 | K116: 668.4 | L116: 648.05 | M116: 1.81542
A117: 108 | B117: CYIENT | C117: 749.15 | D117: 753.67 | E117: 729.63 | F117: 710.12 | G117: 686.08 | H117: 773.18 | I117: 797.22 | J117: 816.73 | K117: 777.7 | L117: 734.15 | M117: 3.9597
A118: 109 | B118: DABUR | C118: 384.75 | D118: 384.53 | E118: 381.57 | F118: 378.38 | G118: 375.42 | H118: 387.72 | I118: 390.68 | J118: 393.87 | K118: 387.5 | L118: 381.35 | M118: 18.93774
A119: 110 | B119: DBCORP | C119: 263.05 | D119: 262.27 | E119: 260.78 | F119: 258.52 | G119: 257.03 | H119: 264.53 | I119: 266.02 | J119: 268.28 | K119: 263.75 | L119: 260 | M119: 0.22053
A120: 111 | B120: DBL | C120: 658.65 | D120: 640.12 | E120: 617.88 | F120: 577.12 | G120: 554.88 | H120: 680.88 | I120: 703.12 | J120: 743.88 | K120: 662.35 | L120: 599.35 | M120: 9.85386
A121: 112 | B121: DBREALTY | C121: 39.45 | D121: 39.63 | E121: 38.57 | F121: 37.68 | G121: 36.62 | H121: 40.52 | I121: 41.58 | J121: 42.47 | K121: 40.7 | L121: 38.75 | M121: 1.78431
A122: 113 | B122: DCAL | C122: 259.7 | D122: 260.93 | E122: 257.77 | F122: 255.83 | G122: 252.67 | H122: 262.87 | I122: 266.03 | J122: 267.97 | K122: 264.1 | L122: 259 | M122: 0.89341
A123: 114 | B123: DCBBANK | C123: 166.4 | D123: 165.92 | E123: 163.58 | F123: 160.77 | G123: 158.43 | H123: 168.73 | I123: 171.07 | J123: 173.88 | K123: 168.25 | L123: 163.1 | M123: 9.1342
A124: 115 | B124: DCMSHRIRAM | C124: 295.6 | D124: 294.82 | E124: 289.93 | F124: 284.27 | G124: 279.38 | H124: 300.48 | I124: 305.37 | J124: 311.03 | K124: 299.7 | L124: 289.15 | M124: 1.27702
A125: 116 | B125: DEEPAKFERT | C125: 265.7 | D125: 265.73 | E125: 263.02 | F125: 260.33 | G125: 257.62 | H125: 268.42 | I125: 271.13 | J125: 273.82 | K125: 268.45 | L125: 263.05 | M125: 0.5271
A126: 117 | B126: DELTACORP | C126: 223.25 | D126: 220.37 | E126: 213.23 | F126: 203.22 | G126: 196.08 | H126: 230.38 | I126: 237.52 | J126: 247.53 | K126: 227.5 | L126: 210.35 | M126: 27.48446
A127: 118 | B127: DEN | C127: 77.45 | D127: 75.22 | E127: 72.03 | F127: 66.62 | G127: 63.43 | H127: 80.63 | I127: 83.82 | J127: 89.23 | K127: 78.4 | L127: 69.8 | M127: 3.8099
A128: 119 | B128: DENABANK | C128: 15.05 | D128: 15.10 | E128: 14.90 | F128: 14.75 | G128: 14.55 | H128: 15.25 | I128: 15.45 | J128: 15.60 | K128: 15.3 | L128: 14.95 | M128: 7.37448
A129: 120 | B129: DHFL | C129: 624.55 | D129: 620.18 | E129: 614.37 | F129: 604.18 | G129: 598.37 | H129: 630.37 | I129: 636.18 | J129: 646.37 | K129: 626 | L129: 610 | M129: 58.92885
A130: 121 | B130: DISHTV | C130: 72.35 | D130: 72.20 | E130: 71.80 | F130: 71.25 | G130: 70.85 | H130: 72.75 | I130: 73.15 | J130: 73.70 | K130: 72.6 | L130: 71.65 | M130: 21.98677
A131: 122 | B131: DIVISLAB | C131: 1085.8 | D131: 1073.08 | E131: 1049.22 | F131: 1012.63 | G131: 988.77 | H131: 1109.67 | I131: 1133.53 | J131: 1170.12 | K131: 1096.95 | L131: 1036.5 | M131: 12.41172
A132: 123 | B132: DIXON | C132: 2921.3 | D132: 2903.53 | E132: 2863.77 | F132: 2806.23 | G132: 2766.47 | H132: 2961.07 | I132: 3000.83 | J132: 3058.37 | K132: 2943.3 | L132: 2846 | M132: 0.13114
A133: 124 | B133: DLF | C133: 185.8 | D133: 185.27 | E133: 182.83 | F133: 179.87 | G133: 177.43 | H133: 188.23 | I133: 190.67 | J133: 193.63 | K133: 187.7 | L133: 182.3 | M133: 43.88316
A134: 125 | B134: DMART | C134: 1521.95 | D134: 1522.47 | E134: 1504.98 | F134: 1488.02 | G134: 1470.53 | H134: 1539.43 | I134: 1556.92 | J134: 1573.88 | K134: 1539.95 | L134: 1505.5 | M134: 3.53842
A135: 126 | B135: DREDGECORP | C135: 501.1 | D135: 501.50 | E135: 494.55 | F135: 488.00 | G135: 481.05 | H135: 508.05 | I135: 515.00 | J135: 521.55 | K135: 508.45 | L135: 494.95 | M135: 1.05064
A136: 127 | B136: DRREDDY | C136: 2273.75 | D136: 2264.32 | E136: 2244.63 | F136: 2215.52 | G136: 2195.83 | H136: 2293.43 | I136: 2313.12 | J136: 2342.23 | K136: 2284 | L136: 2235.2 | M136: 7.56573
A137: 128 | B137: ECLERX | C137: 1300.55 | D137: 1293.18 | E137: 1277.37 | F137: 1254.18 | G137: 1238.37 | H137: 1316.37 | I137: 1332.18 | J137: 1355.37 | K137: 1309 | L137: 1270 | M137: 0.07606
A138: 129 | B138: EDELWEISS | C138: 292.5 | D138: 293.88 | E138: 289.07 | F138: 285.63 | G138: 280.82 | H138: 297.32 | I138: 302.13 | J138: 305.57 | K138: 298.7 | L138: 290.45 | M138: 9.90282
A139: 130 | B139: EICHERMOT | C139: 28079 | D139: 28153.00 | E139: 27931.00 | F139: 27783.00 | G139: 27561.00 | H139: 28301.00 | I139: 28523.00 | J139: 28671.00 | K139: 28375 | L139: 28005 | M139: 0.50476
A140: 131 | B140: EIDPARRY | C140: 232.6 | D140: 230.72 | E140: 226.98 | F140: 221.37 | G140: 217.63 | H140: 236.33 | I140: 240.07 | J140: 245.68 | K140: 234.45 | L140: 225.1 | M140: 1.407
A141: 132 | B141: EIHOTEL | C141: 160.85 | D141: 162.15 | E141: 158.80 | F141: 156.75 | G141: 153.40 | H141: 164.20 | I141: 167.55 | J141: 169.60 | K141: 165.5 | L141: 160.1 | M141: 0.74147
A142: 133 | B142: EMAMILTD | C142: 522.55 | D142: 522.53 | E142: 515.17 | F142: 507.78 | G142: 500.42 | H142: 529.92 | I142: 537.28 | J142: 544.67 | K142: 529.9 | L142: 515.15 | M142: 0.54298
A143: 134 | B143: ENDURANCE | C143: 1245.15 | D143: 1239.63 | E143: 1209.52 | F143: 1173.88 | G143: 1143.77 | H143: 1275.27 | I143: 1305.38 | J143: 1341.02 | K143: 1269.75 | L143: 1204 | M143: 0.32943
A144: 135 | B144: ENGINERSIN | C144: 125.05 | D144: 123.63 | E144: 121.47 | F144: 117.88 | G144: 115.72 | H144: 127.22 | I144: 129.38 | J144: 132.97 | K144: 125.8 | L144: 120.05 | M144: 18.66774
A145: 136 | B145: EQUITAS | C145: 135.9 | D145: 136.20 | E145: 134.75 | F145: 133.60 | G145: 132.15 | H145: 137.35 | I145: 138.80 | J145: 139.95 | K145: 137.65 | L145: 135.05 | M145: 7.9468
A146: 137 | B146: ERIS | C146: 665 | D146: 668.87 | E146: 658.13 | F146: 651.27 | G146: 640.53 | H146: 675.73 | I146: 686.47 | J146: 693.33 | K146: 679.6 | L146: 662 | M146: 0.3027
A147: 138 | B147: EROSMEDIA | C147: 116.95 | D147: 117.05 | E147: 113.60 | F147: 110.25 | G147: 106.80 | H147: 120.40 | I147: 123.85 | J147: 127.20 | K147: 120.5 | L147: 113.7 | M147: 4.15258
A148: 139 | B148: ESCORTS | C148: 866.75 | D148: 864.42 | E148: 850.88 | F148: 835.02 | G148: 821.48 | H148: 880.28 | I148: 893.82 | J148: 909.68 | K148: 877.95 | L148: 848.55 | M148: 10.94017
A149: 140 | B149: EVEREADY | C149: 223.05 | D149: 222.48 | E149: 219.72 | F149: 216.38 | G149: 213.62 | H149: 225.82 | I149: 228.58 | J149: 231.92 | K149: 225.25 | L149: 219.15 | M149: 0.47003
A150: 141 | B150: EXIDEIND | C150: 262.35 | D150: 260.82 | E150: 257.33 | F150: 252.32 | G150: 248.83 | H150: 265.83 | I150: 269.32 | J150: 274.33 | K150: 264.3 | L150: 255.8 | M150: 22.15093
A151: 142 | B151: FCONSUMER | C151: 49.7 | D151: 49.23 | E151: 48.27 | F151: 46.83 | G151: 45.87 | H151: 50.67 | I151: 51.63 | J151: 53.07 | K151: 50.2 | L151: 47.8 | M151: 36.01144
A152: 143 | B152: FEDERALBNK | C152: 83.3 | D152: 82.53 | E152: 81.47 | F152: 79.63 | G152: 78.57 | H152: 84.37 | I152: 85.43 | J152: 87.27 | K152: 83.6 | L152: 80.7 | M152: 77.27791
A153: 144 | B153: FINCABLES | C153: 568.4 | D153: 569.00 | E153: 563.40 | F153: 558.40 | G153: 552.80 | H153: 574.00 | I153: 579.60 | J153: 584.60 | K153: 574.6 | L153: 564 | M153: 0.60347
A154: 145 | B154: FINPIPE | C154: 551.2 | D154: 555.05 | E154: 545.15 | F154: 539.10 | G154: 529.20 | H154: 561.10 | I154: 571.00 | J154: 577.05 | K154: 564.95 | L154: 549 | M154: 0.30664
A155: 146 | B155: FLFL | C155: 408.05 | D155: 411.75 | E155: 402.00 | F155: 395.95 | G155: 386.20 | H155: 417.80 | I155: 427.55 | J155: 433.60 | K155: 421.5 | L155: 405.7 | M155: 0.44614
A156: 147 | B156: FSL | C156: 68.6 | D156: 68.42 | E156: 67.63 | F156: 66.67 | G156: 65.88 | H156: 69.38 | I156: 70.17 | J156: 71.13 | K156: 69.2 | L156: 67.45 | M156: 31.95389
A157: 148 | B157: GAIL | C157: 345.3 | D157: 342.92 | E157: 338.38 | F157: 331.47 | G157: 326.93 | H157: 349.83 | I157: 354.37 | J157: 361.28 | K157: 347.45 | L157: 336 | M157: 37.36925
A158: 149 | B158: GATI | C158: 77.25 | D158: 77.13 | E158: 76.17 | F158: 75.08 | G158: 74.12 | H158: 78.22 | I158: 79.18 | J158: 80.27 | K158: 78.1 | L158: 76.05 | M158: 4.13645
A159: 150 | B159: GDL | C159: 174.3 | D159: 175.43 | E159: 172.07 | F159: 169.83 | G159: 166.47 | H159: 177.67 | I159: 181.03 | J159: 183.27 | K159: 178.8 | L159: 173.2 | M159: 0.46902
A160: 151 | B160: GEPIL | C160: 758.45 | D160: 762.67 | E160: 743.78 | F160: 729.12 | G160: 710.23 | H160: 777.33 | I160: 796.22 | J160: 810.88 | K160: 781.55 | L160: 748 | M160: 0.21035
A161: 152 | B161: GESHIP | C161: 271.55 | D161: 273.17 | E161: 268.38 | F161: 265.22 | G161: 260.43 | H161: 276.33 | I161: 281.12 | J161: 284.28 | K161: 277.95 | L161: 270 | M161: 0.50066
A162: 153 | B162: GET&D | C162: 271.05 | D162: 272.42 | E162: 267.43 | F162: 263.82 | G162: 258.83 | H162: 276.03 | I162: 281.02 | J162: 284.63 | K162: 277.4 | L162: 268.8 | M162: 0.4148
A163: 154 | B163: GHCL | C163: 268.8 | D163: 270.05 | E163: 266.75 | F163: 264.70 | G163: 261.40 | H163: 272.10 | I163: 275.40 | J163: 277.45 | K163: 273.35 | L163: 268 | M163: 0.54518
A164: 155 | B164: GICRE | C164: 741.85 | D164: 740.65 | E164: 736.30 | F164: 730.75 | G164: 726.40 | H164: 746.20 | I164: 750.55 | J164: 756.10 | K164: 745 | L164: 735.1 | M164: 0.39363
A165: 156 | B165: GILLETTE | C165: 6423.9 | D165: 6414.28 | E165: 6389.62 | F165: 6355.33 | G165: 6330.67 | H165: 6448.57 | I165: 6473.23 | J165: 6507.52 | K165: 6438.95 | L165: 6380 | M165: 0.02871
A166: 157 | B166: GLAXO | C166: 2834.45 | D166: 2821.45 | E166: 2794.90 | F166: 2755.35 | G166: 2728.80 | H166: 2861.00 | I166: 2887.55 | J166: 2927.10 | K166: 2848 | L166: 2781.9 | M166: 0.10964
A167: 158 | B167: GLENMARK | C167: 588.8 | D167: 584.83 | E167: 577.47 | F167: 566.13 | G167: 558.77 | H167: 596.17 | I167: 603.53 | J167: 614.87 | K167: 592.2 | L167: 573.5 | M167: 7.77737
A168: 159 | B168: GMDCLTD | C168: 104.85 | D168: 104.48 | E168: 102.97 | F168: 101.08 | G168: 99.57 | H168: 106.37 | I168: 107.88 | J168: 109.77 | K168: 106 | L168: 102.6 | M168: 0.8875
A169: 160 | B169: GMRINFRA | C169: 16 | D169: 15.87 | E169: 15.63 | F169: 15.27 | G169: 15.03 | H169: 16.23 | I169: 16.47 | J169: 16.83 | K169: 16.1 | L169: 15.5 | M169: 323.51704
A170: 161 | B170: GNFC | C170: 408.8 | D170: 405.35 | E170: 398.00 | F170: 387.20 | G170: 379.85 | H170: 416.15 | I170: 423.50 | J170: 434.30 | K170: 412.7 | L170: 394.55 | M170: 6.78953
A171: 162 | B171: GODFRYPHLP | C171: 719.05 | D171: 719.67 | E171: 711.48 | F171: 703.92 | G171: 695.73 | H171: 727.23 | I171: 735.42 | J171: 742.98 | K171: 727.85 | L171: 712.1 | M171: 0.35687
A172: 163 | B172: GODREJAGRO | C172: 617.85 | D172: 619.45 | E172: 613.40 | F172: 608.95 | G172: 602.90 | H172: 623.90 | I172: 629.95 | J172: 634.40 | K172: 625.5 | L172: 615 | M172: 0.42037
A173: 164 | B173: GODREJCP | C173: 1250.55 | D173: 1246.95 | E173: 1238.90 | F173: 1227.25 | G173: 1219.20 | H173: 1258.60 | I173: 1266.65 | J173: 1278.30 | K173: 1255 | L173: 1235.3 | M173: 3.31231
A174: 165 | B174: GODREJIND | C174: 617.65 | D174: 621.25 | E174: 610.50 | F174: 603.35 | G174: 592.60 | H174: 628.40 | I174: 639.15 | J174: 646.30 | K174: 632 | L174: 614.1 | M174: 8.12091
A175: 166 | B175: GODREJPROP | C175: 714.3 | D175: 715.35 | E175: 706.95 | F175: 699.60 | G175: 691.20 | H175: 722.70 | I175: 731.10 | J175: 738.45 | K175: 723.75 | L175: 708 | M175: 0.48018
A176: 167 | B176: GPPL | C176: 103.8 | D176: 103.67 | E176: 102.23 | F176: 100.67 | G176: 99.23 | H176: 105.23 | I176: 106.67 | J176: 108.23 | K176: 105.1 | L176: 102.1 | M176: 0.99552
A177: 168 | B177: GRANULES | C177: 79.65 | D177: 78.88 | E177: 77.22 | F177: 74.78 | G177: 73.12 | H177: 81.32 | I177: 82.98 | J177: 85.42 | K177: 80.55 | L177: 76.45 | M177: 21.64675
A178: 169 | B178: GRAPHITE | C178: 925.35 | D178: 906.35 | E178: 886.50 | F178: 847.65 | G178: 827.80 | H178: 945.20 | I178: 965.05 | J178: 1003.90 | K178: 926.2 | L178: 867.5 | M178: 21.64836
A179: 170 | B179: GRASIM | C179: 985.85 | D179: 980.88 | E179: 969.02 | F179: 952.18 | G179: 940.32 | H179: 997.72 | I179: 1009.58 | J179: 1026.42 | K179: 992.75 | L179: 964.05 | M179: 5.34138
A180: 171 | B180: GREAVESCOT | C180: 133.5 | D180: 134.13 | E180: 132.02 | F180: 130.53 | G180: 128.42 | H180: 135.62 | I180: 137.73 | J180: 139.22 | K180: 136.25 | L180: 132.65 | M180: 3.21417
A181: 172 | B181: GREENPLY | C181: 229.15 | D181: 233.23 | E181: 223.07 | F181: 216.98 | G181: 206.82 | H181: 239.32 | I181: 249.48 | J181: 255.57 | K181: 243.4 | L181: 227.15 | M181: 0.3311
A182: 173 | B182: GRUH | C182: 319.65 | D182: 315.52 | E182: 309.03 | F182: 298.42 | G182: 291.93 | H182: 326.13 | I182: 332.62 | J182: 343.23 | K182: 322 | L182: 304.9 | M182: 5.52118
A183: 174 | B183: GSFC | C183: 105.3 | D183: 104.17 | E183: 102.38 | F183: 99.47 | G183: 97.68 | H183: 107.08 | I183: 108.87 | J183: 111.78 | K183: 105.95 | L183: 101.25 | M183: 15.45039
A184: 175 | B184: GSKCONS | C184: 6405 | D184: 6420.23 | E184: 6344.87 | F184: 6284.73 | G184: 6209.37 | H184: 6480.37 | I184: 6555.73 | J184: 6615.87 | K184: 6495.6 | L184: 6360.1 | M184: 0.08702
A185: 176 | B185: GSPL | C185: 177.35 | D185: 178.38 | E185: 175.77 | F185: 174.18 | G185: 171.57 | H185: 179.97 | I185: 182.58 | J185: 184.17 | K185: 181 | L185: 176.8 | M185: 0.7477
A186: 177 | B186: GUJALKALI | C186: 515.55 | D186: 519.23 | E186: 509.82 | F186: 504.08 | G186: 494.67 | H186: 524.97 | I186: 534.38 | J186: 540.12 | K186: 528.65 | L186: 513.5 | M186: 0.55975
A187: 178 | B187: GUJFLUORO | C187: 753.35 | D187: 751.75 | E187: 733.70 | F187: 714.05 | G187: 696.00 | H187: 771.40 | I187: 789.45 | J187: 809.10 | K187: 769.8 | L187: 732.1 | M187: 0.7657
A188: 179 | B188: GUJGASLTD | C188: 724.7 | D188: 724.58 | E188: 715.17 | F188: 705.63 | G188: 696.22 | H188: 734.12 | I188: 743.53 | J188: 753.07 | K188: 734 | L188: 715.05 | M188: 0.15484
A189: 180 | B189: GULFOILLUB | C189: 845.15 | D189: 840.03 | E189: 833.27 | F189: 821.38 | G189: 814.62 | H189: 851.92 | I189: 858.68 | J189: 870.57 | K189: 846.8 | L189: 828.15 | M189: 0.0881
A190: 181 | B190: GVKPIL | C190: 9.75 | D190: 9.95 | E190: 9.55 | F190: 9.35 | G190: 8.95 | H190: 10.15 | I190: 10.55 | J190: 10.75 | K190: 10.35 | L190: 9.75 | M190: 19.52469
A191: 182 | B191: HATHWAY | C191: 24.2 | D191: 24.05 | E191: 23.60 | F191: 23.00 | G191: 22.55 | H191: 24.65 | I191: 25.10 | J191: 25.70 | K191: 24.5 | L191: 23.45 | M191: 4.92526
A192: 183 | B192: HATSUN | C192: 622.1 | D192: 622.23 | E192: 619.87 | F192: 617.63 | G192: 615.27 | H192: 624.47 | I192: 626.83 | J192: 629.07 | K192: 624.6 | L192: 620 | M192: 0.05371
A193: 184 | B193: HAVELLS | C193: 543.5 | D193: 541.38 | E193: 534.77 | F193: 526.03 | G193: 519.42 | H193: 550.12 | I193: 556.73 | J193: 565.47 | K193: 548 | L193: 532.65 | M193: 5.5237
A194: 185 | B194: HCC | C194: 12.3 | D194: 12.33 | E194: 11.97 | F194: 11.63 | G194: 11.27 | H194: 12.67 | I194: 13.03 | J194: 13.37 | K194: 12.7 | L194: 12 | M194: 147.1571
A195: 186 | B195: HCL-INSYS | C195: 34 | D195: 34.00 | E195: 33.35 | F195: 32.70 | G195: 32.05 | H195: 34.65 | I195: 35.30 | J195: 35.95 | K195: 34.65 | L195: 33.35 | M195: 9.33836
A196: 187 | B196: HCLTECH | C196: 937.5 | D196: 931.52 | E196: 923.13 | F196: 908.77 | G196: 900.38 | H196: 945.88 | I196: 954.27 | J196: 968.63 | K196: 939.9 | L196: 917.15 | M196: 10.27238
A197: 188 | B197: HDFC | C197: 1879.7 | D197: 1884.78 | E197: 1869.57 | F197: 1859.43 | G197: 1844.22 | H197: 1894.92 | I197: 1910.13 | J197: 1920.27 | K197: 1900 | L197: 1874.65 | M197: 16.87705
A198: 189 | B198: HDFCBANK | C198: 2070.2 | D198: 2073.60 | E198: 2062.20 | F198: 2054.20 | G198: 2042.80 | H198: 2081.60 | I198: 2093.00 | J198: 2101.00 | K198: 2085 | L198: 2065.6 | M198: 17.15775
A199: 190 | B199: HDIL | C199: 20.15 | D199: 20.07 | E199: 19.68 | F199: 19.22 | G199: 18.83 | H199: 20.53 | I199: 20.92 | J199: 21.38 | K199: 20.45 | L199: 19.6 | M199: 36.56542
A200: 191 | B200: HEG | C200: 3642 | D200: 3550.60 | E200: 3451.40 | F200: 3260.80 | G200: 3161.60 | H200: 3741.20 | I200: 3840.40 | J200: 4031.00 | K200: 3649.8 | L200: 3360 | M200: 4.39346
A201: 192 | B201: HEIDELBERG | C201: 138 | D201: 137.78 | E201: 136.07 | F201: 134.13 | G201: 132.42 | H201: 139.72 | I201: 141.43 | J201: 143.37 | K201: 139.5 | L201: 135.85 | M201: 0.47823
A202: 193 | B202: HERITGFOOD | C202: 609.6 | D202: 606.53 | E202: 598.07 | F202: 586.53 | G202: 578.07 | H202: 618.07 | I202: 626.53 | J202: 638.07 | K202: 615 | L202: 595 | M202: 0.12212
A203: 194 | B203: HEROMOTOCO | C203: 3447.65 | D203: 3455.05 | E203: 3425.15 | F203: 3402.65 | G203: 3372.75 | H203: 3477.55 | I203: 3507.45 | J203: 3529.95 | K203: 3484.95 | L203: 3432.55 | M203: 2.89618
A204: 195 | B204: HEXAWARE | C204: 468.35 | D204: 464.33 | E204: 457.77 | F204: 447.18 | G204: 440.62 | H204: 474.92 | I204: 481.48 | J204: 492.07 | K204: 470.9 | L204: 453.75 | M204: 9.32875
A205: 196 | B205: HFCL | C205: 28.3 | D205: 28.17 | E205: 27.73 | F205: 27.17 | G205: 26.73 | H205: 28.73 | I205: 29.17 | J205: 29.73 | K205: 28.6 | L205: 27.6 | M205: 65.07657
A206: 197 | B206: HIMATSEIDE | C206: 286.95 | D206: 288.32 | E206: 284.88 | F206: 282.82 | G206: 279.38 | H206: 290.38 | I206: 293.82 | J206: 295.88 | K206: 291.75 | L206: 286.25 | M206: 0.26564
... 305 more rows

Sheet Bulk Deals
E6: Back To Main Page
A7: Subject : | B7: BULK DEAL | D7: =Main!B10 -> 2018-07-04
A9: Date | B9: Scrip code | C9: Scrip Name | D9: Client Name | E9: Buy / Sell | F9: Quantity Traded | G9: Trade Price / Wt.Avg.trade price | H9: Exchange
A10: 2018-07-03 | B10: 539042 | C10: AGIIL | D10: JASPREET KAUR | E10: SELL | F10: 56,812 | G10: 88.31 | H10: BSE
A11: 2018-07-03 | B11: 539042 | C11: AGIIL | D11: GURPREET SINGH | E11: SELL | F11: 98,375 | G11: 90.01 | H11: BSE
A12: 2018-07-03 | B12: 539042 | C12: AGIIL | D12: GURPREET SINGH | E12: BUY | F12: 30,000 | G12: 99.96 | H12: BSE
A13: 2018-07-03 | B13: 539042 | C13: AGIIL | D13: HAVELI INDIA LTD | E13: SELL | F13: 20,000 | G13: 97.77 | H13: BSE
A14: 2018-07-03 | B14: 539042 | C14: AGIIL | D14: HAVELI INDIA LTD | E14: BUY | F14: 70,000 | G14: 101.72 | H14: BSE
A15: 2018-07-03 | B15: 532749 | C15: ALLCARGO | D15: SHASHI KIRAN JANARDHAN SHETTY . | E15: BUY | F15: 1,229,180 | G15: 110 | H15: BSE
A16: 2018-07-03 | B16: 537766 | C16: BCP | D16: BHARATKUMAR NIHALCHAND SHAH | E16: BUY | F16: 300,000 | G16: 34.23 | H16: BSE
A17: 2018-07-03 | B17: 537766 | C17: BCP | D17: KAMAL BABULAL AGARWAL | E17: SELL | F17: 329,852 | G17: 34.24 | H17: BSE
A18: 2018-07-03 | B18: 537766 | C18: BCP | D18: KAMAL BABULAL AGARWAL | E18: BUY | F18: 329,852 | G18: 34.37 | H18: BSE
A19: 2018-07-03 | B19: 538928 | C19: KARNAVATI | D19: THEETA TRADING LLP | E19: BUY | F19: 150,000 | G19: 26.97 | H19: BSE
A20: 2018-07-03 | B20: 538928 | C20: KARNAVATI | D20: NAVNEETBHAI MULJIBHAI VARIA | E20: SELL | F20: 80,000 | G20: 27 | H20: BSE
A21: 2018-07-03 | B21: 526905 | C21: PADMAIND | D21: KRUTI KEVIN KAPADIA | E21: BUY | F21: 49,447 | G21: 119.89 | H21: BSE
A22: 2018-07-03 | B22: 526905 | C22: PADMAIND | D22: VERTOOL CONSULTANCY LLP | E22: SELL | F22: 30,600 | G22: 118.39 | H22: BSE
A23: 2018-07-03 | B23: 541444 | C23: PALMJEWELS | D23: VEERAM VENDORS PRIVATELIMITED | E23: BUY | F23: 44,000 | G23: 30.95 | H23: BSE
A24: 2018-07-03 | B24: 541347 | C24: PARVATI | D24: ANUPAM CHOUKSEY | E24: BUY | F24: 819,103 | G24: 3.55 | H24: BSE
A25: 2018-07-03 | B25: 534708 | C25: RCRL | D25: SHRADDHA SARAF | E25: BUY | F25: 66,000 | G25: 15.01 | H25: BSE
A26: 2018-07-03 | B26: 534708 | C26: RCRL | D26: REKHA SARAF | E26: BUY | F26: 66,000 | G26: 14.93 | H26: BSE
A27: 2018-07-03 | B27: 534708 | C27: RCRL | D27: ESHWAR (HUF) | E27: SELL | F27: 99,000 | G27: 14.94 | H27: BSE
A28: 2018-07-03 | B28: 540821 | C28: SADHNA | D28: MAHENDER SINGH | E28: BUY | F28: 172,000 | G28: 23.45 | H28: BSE
A29: 2018-07-03 | B29: 540821 | C29: SADHNA | D29: SULABH DIKSHIT | E29: SELL | F29: 87,500 | G29: 23.45 | H29: BSE
A30: 2018-07-03 | B30: 540821 | C30: SADHNA | D30: HARI SHANKAR | E30: SELL | F30: 59,558 | G30: 23.45 | H30: BSE
A31: 2018-07-03 | B31: 502175 | C31: SAURASHCEM | D31: SNEHLATA NUWAL | E31: SELL | F31: 495,000 | G31: 57.4 | H31: BSE
A32: 2018-07-03 | B32: 502175 | C32: SAURASHCEM | D32: INDIANIVESH CAPITALS LIMITED | E32: BUY | F32: 495,000 | G32: 57.4 | H32: BSE
A33: 2018-07-03 | B33: 538891 | C33: SIPROJECTS | D33: NIVEDAN BHARADWAJ | E33: SELL | F33: 44,000 | G33: 241.02 | H33: BSE
A34: 2018-07-03 | B34: 519238 | C34: SPTRSHI | D34: INDIRABEN RAVJIBHAI PATEL | E34: SELL | F34: 133,000 | G34: 7.92 | H34: BSE
A35: 2018-07-03 | B35: JUSTDIAL | C35: Justdial Ltd. | D35: CROSSLAND TRADING CO | E35: BUY | F35: 378,372 | G35: 554.26 | H35: NSE
A36: 2018-07-03 | B36: JUSTDIAL | C36: Justdial Ltd. | D36: SHAASTRA SECURITIES TRADING PRIVATE LIMITED | E36: BUY | F36: 480,524 | G36: 552.1 | H36: NSE
A37: 2018-07-03 | B37: KEERTI | C37: Keerti Know & Skill Ltd. | D37: IG FINANCIAL SERVICES INDIA PVT LTD | E37: BUY | F37: 26,000 | G37: 57.02 | H37: NSE
A38: 2018-07-03 | B38: KEERTI | C38: Keerti Know & Skill Ltd. | D38: KARNEE INVESTMENT PRIVATE LIMITED | E38: BUY | F38: 24,000 | G38: 57 | H38: NSE
A39: 2018-07-03 | B39: NARMADA | C39: Narmada Agrobase Limited | D39: VEERAM VENDORS PRIVATELIMITED | E39: BUY | F39: 244,000 | G39: 23.5 | H39: NSE
A40: 2018-07-03 | B40: SAKUMA | C40: Sakuma Exports Limited | D40: AGARWAL SAUMYA | E40: BUY | F40: 132,921 | G40: 191.28 | H40: NSE
A41: 2018-07-03 | B41: SHRADHA | C41: Shradha Infraproj (N) Ltd | D41: ESSENN LPG BOTTLING PRIVATE LIMITED | E41: BUY | F41: 60,000 | G41: 41.31 | H41: NSE
A42: 2018-07-03 | B42: SUULD | C42: Suumaya Lifestyle Limited | D42: NEWEDGE VINIMAY PRIVATE LIMITED | E42: BUY | F42: 304,000 | G42: 18.32 | H42: NSE
A43: 2018-07-03 | B43: WINDMACHIN | C43: Windsor Machines Limited | D43: INDIANIVESH CAPITALS LIMITED | E43: BUY | F43: 340,000 | G43: 104.97 | H43: NSE
A44: 2018-07-03 | B44: 8KMILES | C44: 8K Miles Soft Serv Ltd | D44: KOTAK MAHINDRA INVESTMENTS LIMITED | E44: SELL | F44: 170,000 | G44: 323.54 | H44: NSE
A45: 2018-07-03 | B45: FILATEX | C45: Filatex India Ltd | D45: SAVITA HOLDINGS PRIVATE LIMITED | E45: SELL | F45: 1,400,000 | G45: 45 | H45: NSE
A46: 2018-07-03 | B46: JUSTDIAL | C46: Justdial Ltd. | D46: CROSSLAND TRADING CO | E46: SELL | F46: 378,372 | G46: 554.71 | H46: NSE
A47: 2018-07-03 | B47: JUSTDIAL | C47: Justdial Ltd. | D47: SHAASTRA SECURITIES TRADING PRIVATE LIMITED | E47: SELL | F47: 480,524 | G47: 552.46 | H47: NSE
A48: 2018-07-03 | B48: NARMADA | C48: Narmada Agrobase Limited | D48: VIVIDOFFSET PRINTERS PRIVATELIMITED | E48: SELL | F48: 244,000 | G48: 23.5 | H48: NSE
A49: 2018-07-03 | B49: RMDRIP | C49: R M Drip & Sprink Sys Ltd | D49: BHARTI VIJAY KATARIA | E49: SELL | F49: 40,000 | G49: 49.83 | H49: NSE
A50: 2018-07-03 | B50: SAKUMA | C50: Sakuma Exports Limited | D50: AGARWAL SAUMYA | E50: SELL | F50: 132,921 | G50: 192.28 | H50: NSE
A51: 2018-07-03 | B51: SHRADHA | C51: Shradha Infraproj (N) Ltd | D51: ARYAMAN CAPITAL MARKETS LIMITED | E51: SELL | F51: 60,000 | G51: 41.31 | H51: NSE
A52: 2018-07-03 | B52: SUULD | C52: Suumaya Lifestyle Limited | D52: NNM SECURITIES PVT. LTD. | E52: SELL | F52: 304,000 | G52: 18.32 | H52: NSE

Sheet Call Tracker (Equity & F&O)
M5: Back To Main Page
A6: Retail Research Technical Calls & Fundamental Performance Report for the month of July -2018
M7: =Main!B10 -> 2018-07-04
B8: Positional Call
A9: Sr.no | B9: Date | D9: Company | E9: Rec | F9: Rec Price | G9: Stop Loss*** | H9: Call Closed At | I9: Target | J9: Remark | K9: Profit / Loss per Share | L9: Gain / Loss % | M9: Status | N9: Closed Date | O9: NSE Closed Price
A10: 1 | B10: 2018-06-18 | D10: BIOCON | E10: Buy | F10: 624 | G10: 596 | H10: 644.5 | I10: 675-685 | J10: Part Profit of Rs.20.5/- | K10: =H10-F10 -> 20.5 | L10: =K10/F10 -> 3.29% | M10: Successful | N10: 2018-06-25 | R10: H
A11: 2 | B11: 2018-06-21 | D11: CENTURYTEX | E11: Buy | F11: 902.5 | G11: 873 | H11: 864.5 | I11: 955-965 | J11: Loss of Rs.38/- | K11: =H11-F11 -> -38.00 | L11: -4.21% | M11: Unsuccessful | N11: 2018-07-02 | R11: R
A12: 3 | B12: 2018-06-27 | D12: RAMCOCEM | E12: Buy | F12: 703-707 | G12: 675 | I12: 760-770 | J12: Open | O12: =VLOOKUP(D12,Sheet2!$A$1:M2162,6,0) -> 704 | R12: R
A13: 4 | B13: 2018-06-29 | D13: CANBK | E13: Buy | F13: 251-254 | G13: 241 | I13: 270-280 | J13: Open | O13: =VLOOKUP(D13,Sheet2!$A$1:M2164,6,0) -> 244.75 | R13: H
A14: 5 | B14: 2018-07-03 | D14: MCDOWELL-N | E14: Buy | F14: 655-660 | G14: 620 | I14: 715-725 | J14: Open | O14: =VLOOKUP(D14,Sheet2!$A$1:M2165,6,0) -> 655.35 | R14: R
A15: 6 | B15: 2018-07-03 | D15: NILKAMAL | E15: Buy | F15: 1570-1580 | G15: 1498 | I15: 1720-1740 | J15: Open | O15: =VLOOKUP(D15,Sheet2!$A$1:M2166,6,0) -> 1635.9 | R15: R
A16: 7 | B16: 2018-07-03 | D16: ZEEL | E16: Buy | F16: 537-541 | G16: 518 | I16: 580-590 | J16: Open | O16: =VLOOKUP(D16,Sheet2!$A$1:M2167,6,0) -> 544.8 | R16: H
A20: CLBS = Closing Basis *** | F20: Reinitiated $
A21: Dividend adjusted <> | F21: Revised stoploss #
A23: Master Trade High Risk
A24: Sr.no | B24: Date | D24: Company | E24: Rec | F24: Rec Price | G24: Stop Loss | H24: Call Closed At | I24: Target | J24: Remark | K24: Profit / Loss per share | L24: Gain / Loss per Lot | M24: Lot | N24: Status | O24: Closed Date
A25: 1 | B25: 2018-07-02 | D25: NIFTY JUL FUT | E25: Buy | F25: 10640-10650 | G25: 10545 | I25: 10850 | J25: Open | R25: R
A26: 2 | B26: 2018-07-03 | D26: BANKNIFTY JUL FUT | E26: Buy | F26: 26260-26280 | G26: 25950 | I26: 26900-27000 | J26: Open | R26: R
A34: Master Trade Medium Risk
A35: Sr.no | B35: Date | D35: Company | E35: Rec | F35: Rec Price | G35: Stop Loss | H35: Call Closed At | I35: Target | J35: Remark | K35: Profit/ Loss per lot | L35: Gain / Loss per Lot | M35: Lot | N35: Status | O35: Closed Date
B51: Smart Delivery Trade
A52: Sr.no | B52: Date | D52: Company | E52: Rec | F52: Rec Price | G52: Stop Loss*** | H52: Call Closed At | I52: Target | J52: Remark | K52: Profit / Loss per Share | L52: Gain / Loss % | M52: Status | N52: Closed Date | O52: NSE Closed Price
A53: 1 | B53: 2018-06-29 | D53: STAR | E53: Buy | F53: 393-395 | G53: 378.7 | I53: 415-420 | J53: Open | O53: =VLOOKUP(D53,Sheet2!$A$1:M2215,6,0) -> 397 | R53: R
A54: 2 | B54: 2018-06-29 | D54: HCLTECH | E54: Buy | F54: 918-923 | G54: 889.8 | I54: 970-980 | J54: Open | O54: =VLOOKUP(D54,Sheet2!$A$1:M2216,6,0) -> 937.5 | R54: R
A55: 3 | B55: 2018-06-29 | D55: COLPAL | E55: Buy | F55: 1171-1177 | G55: 1148 | I55: 1215-1230 | J55: Open | O55: =VLOOKUP(D55,Sheet2!$A$1:M2217,6,0) -> 1150.5 | R55: H
A56: 4 | B56: 2018-06-29 | D56: SUNPHARMA | E56: Buy | F56: 562-566 | G56: 548 | I56: 590-600 | J56: Open | O56: =VLOOKUP(D56,Sheet2!$A$1:M2218,6,0) -> 573.6 | R56: H
A57: 5 | B57: 2018-07-02 | D57: JINDALSTEL | E57: Buy | F57: 219 | G57: 213 | H57: 212 | I57: 230-232 | J57: Loss of Rs.7/- | K57: =H57-F57 -> -7.00 | L57: =K57/F57 -> -3.20% | M57: Unsuccessful | N57: 2018-07-02 | R57: H
A58: 6 | B58: 2018-07-02 | D58: VOLTAS | E58: Buy | F58: 520-522 | G58: 507 | I58: 550-555 | J58: Open | O58: =VLOOKUP(D58,Sheet2!$A$1:M2220,6,0) -> 525.95 | R58: R
A59: 7 | B59: 2018-07-03 | D59: TORNTPHARM | E59: Buy | F59: 1422.5 | G59: 1379 | H59: 1450 | I59: 1500-1510 | J59: Profit of Rs.27.50/- | K59: =H59-F59 -> 27.50 | L59: =K59/F59 -> 1.93% | M59: Successful | N59: 2018-07-03 | R59: R
A68: CLBS = Closing Basis *** | F68: Reinitiated $
A69: Dividend adjusted <> | F69: Revised stoploss #
B72: Momentum Call
A73: Sr.no | B73: Date | D73: Company | E73: Rec | F73: Rec Price | G73: Stop Loss | H73: Call Closed At | I73: Target | J73: Remark | K73: Profit / Loss per Share/Lot | L73: Gain / Loss % | M73: Gain / Loss per Lot | N73: Lot | O73: Status | P73: Closed Date | Q73: NSE Closed Price
A74: 1 | B74: 2018-07-02 | D74: LT JUL FUT | E74: Buy | F74: 1258.5 | G74: 1240 | H74: 1266 | I74: 1290-1300 | J74: Profit of Rs.7.50/- | K74: =H74-F74 -> 7.5 | M74: =N74*K74 -> 5625 | N74: 750 | O74: Successful | P74: 2018-07-03 | R74: H
A75: 2 | B75: 2018-07-02 | D75: RBLBANK JUL FUT | E75: Buy | F75: 552.5 | G75: 541 | H75: 560.5 | I75: 570 | J75: Profit of Rs.8/- | K75: 8 | M75: 9600 | N75: 1200 | O75: Successful | P75: 2018-07-03 | R75: N
A76: 3 | B76: 2018-07-02 | D76: HINDUNILVR JUL FUT | E76: Buy | F76: 1647.5 | G76: 1628 | H76: 1661 | I76: 1700 | J76: Profit of Rs.13.5/- | K76: =H76-F76 -> 13.5 | M76: =N76*K76 -> 8100 | N76: 600 | O76: Successful | P76: 2018-07-03 | R76: R
A77: 4 | B77: 2018-07-02 | D77: ARVIND JUL FUT | E77: Buy | F77: 387 | G77: 382.5 | H77: 390.5 | I77: 395-398 | J77: Profit of Rs.3.50/- | K77: =H77-F77 -> 3.5 | M77: =N77*K77 -> 7000 | N77: 2000 | O77: Successful | P77: 2018-07-02 | R77: N
A78: 5 | B78: 2018-07-03 | D78: BANKBARODA | E78: Buy | F78: 112.5-113 | G78: 109.5 | I78: 117-119 | J78: Open | R78: H
A79: 6 | B79: 2018-07-03 | D79: EXIDEIND JUN FUT | E79: Buy | F79: 256.75 | G79: 253.5 | H79: 258.75 | I79: 265 | J79: Profit of Rs.2/- | K79: =H79-F79 -> 2 | M79: =N79*K79 -> 8000 | N79: 4000 | O79: Successful | P79: 2018-07-03 | R79: N
A80: 7 | B80: 2018-07-03 | D80: M&M JUL FUT | E80: Buy | F80: 878 | G80: 867 | H80: 886 | I80: 890-900 | J80: Profit of Rs.8/- | K80: =H80-F80 -> 8 | M80: =N80*K80 -> 8000 | N80: 1000 | O80: Successful | P80: 2018-07-03 | R80: H
A81: 8 | B81: 2018-07-03 | D81: ACC JUL FUT | E81: Buy | F81: 1316.5 | G81: 1290 | H81: 1335.5 | I81: 1350-1360 | J81: Profit of Rs.19/- | K81: =H81-F81 -> 19 | M81: =N81*K81 -> 7600 | N81: 400 | O81: Successful | P81: 2018-07-03 | R81: H
A82: 9 | B82: 2018-07-03 | D82: RELIANCE JULY FUT | E82: Buy | F82: 972-974 | G82: 959 | I82: 990-995 | J82: Open | R82: H
A91: CLBS = Closing Basis *** | F91: Reinitiated $
A92: Dividend adjusted <> | F92: Revised stoploss #
B94: Quick Pick Intraday
A95: Sr.no | B95: Date | D95: Company | E95: Rec | F95: Rec Price | G95: Stop Loss*** | H95: Call Closed At | I95: Target | J95: Remark | K95: Profit / Loss per Share | L95: Status | M95: Closed Date
A109: Techno -Funda (positional)
A110: Sr.no | B110: Date | D110: Company | E110: Rec | F110: Rec Price | G110: Stop Loss*** | H110: Call Closed At | I110: Target | J110: Remark | K110: Profit / Loss per Share | L110: Gain / Loss % | M110: Status | N110: Closed Date | O110: NSE Closed Price
A111: 1 | B111: 2018-06-04 | D111: BAJAJ-AUTO | E111: Buy | F111: 2875-2895 | G111: 2730 | I111: 3170-3200 | J111: Open | R111: H
A113: CLBS = Closing Basis *** | F113: Reinitiated $
A114: Dividend adjusted <> | F114: Revised stoploss #
B119: Investment Idea
A120: Sr.no | B120: Date | D120: Company | E120: Rec | F120: Rec Price | G120: Point of Review | H120: Close Rate | I120: Target | J120: Remark | K120: Profit / Loss per Share | L120: Gain / Loss % | M120: Status | N120: Closed Date
A121: 1 | B121: 2013-11-01 | D121: L&T Finance Holding | E121: Accu | F121: 82.00 | G121: - | H121: 100 | I121: 100.00 | J121: Target Achieved | K121: =H121-F121 -> 18.00 | L121: =K121/F121 -> 21.95% | M121: Successful | N121: 2016-10-14
A122: 2 | B122: 2014-06-04 | D122: Finolex Inds | E122: Buy | F122: 257.00 | G122: - | H122: 300 | I122: 300.00 | J122: Target Achieved | K122: =H122-F122 -> 43.00 | L122: 16.73% | M122: Successful | N122: 2014-07-02
A123: =1+A122 -> 3 | B123: 2014-07-08 | D123: JK Cement | E123: Buy | F123: 393.00 | G123: - | H123: 468 | I123: 468.00 | J123: Target Achieved | K123: =H123-F123 -> 75.00 | L123: 19.08% | M123: Successful | N123: 2014-08-12
A124: 4 | B124: 2014-08-06 | D124: Finolex Cables | E124: Buy | F124: 205.00 | G124: - | H124: 275 | I124: 250.00 | J124: Target Achieved | K124: 70.00 | L124: 34.15% | M124: Successful | N124: 2014-11-19
A125: 5 | B125: 2014-09-04 | D125: Exide Inds | E125: Buy | F125: 162.00 | G125: - | H125: 190 | I125: 190.00 | J125: Target Achieved | K125: 28.00 | L125: 17.28% | M125: Successful | N125: 2015-01-02
A126: 6 | B126: 2014-09-04 | D126: Deepak Nitrite | E126: Buy | F126: 75.00 | G126: - | H126: 91.5 | I126: 95-100 | J126: Profit of Rs.16.50/- | K126: 16.50 | L126: 22.00% | M126: Successful | N126: 2014-11-11
A127: 7 | B127: 2014-10-01 | D127: Mercks | E127: Buy | F127: 850.00 | G127: - | H127: 982.5 | I127: 1050.00 | J127: Profit of Rs.132.50/- | K127: 132.50 | L127: 15.59% | M127: Successful | N127: 2015-02-04
A128: 8 | B128: 2014-10-01 | D128: Grindwell Norton | E128: Buy | F128: 475.00 | G128: - | H128: 515 | I128: 600.00 | J128: Profit of Rs.40/- | K128: 40.00 | L128: 8.42% | M128: Successful | N128: 2014-10-27
A129: 9 | B129: 2014-10-01 | D129: Snowman Logistics | E129: Buy | F129: 86.00 | G129: - | H129: 99 | I129: 140.00 | J129: Profit of Rs.13.00/- | K129: 13.00 | L129: 15.12% | M129: Successful | N129: 2014-10-27
A130: 10 | B130: 2014-10-14 | D130: Birla Corp | E130: Buy | F130: 496.60 | G130: - | H130: 621 | I130: 580.00 | J130: Target Achieved | K130: 124.40 | L130: 25.05% | M130: Successful | N130: 2016-08-23
A131: 11 | B131: 2014-10-14 | D131: Ultratech Cem | E131: Buy | F131: 2481.90 | G131: - | H131: 2840 | I131: 2870.00 | J131: Profit of Rs.358.10/- | K131: 358.10 | L131: 14.43% | M131: Successful | N131: 2015-01-13
A132: =1+A129 -> 10 | B132: 2014-10-16 | D132: Sintex Inds | E132: Buy | F132: 84.50 | G132: - | H132: 93 | I132: 110.00 | J132: Profit of Rs.8.50/- | K132: 8.50 | L132: 10.06% | M132: Successful | N132: 2014-10-27
A133: =1+A132 -> 11 | B133: 2014-10-16 | D133: HSIL | E133: Buy | F133: 401.00 | G133: - | H133: 428 | I133: 450.00 | J133: Profit of Rs.27.00/- | K133: 27.00 | L133: 6.73% | M133: Successful | N133: 2015-01-16
A134: 12 | B134: 2014-10-16 | D134: Eveready Inds | E134: Buy | F134: 101.00 | G134: - | H134: 112 | I134: 120.00 | J134: Profit of Rs.11.00/- | K134: 11.00 | L134: 10.89% | M134: Successful | N134: 2014-10-27
A135: 13 | B135: 2014-11-11 | D135: Pennar Inds | E135: Buy | F135: 59.00 | G135: - | H135: 76 | I135: 76.00 | J135: Target Achieved | K135: 17.00 | L135: 28.81% | M135: Successful | N135: 2017-10-24
A136: 14 | B136: 2014-11-11 | D136: Snowman Logistics | E136: Buy | F136: 99.00 | G136: - | H136: 120 | I136: 120.00 | J136: Profit of Rs.21/- | K136: 21.00 | L136: 21.21% | M136: Successful | N136: 2014-11-17
A137: 15 | B137: 2014-11-13 | D137: Dharamsi Morarji Chem | E137: Buy | F137: 22.00 | G137: - | H137: 33.55 | I137: 32.00 | J137: Profit of Rs 11.55/- | K137: 11.55 | L137: 52.50% | M137: Successful | N137: 2015-07-03
A138: 16 | B138: 2014-12-03 | D138: Tatachem | E138: Buy | F138: 440.00 | G138: - | H138: 520 | I138: 520.00 | J138: Profit of Rs 80.00/- | K138: 80.00 | L138: 18.18% | M138: Successful | N138: 2015-07-23
A139: 17 | B139: 2014-12-03 | D139: Advanta | E139: Buy | F139: 360.00 | G139: - | H139: 427 | I139: 425.00 | J139: Profit of Rs.67.00/- | K139: 67.00 | L139: 18.61% | M139: Successful | N139: 2015-02-23
A140: 18 | B140: 2015-01-08 | D140: GDL | E140: Buy | F140: 360.00 | G140: - | H140: 455 | I140: 420.00 | J140: Profit of Rs.95.00/- | K140: 95.00 | L140: 26.39% | M140: Successful | N140: 2015-01-20
A141: 19 | B141: 2015-01-08 | D141: NRB Bearing | E141: Buy | F141: 130.00 | H141: 175.5 | I141: 165.00 | J141: Profit of Rs 45.50/- | K141: 45.50 | L141: 35.00% | M141: Successful | N141: 2017-12-19
A142: 20 | B142: 2015-02-05 | D142: GSFC | E142: Accu | F142: 98.00 | H142: 120 | I142: 120.00 | J142: Target Achieved | K142: 22.00 | L142: 22.45% | M142: Successful | N142: 2017-01-18
A143: 21 | B143: 2015-02-05 | D143: Sundrmfast | E143: Accu | F143: 196.00 | H143: 262 | I143: 255.00 | J143: Target Achieved | K143: 66.00 | L143: 33.67% | M143: Successful | N143: 2016-08-17
A144: 22 | B144: 2015-03-04 | D144: GPPL | E144: Accu | F144: 230-240 | I144: 280-285 | J144: Open
A145: 23 | B145: 2015-03-04 | D145: ORIENTCEM | E145: Accu | F145: 185.00 | H145: 224 | I145: 220-225 | J145: Target Achieved | K145: 39.00 | L145: =K145/F145 -> 21.08% | M145: Successful | N145: 2016-10-04
A146: 24 | B146: 2015-03-27 | D146: PFS | E146: Accu | F146: 49-50 | I146: 67.00 | J146: Open
A147: 25 | B147: 2015-03-30 | D147: Walchandnagar Ind Ltd | E147: Accu | F147: 183.50 | H147: 219 | I147: 218.00 | J147: Profit of Rs.35.50/- | K147: 35.50 | L147: =K147/F147 -> 19.35% | M147: Successful | N147: 2015-04-09
A148: 26 | B148: 2015-04-20 | D148: Kalpataru Power Transmission Ltd | E148: Accu | F148: =(227+237)/2 -> 232.00 | H148: 298 | I148: 298.00 | J148: Target Achieved | K148: 66.00 | L148: 28.45% | M148: Successful | N148: 2017-03-29
A149: 27 | B149: 2015-05-04 | D149: Mastek Ltd | E149: Buy | F149: 385.00 | H149: =212.5+331 -> 543.5 | I149: 510.00 | J149: Profit of Rs 158.50/- | K149: 158.50 | L149: 41.17% | M149: Successful | N149: 2015-08-19
A150: 28 | B150: 2015-05-04 | D150: Suprajit Eng | E150: Buy | F150: 115.50 | H150: 146 | I150: 142.00 | J150: Profit of Rs 30.50/- | K150: 30.50 | L150: 26.41% | M150: Successful | N150: 2015-07-17
A151: 29 | B151: 2015-05-27 | D151: TCI | E151: Buy | F151: 237.50 | H151: 279.5 | I151: 278.00 | J151: Target Achieved | K151: 42.00 | L151: 17.68% | M151: Successful | N151: 2015-08-06
A152: 30 | B152: 2015-06-19 | D152: HSIL | E152: Accu | F152: 340.00 | H152: 448 | I152: 448.00 | J152: Target Achieved | K152: 108.00 | L152: 31.76% | M152: Successful | N152: 2017-10-10
A153: 31 | B153: 2015-07-06 | D153: Capital First | E153: Accu | F153: 390.00 | H153: 460 | I153: 460.00 | J153: Target Achieved | K153: 70.00 | L153: 17.95% | M153: Successful | N153: 2016-04-18
A154: 32 | B154: 2015-07-10 | D154: Dolphin OffShore | E154: Accu | F154: 118-127 | I154: 172.00 | J154: Open
A155: 33 | B155: 2015-08-03 | D155: Allcargo logistics | E155: Accu | F155: 297.50 | H155: 350 | I155: 360.00 | J155: Profit of Rs 52.50/- | K155: 52.50 | L155: =K155/F155 -> 17.65% | M155: Successful | N155: 2015-08-16
A156: 34 | B156: 2015-08-03 | D156: Camline Fine | E156: Accu | F156: 115.50 | H156: 149 | I156: 140.00 | J156: Profit of Rs 33.50/- | K156: 33.50 | L156: 29.00% | M156: Successful | N156: 2017-01-05
A157: 35 | B157: 2015-09-04 | D157: TCI | E157: Accu | F157: 226.00 | H157: 292 | I157: 292.00 | J157: Target Achieved | K157: 66.00 | L157: 29.20% | M157: Successful | N157: 2015-10-09
A158: 36 | B158: 2015-09-07 | D158: Kalpataru Power Transmission Ltd | E158: Accu | F158: 232.50 | H158: 312.5 | I158: 310.00 | J158: Target Achieved | K158: 80.00 | L158: 34.41% | M158: Successful | N158: 2017-03-29
A159: 37 | B159: 2015-09-21 | D159: LLOYD ELECTRIC & ENG LTD | E159: Accu | F159: 196.50 | H159: 238 | I159: 238.00 | J159: Target Achieved | K159: 41.50 | L159: 21.12% | M159: Successful | N159: 2015-10-14
A160: 38 | B160: 2015-09-24 | D160: L&T Finance Holding | E160: Accu | F160: 65.00 | H160: 82 | I160: 82.00 | J160: Target Achieved | K160: 17.00 | L160: 26.15% | M160: Successful | N160: 2016-07-27
A161: 39 | B161: 2015-10-14 | D161: KEC International ltd | E161: Accu | F161: 144.00 | H161: 182.5 | I161: 181.00 | J161: Target Achieved | K161: 38.50 | L161: 26.74% | M161: Successful | N161: 2017-03-23
A162: 40 | B162: 2015-10-14 | D162: Gruh Finance | E162: Accu | F162: 264.00 | H162: 311 | I162: 311.00 | J162: Target Achieved | K162: 47.00 | L162: 17.80% | M162: Successful | N162: 2016-08-22
A163: 41 | B163: 2015-11-10 | D163: Pidilitind | E163: Buy | F163: 549.50 | H163: 630 | I163: 630.00 | J163: Target Achieved | K163: 80.50 | L163: 14.65% | M163: Successful | N163: 2016-02-19
A164: 42 | B164: 2015-12-04 | D164: Zensar Technology | E164: Accu | F164: 1027.50 | H164: 1315 | I164: 1250.00 | J164: Target Achieved | K164: =H164-F164 -> 287.50 | L164: 27.98% | M164: Successful | N164: 2018-05-24
A165: 43 | B165: 2015-12-29 | D165: Vinati Organics Ltd | E165: Accu | F165: 465.00 | H165: 540 | I165: 540.00 | J165: Target Achieved | K165: 75.00 | L165: =K165/F165 -> 16.13% | M165: Successful | N165: 2016-06-09
A166: 44 | B166: 2016-01-11 | D166: GSFC | E166: Buy | F166: 81.00 | H166: 110 | I166: 110.00 | J166: Target Achieved | K166: 29.00 | L166: 35.80% | M166: Successful | N166: 2017-01-10
A167: 45 | B167: 2016-01-13 | D167: SSWL | E167: Buy | F167: 417.50 | H167: 547 | I167: 535.00 | J167: Target Achieved | K167: 129.50 | L167: 31.02% | M167: Successful | N167: 2016-07-27
A168: 46 | B168: 2016-02-08 | D168: Persistent System Ltd | E168: Accu | F168: 650.00 | H168: 800 | I168: 800.00 | J168: Target Achieved | K168: 150.00 | L168: 23.08% | M168: Successful | N168: 2018-02-23
A169: 47 | B169: 2016-03-04 | D169: UPL | E169: Accu | F169: 437.50 | H169: 504.5 | I169: 522.00 | J169: Profit of Rs.67/- | K169: 67.00 | L169: 15.31% | M169: Successful | N169: 2016-04-20
A170: 48 | B170: 2016-03-09 | D170: Ashoka Buildcon Ltd | E170: Accu | F170: 189.50 | H170: 218 | I170: 218.00 | J170: Target Achieved | K170: 28.50 | L170: 15.04% | M170: Successful | N170: 2017-10-26
A171: 49 | B171: 2016-04-11 | D171: PTC INDIA FIN SERV LTD | E171: Accu | F171: 36-37 | I171: 60.00 | J171: Open
A172: 50 | B172: 2016-04-12 | D172: CAMLINFINE $ | E172: Accu | F172: 93.00 | H172: 149 | I172: 140.00 | J172: Profit of Rs 56/- | K172: 56.00 | L172: =K172/F172 -> 60.22% | M172: Successful | N172: 2017-01-05
A173: 51 | B173: 2016-04-12 | D173: Greaves Cotton Ltd. | E173: Accu | F173: 130.00 | H173: 150 | I173: 150-155 | J173: Target Achieved | K173: 20.00 | L173: 15.38% | M173: Successful | N173: 2016-07-13
A174: 52 | B174: 2016-04-13 | D174: DHFL | E174: Accu | F174: 196.00 | H174: 299 | I174: 299.00 | J174: Target Achieved | K174: 103.00 | L174: 52.55% | M174: Successful | N174: 2016-09-07
A175: 53 | B175: 2016-04-13 | D175: Magma | E175: Accu | F175: 88.00 | H175: 103 | I175: 103.00 | J175: Target Achieved | K175: 15.00 | L175: 17.05% | M175: Successful | N175: 2016-06-09
A176: 54 | B176: 2016-05-02 | D176: KEC International ltd $ | E176: Accu | F176: 127.50 | H176: 148 | I176: 148-150 | J176: Target Achieved | K176: 20.50 | L176: 16.08% | M176: Successful | N176: 2016-07-13
A177: 55 | B177: 2016-05-03 | D177: Mindtree | E177: Accu | F177: 675.00 | H177: 815 | I177: 790-800 | J177: Target Achieved | K177: 140.00 | L177: 20.74% | M177: Successful | N177: 2018-02-23
A178: 56 | B178: 2016-06-01 | D178: Atulauto | E178: Accu | F178: 495-505 | I178: 565-570 | J178: Open
A179: 57 | B179: 2016-06-06 | D179: TRITURBINE | E179: Accu | F179: 110.00 | H179: 126.5 | I179: 125.00 | J179: Profit of Rs.16.50/- | K179: 16.50 | L179: =K179/F179 -> 15.00% | M179: Successful | N179: 2016-07-01
A180: 58 | B180: 2016-06-17 | D180: Pennar Industries Ltd | E180: Accu | F180: 44.00 | H180: 69.5 | I180: 69.50 | J180: Profit of Rs.25.50/- | K180: 25.50 | L180: =K180/F180 -> 57.95% | M180: Successful | N180: 2017-08-30
A181: 59 | B181: 2016-06-28 | D181: EVEREADY INDS. IND. LTD. | E181: Accu | F181: 262.50 | H181: 340 | I181: 333.00 | J181: Profit of Rs.77.50/- | K181: 77.50 | L181: =K181/F181 -> 29.52% | M181: Successful | N181: 2017-10-09
A182: 60 | B182: 2016-06-28 | D182: FIEM INDUSTRIES LIMITED | E182: Accu | F182: 840.00 | H182: 1230 | I182: 1230.00 | J182: Target Achieved | K182: 390.00 | L182: =K182/F182 -> 46.43% | M182: Successful | N182: 2016-10-06
A183: 61 | B183: 2016-07-05 | D183: Bajaj Corp Ltd | E183: Accu | F183: 395 | H183: 468.50 | I183: 510.00 | J183: Part profit of Rs.73.50/- | K183: 73.50 | L183: =K183/F183 -> 19% | M183: Successful | N183: 2017-08-30
A184: 62 | B184: 2016-08-02 | D184: GPPL $ | E184: Buy | F184: 167-172 | I184: 198-200 | J184: Open
A185: 63 | B185: 2016-08-04 | D185: WONDERLA HOLIDAYS LTD | E185: Accu | F185: 395-405 | I185: 475.00 | J185: Open
A186: 64 | B186: 2016-08-11 | D186: CAMLINFINE | E186: Accu | F186: 86.50 | H186: 130 | I186: 130.00 | J186: Profit of Rs.43.50/- | K186: =H186-F186 -> 43.50 | L186: =K186/F186 -> 50.29% | M186: Successful | N186: 2017-12-22
A187: 65 | B187: 2016-08-18 | D187: GRANULES | E187: Accu | F187: 133.5 | H187: 126.50 | I187: 178.00 | J187: Exit | K187: -7.00 | L187: -5.24% | M187: Unsuccessful | N187: 2016-09-02
A188: 66 | B188: 2016-08-31 | D188: VA TECH WABAG | E188: Accu | F188: 560.00 | H188: 725 | I188: 725.00 | J188: Target Achieved | K188: 165.00 | L188: 29.46% | M188: Successful | N188: 2016-03-27
A189: 67 | B189: 2016-09-01 | D189: SKIPPER LIMITED | E189: Accu | F189: 160.50 | H189: 210 | I189: 210.00 | J189: Target Achieved | K189: 49.50 | L189: 30.84% | M189: Successful | N189: 2017-05-16
A190: 68 | B190: 2016-10-03 | D190: IFB Industries | E190: Accu | F190: 430.00 | H190: 596 | I190: 575.00 | J190: Profit of Rs.166/- | K190: 166.00 | L190: 38.60% | M190: Successful | N190: 2017-02-03
A191: 69 | B191: 2016-10-14 | D191: ASIANTILES | E191: Accu | F191: 280.00 | H191: 345 | I191: 345.00 | J191: Target Achieved | K191: 65.00 | L191: 23.21% | M191: Successful | N191: 2017-03-20
A192: 70 | B192: 2016-10-14 | D192: DEEPIND | E192: Accu | F192: 245.00 | H192: 325.5 | I192: 330.00 | J192: Profit of Rs.80.5/- | K192: 80.50 | L192: 32.86% | M192: Successful | N192: 2017-02-03
A193: 71 | B193: 2016-10-17 | D193: DCBBANK | E193: Accu | F193: 125.00 | H193: 160 | I193: 160.00 | J193: Target Achieved | K193: 35.00 | L193: 28.00% | M193: Successful | N193: 2017-03-09
A194: 72 | B194: 2016-10-17 | D194: ORIENTREF | E194: Accu | F194: 114.00 | H194: 145 | I194: 145.00 | J194: Target Achieved | K194: 31.00 | L194: =K194/F194 -> 27.19% | M194: Successful | N194: 2017-05-04
A195: 73 | B195: 2016-10-17 | D195: GANECOS | E195: Accu | F195: 212.00 | H195: 280 | I195: 276.00 | J195: Profit of Rs.68/- | K195: 68.00 | L195: =K195/F195 -> 32.08% | M195: Successful | N195: 2017-05-03
A196: 74 | B196: 2016-11-04 | D196: NBCC | E196: Accu | F196: 155.00 | H196: 210 | I196: 210.00 | J196: Profit of Rs.55/- | K196: 55.00 | L196: =K196/F196 -> 35.48% | M196: Successful | N196: 2017-07-28
A197: 75 | B197: 2016-12-06 | D197: PRECAM | E197: Accu | F197: 148-153 | I197: 174.00 | J197: Open
A198: 76 | B198: 2016-12-08 | D198: INFRATEL | E198: Accu | F198: 380.00 | H198: 478 | I198: 468.00 | J198: Target Achieved | K198: 98.00 | L198: =K198/F198 -> 25.79% | M198: Successful | N198: 2017-10-17
A199: 77 | B199: 2016-12-30 | D199: GODREJPROP | E199: Accu | F199: 305.00 | H199: 375 | I199: 375.00 | J199: Target Achieved | K199: 70.00 | L199: 22.95% | M199: Successful | N199: 2017-02-02
A200: 78 | B200: 2017-01-04 | D200: DEEPAKNTR | E200: Accu | F200: 99.50 | H200: 158 | I200: 158.00 | J200: Target Achieved | K200: 58.50 | L200: 58.79% | M200: Successful | N200: 2017-06-12
A201: 79 | B201: 2017-02-20 | D201: SUBROS | E201: Accu | F201: 202.50 | H201: 234 | I201: 234.00 | J201: Target Achieved | K201: 31.50 | L201: 15.56% | M201: Successful | N201: 2017-04-11
A202: 80 | B202: 2017-02-20 | D202: RECLTD | E202: Accu | F202: 140.50 | H202: 220 | I202: 220.00 | J202: Target Achieved | K202: 79.50 | L202: 56.58% | M202: Successful | N202: 2017-05-09
A203: 81 | B203: 2017-03-24 | D203: VRLLOG | E203: Accu | F203: 300.50 | H203: 417.5 | I203: 420.00 | J203: Profit of Rs.117/- | K203: 117.00 | L203: 38.94% | M203: Successful | N203: 2017-12-01
A204: 82 | B204: 2017-03-24 | D204: FIEMIND | E204: Accu | F204: 850.00 | H204: 1042.5 | I204: 1023.00 | J204: Profit of Rs 192.50/- | K204: 192.50 | L204: 22.65% | M204: Successful | N204: 2017-04-05
A205: 83 | B205: 2017-04-05 | D205: RATNAMANI | E205: Accu | F205: 785.00 | H205: 930 | I205: 920.00 | J205: Profit of Rs.145/- | K205: 145.00 | L205: 18.47% | M205: Successful | N205: 2017-08-29
A206: 84 | B206: 2017-04-06 | D206: ZEEMEDIA | E206: Accu | F206: 39-41 | I206: 60.00 | J206: Open
A207: 85 | B207: 2017-04-12 | D207: DABUR | E207: Accu | F207: 289.50 | H207: 354 | I207: 360.00 | J207: Profit of Rs.64.5/- | K207: 64.50 | L207: =K207/F207 -> 22.28% | M207: Successful | N207: 2017-11-01
A208: 86 | B208: 2017-04-20 | D208: KPRMILL | E208: Accu | F208: 700.00 | H208: 840 | I208: 840.00 | J208: Profit of Rs.140/- | K208: 140.00 | L208: =K208/F208 -> 20.00% | M208: Successful | N208: 2017-06-07
A209: 87 | B209: 2017-05-22 | D209: GREAVESCOT | E209: Accu | F209: 153-158 | I209: 190.00 | J209: Open
A210: 88 | B210: 2017-06-01 | D210: ESSELPACK | E210: Accu | F210: 260 | H210: 311.00 | I210: 340.00 | J210: Part profit of Rs.51/- | K210: =H210-F210 -> 51.00 | L210: =K210/F210 -> 20% | M210: Successful | N210: 2017-11-17
A211: 89 | B211: 2017-06-15 | D211: KEI | E211: Accu | F211: 214.50 | H211: 262 | I211: 262.00 | J211: Profit of Rs.47.5/- | K211: =H211-F211 -> 47.50 | L211: 22.14% | M211: Successful | N211: 2017-08-30
A212: 90 | B212: 2017-07-17 | D212: MAYURUNIQ | E212: Accu | F212: 370.00 | H212: 447.5 | I212: 450.00 | J212: Target Achieved | K212: 77.50 | L212: 20.95% | M212: Successful | N212: 2017-10-27
A213: 91 | B213: 2017-07-27 | D213: RAMCOCEM | E213: Accu | F213: 657.50 | H213: 825 | I213: 820.00 | J213: Target Achieved | K213: 167.50 | L213: 25.48% | M213: Successful | N213: 2017-12-21
A214: 92 | B214: 2017-08-17 | D214: FINPIPE | E214: Accu | F214: 605.00 | H214: 750 | I214: 750.00 | J214: Profit of Rs.145/- | K214: 145.00 | L214: 23.97% | M214: Successful | N214: 2017-10-19
A215: 93 | B215: 2017-09-01 | D215: SHK | E215: Accu | F215: 255 | H215: 307.50 | I215: 320.00 | J215: Part profit of Rs.52.5/- | K215: 52.50 | L215: 21% | M215: Successful | N215: 2017-12-29
A216: 94 | B216: 2017-09-19 | D216: SKIPPER | E216: Accu | F216: 215.00 | H216: 258 | I216: 258.00 | J216: Target Achieved | K216: 43.00 | L216: 20.00% | M216: Successful | N216: 2017-11-01
A217: 95 | B217: 2017-09-20 | D217: CAMLINFINE | E217: Accu | F217: 75.00 | H217: 90 | I217: 90.00 | J217: Profit of Rs.15.00/- | K217: 15.00 | L217: 20.00% | M217: Successful | N217: 2017-10-11
A218: 96 | B218: 2017-10-03 | D218: GNA | E218: Accu | F218: 315.00 | H218: 392 | I218: 384.00 | J218: Profit of Rs.77/- | K218: 77.00 | L218: 24.44% | M218: Successful | N218: 2017-10-09
A219: 97 | B219: 2017-10-05 | D219: NOCIL | E219: Accu | F219: 145.00 | H219: 179 | I219: 180.00 | J219: Profit of Rs.34/- | K219: 34.00 | L219: 23.45% | M219: Successful | N219: 2017-10-17
A220: 98 | B220: 2017-10-06 | D220: CENTURYPLY | E220: Accu | F220: 256.00 | H220: 323 | I220: 320.00 | J220: Target Achieved | K220: 67.00 | L220: 26.17% | M220: Successful | N220: 2017-11-28
A221: 99 | B221: 2017-10-09 | D221: RECLTD | E221: Accu | F221: 152.5 | H221: 183.50 | I221: 210.00 | J221: Part Profit of Rs.31/- | K221: 31.00 | L221: 20% | M221: Successful | N221: 2017-11-03
A222: 100 | B222: 2017-10-09 | D222: EIHOTEL | E222: Accu | F222: 137.50 | H222: 184 | I222: 183.00 | J222: Profit of Rs.46.5/- | K222: 46.50 | L222: 33.82% | M222: Successful | N222: 2018-01-08
A223: 101 | B223: 2017-10-10 | D223: BOROSIL | E223: Accu | F223: 895.00 | H223: 1122.5 | I223: 1078.00 | J223: Profit of Rs.227.5/- | K223: 227.50 | L223: 25.42% | M223: Successful | N223: 2018-01-17
A224: 102 | B224: 2017-10-10 | D224: NRBBEARING | E224: Accu | F224: 125.50 | H224: 158 | I224: 155.00 | J224: Profit of Rs.32.5/- | K224: 32.50 | L224: 25.90% | M224: Successful | N224: 2017-11-28
A225: 103 | B225: 2017-10-12 | D225: CYIENT | E225: Accu | F225: 525.00 | H225: 629 | I225: 629.00 | J225: Target Achieved | K225: 104.00 | L225: 19.81% | M225: Successful | N225: 2018-01-19
A226: 104 | B226: 2017-11-07 | D226: HATSUN | E226: Accu | F226: 740.00 | H226: 892.5 | I226: 900.00 | J226: Profit of Rs.152.5/- | K226: 152.50 | L226: 20.61% | M226: Successful | N226: 2017-11-13
A227: 105 | B227: 2017-12-04 | D227: SANGHIIND | E227: Accu | F227: 118.50 | H227: 143.5 | I227: 145.00 | J227: Profit of Rs.25/- | K227: 25.00 | L227: 21.10% | M227: Successful | N227: 2017-12-28
A228: 106 | B228: 2017-12-05 | D228: ALLCARGO | E228: Accu | F228: 177.5 | H228: 215.00 | I228: 230.00 | J228: Part Profit of Rs.37.5/- | K228: 37.50 | L228: 21% | M228: Successful | N228: 2017-12-27
A229: 107 | B229: 2017-12-21 | D229: KAJARIACER | E229: Accu | F229: 710-720 | I229: 872.00 | J229: Open
A230: 108 | B230: 2017-12-29 | D230: GNA | E230: Accu | F230: 435.00 | H230: 542.5 | I230: 539.00 | J230: Target Achieved | K230: =H230-F230 -> 107.50 | L230: =K230/F230 -> 24.71% | M230: Successful | N230: 2018-04-16
A231: 109 | B231: 2017-12-29 | D231: ZENSARTECH | E231: Accu | F231: 885.00 | H231: 1090 | I231: 1084.00 | J231: Target Achieved | K231: 205.00 | L231: =K231/F231 -> 23.16% | M231: Successful | N231: 2018-04-23
A232: 110 | B232: 2018-02-07 | D232: GREAVESCOT | E232: Accu | F232: 130-132 | I232: 190.00 | J232: Open
A233: 111 | B233: 2018-02-27 | D233: MOLDTKPAC | E233: Accu | F233: 320-330 | I233: 398.00 | J233: Open
A234: 112 | B234: 2018-03-05 | D234: LICHSGFIN | E234: Accu | F234: 505-515 | I234: 672.00 | J234: Open
A235: 113 | B235: 2018-04-02 | D235: EVERESTIND | E235: Accu | F235: 485-500 | I235: 613.00 | J235: Open
A236: 114 | B236: 2018-04-04 | D236: GPPL | E236: Accu | F236: 140-143 | I236: 180.00 | J236: Open
A237: 115 | B237: 2018-04-19 | D237: MANPASAND | E237: Accu | F237: 430 | H237: 220.00 | I237: 537.00 | J237: Loss of Rs.210/- | K237: =H237-F237 -> -210.00 | L237: =K237/F237 -> -48.84% | M237: Unsuccessful | N237: 2018-06-01
A238: 116 | B238: 2018-04-30 | D238: HEIDELBERG | E238: Accu | F238: 154-158 | I238: 196.00 | J238: Open
A239: 117 | B239: 2018-05-17 | D239: PHILIPCARB | E239: Accu | F239: 230-240 | I239: 348.00 | J239: Open
A240: 118 | B240: 2018-06-07 | D240: KEC | E240: Accu | F240: 340-345 | I240: 439.00 | J240: Open
F241: Reinitiated $
A243: Disclaimer:
A244: This document has been prepared by the Retail Research Desk of Asit C Mehta
A245: Investment Intermediates Ltd. and is meant for use of the recipient only
A246: and is not for circulation. This document is not to be reported or
A247: copied or made available to others. It should not be considered to be
A248: taken as an offer to sell or a solicitation to buy any security. The
A249: information contained herein is from sources believed reliable. We do
A250: not represent that it is accurate or complete and it should not be
A251: relied upon as such. We may from time to time have positions in and buy
A252: and sell securities referred to herein

Sheet Call Tracker (Currency) (hidden)
A1: Master Trade High Risk
A2: Sr.no | B2: Date | C2: Company | D2: Rec | E2: Rec Price | F2: Stop Loss | G2: Call Closed At | H2: Target | I2: Remark | K2: Profit / Loss per share | L2: Gain / Loss per Lot | M2: Lot | N2: Status | O2: Closed Date
A3: 1 | B3: 2017-05-08 | C3: USDINR MAY FUT | D3: Buy | E3: 64.3935 | F3: 64.29 | G3: 64.66 | H3: 64.59 | I3: Profit of Rs.0.27/- | K3: 0.27 | L3: 266.5 | M3: 1000 | N3: Successful | O3: 2017-05-09 | R3: P
A4: 2 | B4: 2017-05-08 | C4: USDINR JUN FUT | D4: Buy | E4: 64.6535 | F4: 64.45 | G4: 64.965 | H4: 65.05 | I4: Profit of Rs 0.31/- | K4: 0.31 | L4: 311.5 | M4: 1000 | N4: Successful | O4: 2017-05-09 | R4: P
A5: 3 | B5: 2017-05-09 | C5: EUROINR MAY FUT | D5: Sell | E5: 70.65 | F5: 70.8 | G5: 70.07 | H5: 70.4 | I5: Profit of Rs 0.58/- | K5: 0.58 | L5: 580 | M5: 1000 | N5: Successful | O5: 2017-05-12 | R5: P
A6: 4 | B6: 2017-05-09 | C6: GBPINR MAY FUT | D6: Buy | E6: 83.774 | F6: 83.37 | G6: 83.37 | H6: 84.77 | I6: Loss of Rs 0.40/- | K6: -0.40 | L6: -404 | M6: 1000 | N6: Unsuccessful | O6: 2017-05-11 | R6: P
A7: 5 | B7: 2017-05-11 | C7: USDINR MAY FUT | D7: Buy | E7: 64.6555 | F7: 64.55 | G7: 64.55 | H7: 64.86 | I7: Loss of Rs.0.1055/- | K7: -0.1055 | L7: =K7*M7 -> -105.50 | M7: 1000 | N7: Unsuccessful | O7: 2017-05-11 | R7: P
A8: 6 | B8: 2017-05-15 | C8: USDINR MAY FUT | D8: Buy | E8: 64.2275 | F8: 64.08 | G8: 64.46 | H8: 64.48 | I8: Profit of Rs 0.23/- | K8: 0.23 | L8: 232.5 | M8: 1000 | N8: Successful | O8: 2017-05-18 | R8: P
A9: 7 | B9: 2017-05-19 | C9: USDINR MAY FUT | D9: Sell | E9: 64.83 | F9: 65 | G9: 65 | H9: 64.5 | I9: Loss of Rs.0.17/- | K9: -0.17 | L9: -170 | M9: 1000 | N9: Unsuccessful | O9: 2017-05-19 | R9: P
A10: 8 | B10: 2017-05-23 | C10: USDINR MAY FUT | D10: Buy | E10: 64.83 | F10: 64.62 | G10: 64.95 | H10: 65.2 | I10: Profit of Rs 0.12/- | K10: 0.12 | L10: 120 | M10: 1000 | N10: Successful | O10: 2017-05-24 | R10: P
A11: 9 | B11: 2017-05-25 | C11: USDINR MAY FUT | D11: Buy | E11: 64.57 | F11: 64.25 | G11: 64.56 | H11: 65 | I11: Loss of Rs.0.01/- | K11: -0.01 | L11: -10 | M11: 1000 | N11: Neutral | O11: 2017-05-29 | R11: P
A12: 10 | B12: 2017-05-30 | C12: USDINR JUN FUT | D12: Buy | E12: 64.9125 | F12: 64.71 | G12: 64.71 | H12: 65.31 | I12: Loss of Rs.0.20/- | K12: -0.20 | L12: -202.5 | M12: 1000 | N12: Unsuccessful | O12: 2017-05-31 | R12: P
A13: 11 | B13: 2017-06-01 | C13: USDINR JUN FUT | D13: Buy | E13: 64.655 | F13: 64.45 | G13: 64.45 | H13: 65.05 | I13: Loss of Rs.0.20/- | K13: =G13-E13 -> -0.20 | L13: =K13*M13 -> -205 | M13: 1000.00 | N13: Unsuccessful | O13: 2017-06-08 | R13: P
A14: 12 | B14: 2017-06-12 | C14: USDINR JUN FUT | D14: Buy | E14: 64.45 | F14: 64 | G14: 64.7625 | H14: 65.2 | I14: Profit of Rs 0.31/- | K14: 0.31 | L14: 312.5 | M14: 1000 | N14: Successful | O14: 2017-06-16
A15: 13 | B15: 2017-06-16 | C15: USDINR JUN FUT | D15: Buy | E15: 64.51 | F15: 64.2 | G15: 64.7 | H15: 65.11 | I15: Profit of Rs 0.19/- | K15: 0.19 | L15: 190 | M15: 1000 | N15: Successful | O15: 2017-06-21
A16: 14 | B16: 2017-06-22 | C16: USDINR JUN FUT | D16: Buy | E16: 64.56 | F16: 64.2 | G16: 64.2 | H16: 65.1 | I16: Loss of Rs.0.36/- | K16: -0.36 | L16: -360 | M16: 1000.00 | N16: Unsuccessful | O16: 2017-06-30
A17: 15 | B17: 2017-07-10 | C17: USDINR JUL FUT | D17: Buy | E17: 64.67 | F17: 64.4 | G17: 64.4 | H17: 65.15 | I17: Loss of Rs.0.27/- | K17: -0.27 | L17: -270 | M17: 1000.00 | N17: Unsuccessful | O17: 2017-07-31
A18: 16 | B18: 2017-08-02 | C18: USDINR AUG FUT | D18: Buy | E18: 64.235 | F18: 63.98 | G18: 63.98 | H18: 64.75 | I18: Loss of Rs.0.26/- | K18: -0.26 | L18: -255 | M18: 1000.00 | N18: Unsuccessful | O18: 2017-08-02
A19: 17 | B19: 2017-08-08 | C19: USDINR AUG FUT | D19: Buy | E19: 63.9425 | F19: 63.6 | G19: 64.15 | H19: 64.5 | I19: Profit of Rs 0.21/- | K19: 0.21 | L19: 207.5 | M19: 1000 | N19: Successful | O19: 2017-08-10
A20: 18 | B20: 2017-08-22 | C20: USDINR AUG FUT | D20: Buy | E20: 64.1175 | F20: 63.9 | G20: 64.01 | H20: 64.5 | I20: Loss of Rs.0.11/- | K20: =G20-E20 -> -0.11 | L20: =K20*M20 -> -107.5 | M20: 1000.00 | N20: Unsuccessful | O20: 2017-08-29
A21: 19 | B21: 2017-09-01 | C21: USDINR SEP FUT | D21: Buy | E21: 64.1 | F21: 63.8 | G21: 64.205 | H21: 64.7 | I21: Profit of Rs 0.11/- | K21: 0.11 | L21: 105 | M21: 1000 | N21: Successful | O21: 2017-09-01
A22: 20 | B22: 2017-09-04 | C22: USDINR SEP FUT | D22: Buy | E22: 64.095 | F22: 63.8 | G22: 64.195 | H22: 64.7 | I22: Profit of Rs 0.10/- | K22: 0.10 | L22: =K22*M22 -> 100 | M22: 1000 | N22: Successful | O22: 2017-09-04
A23: 21 | B23: 2017-09-05 | C23: USDINR SEP FUT | D23: Buy | E23: 64.25 | F23: 64 | G23: 64.355 | H23: 64.75 | I23: Profit of Rs 0.11/- | K23: =G23-E23 -> 0.11 | L23: =K23*M23 -> 105 | M23: 1000 | N23: Successful | O23: 2017-09-06
A24: 22 | B24: 2017-09-06 | C24: USDINR SEP FUT | D24: Sell | E24: 64.365 | F24: 64.5 | G24: 64.265 | H24: 64 | I24: Profit of Rs 0.10/- | K24: =E24-G24 -> 0.10 | L24: 100 | M24: 1000 | N24: Successful | O24: 2017-09-06
A25: 23 | B25: 2017-09-07 | C25: USDINR SEP FUT | D25: Buy | E25: 64.145 | F25: 63.9 | G25: 64.2565 | H25: 64.65 | I25: Profit of Rs 0.11/- | K25: =G25-E25 -> 0.11 | L25: =K25*M25 -> 111.5 | M25: 1000 | N25: Successful | O25: 2017-09-14
A26: 24 | B26: 2017-09-11 | C26: JPYINR SEP FUT | D26: Sell | E26: 59.0285 | F26: 59.25 | G26: 58.645 | H26: 58.5 | I26: Profit of Rs 0.38/- | K26: =E26-G26 -> 0.38 | L26: 383.5 | M26: 1000 | N26: Successful | O26: 2017-09-12
A27: 25 | B27: 2017-09-14 | C27: USDINR SEP FUT | D27: Buy | E27: 64.145 | F27: 63.95 | G27: 64.26 | H27: 64.5 | I27: Profit of Rs 0.12/- | K27: =G27-E27 -> 0.12 | L27: 115 | M27: 1000 | N27: Successful | O27: 2017-09-19
A28: 26 | B28: 2017-09-20 | C28: USDINR SEP FUT | D28: Buy | E28: 64.3515 | F28: 64.15 | G28: 64.57 | H28: 64.75 | I28: Profit of Rs 0.22/- | K28: =G28-E28 -> 0.22 | L28: =K28*M28 -> 218.5 | M28: 1000 | N28: Successful | O28: 2017-09-21
A29: 27 | B29: 2017-09-21 | C29: USDINR SEP FUT | D29: Sell | E29: 64.795 | F29: 65.05 | G29: 65.05 | H29: 64.4 | I29: Loss of Rs.0.17/- | K29: -0.17 | L29: -170 | M29: 1000.00 | N29: Unsuccessful | O29: 2017-09-22
A30: 28 | B30: 2017-09-25 | C30: USDINR SEP FUT | D30: Buy | E30: 64.77 | F30: 64.4 | G30: 64.92 | H30: 65.1 | I30: Profit of Rs 0.15/- | K30: =G30-E30 -> 0.15 | L30: =K30*M30 -> 150 | M30: 1000 | N30: Successful | O30: 2017-09-25
A31: 29 | B31: 2017-09-25 | C31: USDINR SEP FUT | D31: Sell | E31: 65.1077 | F31: 65.3 | G31: 65.3 | H31: 64.5 | I31: Loss of Rs.0.19/- | K31: -0.19 | L31: -190 | M31: 1000.00 | N31: Unsuccessful | O31: 2017-09-26
A32: 30 | B32: 2017-09-27 | C32: USDINR SEP FUT | D32: Sell | E32: 65.7225 | F32: 65.83 | G32: 65.7 | H32: 65.52 | I32: Profit of Rs 0.02/- | K32: =E32-G32 -> 0.02 | L32: =K32*M32 -> 22.5 | M32: 1000 | N32: Neutral | O32: 2017-09-27
A33: 31 | B33: 2017-09-27 | C33: USDINR OCT FUT | D33: Sell | E33: 66 | F33: 66.5 | G33: 65.895 | H33: 65 | I33: Profit of Rs 0.11/- | K33: =E33-G33 -> 0.11 | L33: 105 | M33: 1000 | N33: Successful | O33: 2017-09-27
A34: 32 | B34: 2017-09-28 | C34: USDINR OCT FUT | D34: Sell | E34: 66.075 | F34: 66.3 | G34: 65.96 | H34: 65.4 | I34: Profit of Rs 0.12/- | K34: =E34-G34 -> 0.12 | L34: =K34*M34 -> 115 | M34: 1000 | N34: Successful | O34: 2017-09-28
A35: 33 | B35: 2017-09-29 | C35: GBPINR OCT fut | D35: Buy | E35: 87.745 | F35: 87.5 | G35: 87.84 | H35: 88.25 | I35: Profit of Rs 0.09/- | K35: =G35-E35 -> 0.09 | L35: 95 | M35: 1000 | N35: Successful | O35: 2017-09-29
A36: 34 | B36: 2017-09-29 | C36: USDINR OCT FUT | D36: Buy | E36: 65.514 | F36: 65.25 | G36: 65.85 | H36: 66 | I36: Profit of Rs 0.34/- | K36: 0.34 | L36: =K36*M36 -> 336 | M36: 1000 | N36: Successful | O36: 2017-10-03
A37: 35 | B37: 2017-10-09 | C37: USDINR OCT FUT | D37: Buy | E37: 65.48 | F37: 65.23 | G37: 65.5775 | H37: 65.95 | I37: Profit of Rs 0.10/- | K37: =G37-E37 -> 0.10 | L37: =K37*M37 -> 97.5 | M37: 1000 | N37: Successful | O37: 2017-10-09
A38: 36 | B38: 2017-10-10 | C38: USDINR OCT FUT | D38: Buy | E38: 65.41 | F38: 65.15 | G38: 65.5075 | H38: 66 | I38: Profit of Rs 0.10/- | K38: 0.10 | L38: 97.5 | M38: 1000 | N38: Successful | O38: 2017-10-10
A39: 37 | B39: 2017-10-11 | C39: USDINR OCT FUT | D39: Buy | E39: 65.38 | F39: 65.13 | G39: 65.13 | H39: 65.88 | I39: Loss of Rs.0.25/- | K39: -0.25 | L39: -250 | M39: 1000.00 | N39: Unsuccessful | O39: 2017-10-13
A40: 38 | B40: 2017-10-16 | C40: USDINR OCT FUT | D40: Buy | E40: 64.7925 | F40: 64.54 | G40: 64.905 | H40: 65.3 | I40: Profit of Rs 0.11/- | K40: =G40-E40 -> 0.11 | L40: =K40*M40 -> 112.5 | M40: 1000 | N40: Successful | O40: 2017-10-17
A41: 39 | B41: 2017-10-23 | C41: USDINR OCT FUT | D41: Buy | E41: 65.115 | F41: 64.85 | G41: 65.21 | H41: 65.5 | I41: Profit of Rs 0.09/- | K41: =G41-E41 -> 0.09 | L41: =K41*M41 -> 95 | M41: 1000 | N41: Successful | O41: 2017-10-25
A42: 40 | B42: 2017-10-23 | C42: JPYINR OCT FUT | D42: Buy | E42: 57.285 | F42: 57.03 | G42: 57.38 | H42: 58.4 | I42: Profit of Rs 0.10/- | K42: =G42-E42 -> 0.10 | L42: =K42*M42 -> 95 | M42: 1000 | N42: Successful | O42: 2017-10-23
A43: 41 | B43: 2017-10-26 | C43: USDINR OCT FUT | D43: Buy | E43: 64.755 | F43: 64.5 | G43: 64.87 | H43: 65.25 | I43: Profit of Rs 0.12/- | K43: 0.12 | L43: 115 | M43: 1000 | N43: Successful | O43: 2017-10-25
A44: 42 | B44: 2017-10-30 | C44: USDINR NOV FUT | D44: Buy | E44: 65.035 | F44: 64.79 | G44: 64.79 | H44: 65.5 | I44: Loss of Rs.0.24/- | K44: -0.24 | L44: -245 | M44: 1000.00 | N44: Unsuccessful | O44: 2017-11-01
A45: 43 | B45: 2017-11-01 | C45: JPYINR NOV FUT | D45: Buy | E45: 56.9875 | F45: 56.73 | G45: 57.0959 | H45: 57.5 | I45: Profit of Rs 0.11/- | K45: =G45-E45 -> 0.11 | L45: =K45*M45 -> 108.4 | M45: 1000 | N45: Successful | O45: 2017-11-07
A46: 44 | B46: 2017-11-02 | C46: USDINR NOV FUT | D46: Buy | E46: 64.7838 | F46: 64.5 | G46: 64.89 | H46: 65.25 | I46: Profit of Rs 0.11/- | K46: =G46-E46 -> 0.11 | L46: =K46*M46 -> 106.2 | M46: 1000 | N46: Successful | O46: 2017-11-06
A47: 45 | B47: 2017-11-08 | C47: USDINR NOV FUT | D47: Buy | E47: 65.1363 | F47: 64.8375 | G47: 65.235 | H47: 65.73 | I47: Profit of Rs 0.10/- | K47: =G47-E47 -> 0.10 | L47: =K47*M47 -> 98.7 | M47: 1000 | N47: Successful | O47: 2017-11-10
A48: 46 | B48: 2017-11-08 | C48: GBPINR NOV FUT | D48: Buy | E48: 85.4983 | F48: 85.25 | G48: 85.6 | H48: 86 | I48: Profit of Rs 0.10/- | K48: =G48-E48 -> 0.10 | L48: =K48*M48 -> 101.7 | M48: 1000 | N48: Successful | O48: 2017-11-09
A49: 47 | B49: 2017-11-16 | C49: EURINR NOV FUT | D49: Buy | E49: 76.8975 | F49: 76.3975 | G49: 76.3975 | H49: 77.8975 | I49: Loss of Rs.0.50/- | K49: =G49-E49 -> -0.50 | L49: -500 | M49: 1000.00 | N49: Unsuccessful | O49: 2017-11-01
A50: 48 | B50: 2017-11-16 | C50: JPYINR NOV FUT | D50: Buy | E50: 57.6625 | F50: 57.2675 | G50: 57.8075 | H50: 58.6675 | I50: Profit of Rs 0.14/- | K50: =G50-E50 -> 0.14 | L50: =K50*M50 -> 145 | M50: 1000 | N50: Successful | O50: 2017-11-17
A51: 49 | B51: 2017-11-22 | C51: EURINR NOV FUT | D51: Buy | E51: 76.175 | F51: 75.95 | G51: 76.335 | H51: 76.6 | I51: Profit of Rs 0.16/- | K51: 0.16 | L51: =K51*M51 -> 160 | M51: 1000 | N51: Successful | O51: 2017-11-22
A52: 50 | B52: 2017-11-22 | C52: USDINR NOV FUT | D52: Buy | E52: 64.87 | F52: 64.5 | G52: 64.5 | H52: 65.5 | I52: Loss of Rs.0.37/- | K52: -0.37 | L52: -370 | M52: 1000.00 | N52: Unsuccessful | O52: 2017-11-27
A53: 51 | B53: 2017-11-28 | C53: GBPINR DEC FUT | D53: Buy | E53: 86.17 | F53: 85.85 | G53: 86.46 | H53: 87 | I53: Profit of Rs 0.29/- | K53: 0.29 | L53: =K53*M53 -> 290 | M53: 1000 | N53: Successful | O53: 2017-11-29
A54: 52 | B54: 2017-11-28 | C54: JPYINR DEC FUT | D54: Buy | E54: 58.16 | F54: 57.85 | G54: 57.85 | H54: 58.6 | I54: Loss of Rs.0.31/- | K54: -0.31 | L54: -310 | M54: 1000.00 | N54: Unsuccessful | O54: 2017-11-29
A55: 53 | B55: 2017-11-28 | C55: USDINR DEC FUT | D55: Buy | E55: 64.63 | F55: 64.13 | G55: 64.13 | H55: 65.63 | I55: Loss of Rs.0.50/- | K55: -0.50 | L55: =K55*M55 -> -500 | M55: 1000.00 | N55: Unsuccessful | O55: 2017-12-15
A56: 54 | B56: 2017-11-28 | C56: EURINR DEC FUT | D56: Buy | E56: 76.93 | F56: 76.43 | G56: 76.43 | H56: 77.93 | I56: Loss of Rs.0.50/- | K56: =G56-E56 -> -0.50 | L56: =K56*M56 -> -500 | M56: 1000.00 | N56: Unsuccessful | O56: 2017-11-29
A57: 55 | B57: 2017-12-12 | C57: EURINR DEC FUT | D57: Buy | E57: 76.105 | F57: 75.7 | G57: 76.27 | H57: 76.8 | I57: Profit of Rs 0.16/- | K57: =G57-E57 -> 0.16 | L57: 165 | M57: 1000 | N57: Successful | O57: 2017-12-14
A58: 56 | B58: 2017-12-12 | C58: JPYINR DEC FUT | D58: Buy | E58: 56.975 | F58: 56.7 | G58: 57.21 | H58: 57.6 | I58: Profit of Rs 0.23/- | K58: =G58-E58 -> 0.23 | L58: =K58*M58 -> 235 | M58: 1000 | N58: Successful | O58: 2017-12-14

Sheet Sheet2 (hidden)
A1: SYMBOL | B1: SERIES | C1: OPEN | D1: HIGH | E1: LOW | F1: CLOSE | G1: LAST | H1: PREVCLOSE | I1: TOTTRDQTY | J1: TOTTRDVAL | K1: TIMESTAMP | L1: TOTALTRADES | M1: ISIN | N1: ISIN
A2: 20MICRONS | B2: EQ | C2: 35.5 | D2: 37 | E2: 35.5 | F2: 35.8 | G2: 35.85 | H2: 36 | I2: 29266 | J2: 1053360.65 | K2: 2018-07-03 | L2: 396 | M2: INE144J01027
A3: 21STCENMGM | B3: EQ | C3: 36.9 | D3: 37.4 | E3: 36.05 | F3: 37.05 | G3: 37.2 | H3: 36.7 | I3: 1569 | J3: 58159.75 | K3: 2018-07-03 | L3: 16 | M3: INE253B01015
A4: 3IINFOTECH | B4: EQ | C4: 4.15 | D4: 4.25 | E4: 4.05 | F4: 4.25 | G4: 4.25 | H4: 4.15 | I4: 2544155 | J4: 10575740.75 | K4: 2018-07-03 | L4: 1289 | M4: INE748C01020
A5: 3MINDIA | B5: EQ | C5: 19800.5 | D5: 19800.5 | E5: 19450.05 | F5: 19553.75 | G5: 19575 | H5: 19809.7 | I5: 472 | J5: 9270694.15 | K5: 2018-07-03 | L5: 265 | M5: INE470A01017
A6: 3PLAND | B6: EQ | C6: 14.4 | D6: 14.4 | E6: 13.3 | F6: 14 | G6: 14 | H6: 13.3 | I6: 2169 | J6: 29751.5 | K6: 2018-07-03 | L6: 11 | M6: INE105C01023
A7: 5PAISA | B7: EQ | C7: 318.9 | D7: 318.9 | E7: 307 | F7: 315.55 | G7: 315.1 | H7: 315.1 | I7: 1335 | J7: 417319.8 | K7: 2018-07-03 | L7: 77 | M7: INE618L01018
A8: 63MOONS | B8: EQ | C8: 76.95 | D8: 79 | E8: 76.25 | F8: 76.95 | G8: 77.05 | H8: 77.25 | I8: 213309 | J8: 16534494.3 | K8: 2018-07-03 | L8: 2569 | M8: INE111B01023
A9: 8KMILES | B9: EQ | C9: 340 | D9: 364 | E9: 313.8 | F9: 316.4 | G9: 314.5 | H9: 392.2 | I9: 6648146 | J9: 2211955315 | K9: 2018-07-03 | L9: 144015 | M9: INE650K01021
A10: A2ZINFRA | B10: EQ | C10: 19.55 | D10: 20.15 | E10: 19.45 | F10: 19.85 | G10: 19.8 | H10: 19.8 | I10: 178186 | J10: 3536462.6 | K10: 2018-07-03 | L10: 897 | M10: INE619I01012
A11: AARTIDRUGS | B11: EQ | C11: 537 | D11: 558.05 | E11: 527.85 | F11: 537.8 | G11: 536.2 | H11: 537.7 | I11: 15925 | J11: 8638398.7 | K11: 2018-07-03 | L11: 1440 | M11: INE767A01016
A12: AARTIIND | B12: EQ | C12: 1201.05 | D12: 1219.3 | E12: 1187 | F12: 1215.65 | G12: 1209 | H12: 1201.05 | I12: 13905 | J12: 16758765.1 | K12: 2018-07-03 | L12: 1189 | M12: INE769A01020
A13: AARVEEDEN | B13: EQ | C13: 30.4 | D13: 31.9 | E13: 29.05 | F13: 31.45 | G13: 31.4 | H13: 30.4 | I13: 9311 | J13: 288912.55 | K13: 2018-07-03 | L13: 155 | M13: INE273D01019
A14: ABAN | B14: EQ | C14: 109.7 | D14: 120.45 | E14: 107.5 | F14: 116.2 | G14: 116.1 | H14: 109.65 | I14: 2012079 | J14: 230918148.6 | K14: 2018-07-03 | L14: 21649 | M14: INE421A01028
A15: ABB | B15: EQ | C15: 1175.6 | D15: 1188.6 | E15: 1170 | F15: 1173.55 | G15: 1172 | H15: 1181.5 | I15: 19620 | J15: 23136527.4 | K15: 2018-07-03 | L15: 2358 | M15: INE117A01022
A16: ABBOTINDIA | B16: EQ | C16: 7135 | D16: 7198.95 | E16: 7037.05 | F16: 7091.6 | G16: 7060 | H16: 7156.65 | I16: 3270 | J16: 23179547.05 | K16: 2018-07-03 | L16: 1050 | M16: INE358A01014
A17: ABCAPITAL | B17: EQ | C17: 129.3 | D17: 131 | E17: 128.5 | F17: 129.75 | G17: 130 | H17: 129.35 | I17: 721282 | J17: 93481700.4 | K17: 2018-07-03 | L17: 8113 | M17: INE674K01013
A18: ABFRL | B18: EQ | C18: 137.5 | D18: 140.4 | E18: 136.15 | F18: 139.55 | G18: 140 | H18: 137.45 | I18: 202360 | J18: 27883114.45 | K18: 2018-07-03 | L18: 3866 | M18: INE647O01011
A19: ACC | B19: EQ | C19: 1318 | D19: 1343 | E19: 1302 | F19: 1332.85 | G19: 1334.5 | H19: 1320.15 | I19: 284242 | J19: 377171940.9 | K19: 2018-07-03 | L19: 10684 | M19: INE012A01025
A20: ACCELYA | B20: EQ | C20: 1190 | D20: 1190 | E20: 1152.6 | F20: 1172.9 | G20: 1163.05 | H20: 1173.55 | I20: 523 | J20: 612491.25 | K20: 2018-07-03 | L20: 149 | M20: INE793A01012
A21: ACE | B21: EQ | C21: 124.35 | D21: 126 | E21: 120 | F21: 123.95 | G21: 122.8 | H21: 120.85 | I21: 281978 | J21: 35064724.3 | K21: 2018-07-03 | L21: 4370 | M21: INE731H01025
A22: ADANIENT | B22: EQ | C22: 104.6 | D22: 107.95 | E22: 102.6 | F22: 106.25 | G22: 106.4 | H22: 105.05 | I22: 7563035 | J22: 801297752.2 | K22: 2018-07-03 | L22: 37404 | M22: INE423A01024
A23: ADANIGREEN | B23: EQ | C23: 26.95 | D23: 26.95 | E23: 24.5 | F23: 26.35 | G23: 26.6 | H23: 25.2 | I23: 519628 | J23: 13416582.2 | K23: 2018-07-03 | L23: 3205 | M23: INE364U01010
A24: ADANIPORTS | B24: EQ | C24: 362.5 | D24: 365.45 | E24: 360.25 | F24: 362.75 | G24: 362.65 | H24: 362.8 | I24: 1488048 | J24: 540461853.2 | K24: 2018-07-03 | L24: 41147 | M24: INE742F01042
A25: ADANIPOWER | B25: EQ | C25: 15.45 | D25: 16.15 | E25: 15.3 | F25: 16 | G25: 16.05 | H25: 15.45 | I25: 10469657 | J25: 164362017.5 | K25: 2018-07-03 | L25: 10112 | M25: INE814H01011
A26: ADANITRANS | B26: EQ | C26: 154 | D26: 154.8 | E26: 148.3 | F26: 153.65 | G26: 153.4 | H26: 154.75 | I26: 594571 | J26: 90783407.85 | K26: 2018-07-03 | L26: 4843 | M26: INE931S01010
A27: ADFFOODS | B27: EQ | C27: 229.55 | D27: 235.75 | E27: 226 | F27: 232.45 | G27: 232.05 | H27: 229.05 | I27: 56065 | J27: 12943646.55 | K27: 2018-07-03 | L27: 1683 | M27: INE982B01019
A28: ADHUNIK | B28: EQ | C28: 3.3 | D28: 3.35 | E28: 3.2 | F28: 3.35 | G28: 3.25 | H28: 3.3 | I28: 13056 | J28: 42409.45 | K28: 2018-07-03 | L28: 29 | M28: INE400H01019
A29: ADHUNIKIND | B29: EQ | C29: 70.85 | D29: 70.95 | E29: 68 | F29: 70.6 | G29: 70.95 | H29: 71.4 | I29: 39770 | J29: 2800291.75 | K29: 2018-07-03 | L29: 103 | M29: INE452L01012
A30: ADLABS | B30: EQ | C30: 34.05 | D30: 39.5 | E30: 33.6 | F30: 36.35 | G30: 36.2 | H30: 33.85 | I30: 455722 | J30: 17047532.8 | K30: 2018-07-03 | L30: 4078 | M30: INE172N01012
A31: ADORWELD | B31: EQ | C31: 303.05 | D31: 309 | E31: 303 | F31: 305.55 | G31: 305.8 | H31: 303 | I31: 5794 | J31: 1775380.35 | K31: 2018-07-03 | L31: 248 | M31: INE045A01017
A32: ADROITINFO | B32: EQ | C32: 25.2 | D32: 29.85 | E32: 24.2 | F32: 28.35 | G32: 29.85 | H32: 24.9 | I32: 44893 | J32: 1236117.95 | K32: 2018-07-03 | L32: 119 | M32: INE737B01033
A33: ADSL | B33: EQ | C33: 16.55 | D33: 19 | E33: 16.55 | F33: 17.55 | G33: 17.65 | H33: 16.5 | I33: 73611 | J33: 1329760.45 | K33: 2018-07-03 | L33: 478 | M33: INE102I01027
A34: ADVANIHOTR | B34: EQ | C34: 50.15 | D34: 53.3 | E34: 49.7 | F34: 49.95 | G34: 49.7 | H34: 51.4 | I34: 15125 | J34: 769230.65 | K34: 2018-07-03 | L34: 203 | M34: INE199C01026
A35: ADVENZYMES | B35: EQ | C35: 211 | D35: 215 | E35: 211 | F35: 213.25 | G35: 213.3 | H35: 211.5 | I35: 69347 | J35: 14794741.35 | K35: 2018-07-03 | L35: 1997 | M35: INE837H01020
A36: AEGISCHEM | B36: EQ | C36: 205 | D36: 208.2 | E36: 203.7 | F36: 207.45 | G36: 208 | H36: 203.65 | I36: 75675 | J36: 15660293.2 | K36: 2018-07-03 | L36: 3766 | M36: INE208C01025
A37: AFL | B37: EQ | C37: 53.85 | D37: 55 | E37: 53.85 | F37: 54.9 | G37: 54.9 | H37: 55.65 | I37: 4786 | J37: 261560.5 | K37: 2018-07-03 | L37: 46 | M37: INE020G01017
A38: AGARIND | B38: EQ | C38: 300 | D38: 308.8 | E38: 290 | F38: 290.75 | G38: 295 | H38: 300 | I38: 595 | J38: 175732.65 | K38: 2018-07-03 | L38: 88 | M38: INE204E01012
A39: AGCNET | B39: EQ | C39: 101.4 | D39: 104.7 | E39: 98 | F39: 102.05 | G39: 102.05 | H39: 104.05 | I39: 3604 | J39: 364806.1 | K39: 2018-07-03 | L39: 127 | M39: INE676A01019
A40: AGLSL | B40: EQ | C40: 81 | D40: 83 | E40: 78.4 | F40: 82.1 | G40: 83 | H40: 83.85 | I40: 14821 | J40: 1201568.6 | K40: 2018-07-03 | L40: 164 | M40: INE517U01013
A41: AGRITECH | B41: EQ | C41: 102.35 | D41: 105.7 | E41: 98 | F41: 102.7 | G41: 103 | H41: 104.7 | I41: 31749 | J41: 3241391.15 | K41: 2018-07-03 | L41: 859 | M41: INE449G01018
A42: AHLEAST | B42: EQ | C42: 266.55 | D42: 267.55 | E42: 257.05 | F42: 257.1 | G42: 257.1 | H42: 260.05 | I42: 1572 | J42: 413128.3 | K42: 2018-07-03 | L42: 167 | M42: INE926K01017
A43: AHLUCONT | B43: EQ | C43: 343.35 | D43: 365 | E43: 343.35 | F43: 364.3 | G43: 365 | H43: 350.9 | I43: 114010 | J43: 41154291.95 | K43: 2018-07-03 | L43: 1176 | M43: INE758C01029
A44: AHLWEST | B44: BE | C44: 309 | D44: 311 | E44: 300.05 | F44: 305 | G44: 305 | H44: 301 | I44: 638 | J44: 192935.2 | K44: 2018-07-03 | L44: 10 | M44: INE915K01010
A45: AIAENG | B45: EQ | C45: 1524 | D45: 1532.7 | E45: 1481.65 | F45: 1515.65 | G45: 1500 | H45: 1524 | I45: 62427 | J45: 94474804.5 | K45: 2018-07-03 | L45: 3803 | M45: INE212H01026
A46: AICHAMP | B46: BE | C46: 23.75 | D46: 23.75 | E46: 23.75 | F46: 23.75 | G46: 23.75 | H46: 23.75 | I46: 7 | J46: 166.25 | K46: 2018-07-03 | L46: 1 | M46: INE768E01024
A47: AIFL | B47: EQ | C47: 445.2 | D47: 449.7 | E47: 445 | F47: 445.1 | G47: 445 | H47: 447.2 | I47: 123273 | J47: 54969812.65 | K47: 2018-07-03 | L47: 2713 | M47: INE428O01016
A48: AJANTPHARM | B48: EQ | C48: 984.9 | D48: 1034.85 | E48: 976 | F48: 1028.75 | G48: 1033.5 | H48: 987.45 | I48: 545333 | J48: 552144947.9 | K48: 2018-07-03 | L48: 15335 | M48: INE031B01049
A49: AJMERA | B49: EQ | C49: 202 | D49: 213 | E49: 202 | F49: 206.55 | G49: 206.5 | H49: 205.9 | I49: 43921 | J49: 9105870.8 | K49: 2018-07-03 | L49: 1329 | M49: INE298G01027
A50: AKSHARCHEM | B50: EQ | C50: 530 | D50: 551 | E50: 527.25 | F50: 538.35 | G50: 532 | H50: 535.6 | I50: 1570 | J50: 851496.5 | K50: 2018-07-03 | L50: 271 | M50: INE542B01011
A51: AKSHOPTFBR | B51: EQ | C51: 26 | D51: 26 | E51: 25.05 | F51: 25.35 | G51: 25.5 | H51: 25.75 | I51: 462985 | J51: 11759000.3 | K51: 2018-07-03 | L51: 1435 | M51: INE523B01011
A52: AKZOINDIA | B52: EQ | C52: 1840.1 | D52: 1871.8 | E52: 1840 | F52: 1870.7 | G52: 1871.8 | H52: 1844.1 | I52: 5185 | J52: 9661031.45 | K52: 2018-07-03 | L52: 1618 | M52: INE133A01011
A53: ALANKIT | B53: EQ | C53: 28.7 | D53: 28.7 | E53: 26.5 | F53: 28.3 | G53: 28.2 | H53: 28.7 | I53: 903735 | J53: 25309824.15 | K53: 2018-07-03 | L53: 1101 | M53: INE914E01040
A54: ALBERTDAVD | B54: EQ | C54: 432 | D54: 438.75 | E54: 420.15 | F54: 432.35 | G54: 434.85 | H54: 435.25 | I54: 1194 | J54: 514814.8 | K54: 2018-07-03 | L54: 66 | M54: INE155C01010
A55: ALBK | B55: EQ | C55: 41.7 | D55: 41.8 | E55: 40.55 | F55: 41.2 | G55: 41.15 | H55: 41.8 | I55: 5032937 | J55: 207000187.5 | K55: 2018-07-03 | L55: 10172 | M55: INE428A01015
A56: ALCHEM | B56: BE | C56: 6.15 | D56: 6.2 | E56: 6.15 | F56: 6.2 | G56: 6.2 | H56: 6.3 | I56: 871 | J56: 5373.9 | K56: 2018-07-03 | L56: 12 | M56: INE964B01033
A57: ALEMBICLTD | B57: EQ | C57: 38.65 | D57: 40.4 | E57: 38 | F57: 39.35 | G57: 39.35 | H57: 38.4 | I57: 459608 | J57: 18129090.15 | K57: 2018-07-03 | L57: 2530 | M57: INE426A01027
A58: ALICON | B58: EQ | C58: 600 | D58: 600 | E58: 582.4 | F58: 590.5 | G58: 588 | H58: 603.5 | I58: 604 | J58: 356623.65 | K58: 2018-07-03 | L58: 97 | M58: INE062D01024
A59: ALKALI | B59: EQ | C59: 63 | D59: 63.9 | E59: 62.25 | F59: 62.55 | G59: 62.55 | H59: 63.45 | I59: 670 | J59: 41988.3 | K59: 2018-07-03 | L59: 26 | M59: INE773I01017
A60: ALKEM | B60: EQ | C60: 1856 | D60: 1918.5 | E60: 1805.8 | F60: 1894.9 | G60: 1905 | H60: 1846.25 | I60: 21583 | J60: 39833202.9 | K60: 2018-07-03 | L60: 5521 | M60: INE540L01014
A61: ALKYLAMINE | B61: EQ | C61: 632 | D61: 642 | E61: 621 | F61: 629.4 | G61: 622.05 | H61: 638.65 | I61: 2646 | J61: 1675418 | K61: 2018-07-03 | L61: 111 | M61: INE150B01021
A62: ALLCARGO | B62: EQ | C62: 107.2 | D62: 115.05 | E62: 106 | F62: 111.25 | G62: 111.4 | H62: 107.2 | I62: 1698565 | J62: 187325669 | K62: 2018-07-03 | L62: 6524 | M62: INE418H01029
A63: ALLSEC | B63: EQ | C63: 277.4 | D63: 277.4 | E63: 261 | F63: 268.15 | G63: 271 | H63: 279.95 | I63: 29866 | J63: 8048575.35 | K63: 2018-07-03 | L63: 1558 | M63: INE835G01018
A64: ALMONDZ | B64: BE | C64: 31.9 | D64: 31.9 | E64: 30.05 | F64: 31.8 | G64: 31.8 | H64: 31 | I64: 1199 | J64: 37979.85 | K64: 2018-07-03 | L64: 6 | M64: INE326B01027
A65: ALOKTEXT | B65: BE | C65: 4.25 | D65: 4.25 | E65: 4.25 | F65: 4.25 | G65: 4.25 | H65: 4.05 | I65: 960260 | J65: 4081105 | K65: 2018-07-03 | L65: 436 | M65: INE270A01011
A66: ALPA | B66: EQ | C66: 26.7 | D66: 26.7 | E66: 25.15 | F66: 25.9 | G66: 25.7 | H66: 25.8 | I66: 2737 | J66: 70373.85 | K66: 2018-07-03 | L66: 56 | M66: INE385I01010
A67: ALPHAGEO | B67: EQ | C67: 598.15 | D67: 606.5 | E67: 585 | F67: 595.5 | G67: 606 | H67: 599.9 | I67: 9992 | J67: 5921862.6 | K67: 2018-07-03 | L67: 1076 | M67: INE137C01018
A68: ALPSINDUS | B68: BE | C68: 1.9 | D68: 1.95 | E68: 1.85 | F68: 1.95 | G68: 1.95 | H68: 1.9 | I68: 2791 | J68: 5300.75 | K68: 2018-07-03 | L68: 12 | M68: INE093B01015
A69: AMARAJABAT | B69: EQ | C69: 740 | D69: 764.45 | E69: 739.5 | F69: 762.35 | G69: 761 | H69: 746.35 | I69: 401035 | J69: 302467238.1 | K69: 2018-07-03 | L69: 12830 | M69: INE885A01032
A70: AMBER | B70: EQ | C70: 893.4 | D70: 1049 | E70: 888.9 | F70: 1020.25 | G70: 1000 | H70: 897.5 | I70: 135941 | J70: 135158409.1 | K70: 2018-07-03 | L70: 13787 | M70: INE371P01015
A71: AMBIKCO | B71: EQ | C71: 1274 | D71: 1325 | E71: 1257.05 | F71: 1286.3 | G71: 1276.2 | H71: 1257.9 | I71: 9698 | J71: 12596660.2 | K71: 2018-07-03 | L71: 672 | M71: INE540G01014
A72: AMBUJACEM | B72: EQ | C72: 200.35 | D72: 202.3 | E72: 197.85 | F72: 200.9 | G72: 200.7 | H72: 199.9 | I72: 4134828 | J72: 830425076.8 | K72: 2018-07-03 | L72: 31061 | M72: INE079A01024
A73: AMDIND | B73: EQ | C73: 21.1 | D73: 22 | E73: 21 | F73: 21.9 | G73: 22 | H73: 21 | I73: 3173 | J73: 68165.35 | K73: 2018-07-03 | L73: 23 | M73: INE005I01014
A74: AMJLAND | B74: EQ | C74: 29.9 | D74: 29.9 | E74: 26.5 | F74: 26.75 | G74: 27.2 | H74: 30.2 | I74: 339672 | J74: 9437366.7 | K74: 2018-07-03 | L74: 2041 | M74: INE606A01024
A75: AMRUTANJAN | B75: EQ | C75: 270 | D75: 275.2 | E75: 267.55 | F75: 273.2 | G75: 274.5 | H75: 270.1 | I75: 3844 | J75: 1049524.7 | K75: 2018-07-03 | L75: 156 | M75: INE098F01031
A76: ANANTRAJ | B76: EQ | C76: 38.25 | D76: 38.85 | E76: 37.5 | F76: 38.3 | G76: 38.4 | H76: 38.2 | I76: 294292 | J76: 11179421 | K76: 2018-07-03 | L76: 1394 | M76: INE242C01024
A77: ANDHRABANK | B77: EQ | C77: 32.8 | D77: 32.95 | E77: 31.45 | F77: 32.2 | G77: 32.3 | H77: 32.65 | I77: 4234054 | J77: 136095609.3 | K77: 2018-07-03 | L77: 6914 | M77: INE434A01013
A78: ANDHRACEMT | B78: EQ | C78: 9.35 | D78: 9.35 | E78: 8.85 | F78: 8.95 | G78: 8.9 | H78: 9 | I78: 34827 | J78: 312778.5 | K78: 2018-07-03 | L78: 101 | M78: INE666E01012
A79: ANDHRSUGAR | B79: EQ | C79: 336.9 | D79: 339.6 | E79: 328.5 | F79: 332.3 | G79: 330.4 | H79: 339.95 | I79: 14170 | J79: 4720384.7 | K79: 2018-07-03 | L79: 1541 | M79: INE715B01013
A80: ANGIND | B80: BE | C80: 3.2 | D80: 3.2 | E80: 3.2 | F80: 3.2 | G80: 3.2 | H80: 3.35 | I80: 473 | J80: 1513.6 | K80: 2018-07-03 | L80: 13 | M80: INE017D01010
A81: ANIKINDS | B81: BE | C81: 30.5 | D81: 31.2 | E81: 29 | F81: 29.1 | G81: 30.2 | H81: 30.5 | I81: 3265 | J81: 97662.65 | K81: 2018-07-03 | L81: 30 | M81: INE087B01017
A82: ANKITMETAL | B82: BE | C82: 1 | D82: 1 | E82: 1 | F82: 1 | G82: 1 | H82: 1.05 | I82: 4000 | J82: 4000 | K82: 2018-07-03 | L82: 3 | M82: INE106I01010
A83: ANSALAPI | B83: EQ | C83: 15.9 | D83: 17.45 | E83: 15.9 | F83: 17 | G83: 17 | H83: 17 | I83: 54438 | J83: 923651.2 | K83: 2018-07-03 | L83: 140 | M83: INE436A01026
A84: ANSALHSG | B84: EQ | C84: 14.8 | D84: 15.15 | E84: 14.2 | F84: 15 | G84: 14.8 | H84: 14.85 | I84: 16221 | J84: 238202.95 | K84: 2018-07-03 | L84: 143 | M84: INE880B01015
A85: ANTGRAPHIC | B85: BE | C85: 0.55 | D85: 0.6 | E85: 0.55 | F85: 0.6 | G85: 0.6 | H85: 0.6 | I85: 4122 | J85: 2422.2 | K85: 2018-07-03 | L85: 10 | M85: INE414B01021
A86: APARINDS | B86: EQ | C86: 655.65 | D86: 661.4 | E86: 654 | F86: 659.2 | G86: 661.3 | H86: 658.65 | I86: 1817 | J86: 1193552.2 | K86: 2018-07-03 | L86: 209 | M86: INE372A01015
A87: APCL | B87: EQ | C87: 154 | D87: 154 | E87: 148.5 | F87: 150.3 | G87: 150.05 | H87: 154.95 | I87: 1546 | J87: 232203.5 | K87: 2018-07-03 | L87: 54 | M87: INE071F01012
A88: APCOTEXIND | B88: EQ | C88: 501.05 | D88: 510.75 | E88: 501.05 | F88: 508.85 | G88: 505 | H88: 506.35 | I88: 978 | J88: 496245.5 | K88: 2018-07-03 | L88: 87 | M88: INE116A01024
A89: APEX | B89: EQ | C89: 382.1 | D89: 391 | E89: 375 | F89: 381.15 | G89: 380.2 | H89: 391.85 | I89: 72753 | J89: 27795793.6 | K89: 2018-07-03 | L89: 3167 | M89: INE346W01013
A90: APLAPOLLO | B90: EQ | C90: 1600.05 | D90: 1614.85 | E90: 1561.25 | F90: 1600.4 | G90: 1608 | H90: 1600.75 | I90: 18584 | J90: 29615104.35 | K90: 2018-07-03 | L90: 1038 | M90: INE702C01019
A91: APLLTD | B91: EQ | C91: 504.1 | D91: 539.4 | E91: 504.1 | F91: 532.3 | G91: 533.45 | H91: 510.55 | I91: 157509 | J91: 83415505.3 | K91: 2018-07-03 | L91: 5721 | M91: INE901L01018
A92: APOLLO | B92: EQ | C92: 150 | D92: 150.55 | E92: 148.05 | F92: 149.55 | G92: 149.5 | H92: 151.1 | I92: 20494 | J92: 3064832.05 | K92: 2018-07-03 | L92: 692 | M92: INE713T01010
A93: APOLLOHOSP | B93: EQ | C93: 1070 | D93: 1073.3 | E93: 1047.25 | F93: 1063.8 | G93: 1069.95 | H93: 1064.5 | I93: 536081 | J93: 568171850.9 | K93: 2018-07-03 | L93: 24574 | M93: INE437A01024
A94: APOLLOTYRE | B94: EQ | C94: 252.65 | D94: 255.6 | E94: 250.5 | F94: 251.65 | G94: 251.05 | H94: 252.4 | I94: 1929833 | J94: 487683524.7 | K94: 2018-07-03 | L94: 20341 | M94: INE438A01022
A95: APOLSINHOT | B95: EQ | C95: 1301.25 | D95: 1400 | E95: 1301.25 | F95: 1391.55 | G95: 1400 | H95: 1353.15 | I95: 305 | J95: 421041.35 | K95: 2018-07-03 | L95: 53 | M95: INE451F01016
A96: APTECHT | B96: EQ | C96: 239.85 | D96: 245.6 | E96: 236.5 | F96: 243.1 | G96: 243 | H96: 243.05 | I96: 226929 | J96: 54972913.7 | K96: 2018-07-03 | L96: 4908 | M96: INE266F01018
A97: ARCHIDPLY | B97: EQ | C97: 59.5 | D97: 61.7 | E97: 57.95 | F97: 60.45 | G97: 60.15 | H97: 57.55 | I97: 18564 | J97: 1100049.15 | K97: 2018-07-03 | L97: 515 | M97: INE877I01016
A98: ARCHIES | B98: BE | C98: 27.05 | D98: 27.9 | E98: 27.05 | F98: 27.7 | G98: 27.9 | H98: 27.9 | I98: 8487 | J98: 232531.95 | K98: 2018-07-03 | L98: 45 | M98: INE731A01020
A99: ARCOTECH | B99: EQ | C99: 15.5 | D99: 15.5 | E99: 14.25 | F99: 14.35 | G99: 14.25 | H99: 15 | I99: 166305 | J99: 2416214.65 | K99: 2018-07-03 | L99: 651 | M99: INE574I01035
A100: ARIES | B100: EQ | C100: 121 | D100: 123.75 | E100: 118.05 | F100: 122.75 | G100: 123 | H100: 121.35 | I100: 15438 | J100: 1889040.5 | K100: 2018-07-03 | L100: 312 | M100: INE298I01015
A101: ARIHANT | B101: EQ | C101: 33.15 | D101: 36.05 | E101: 33.15 | F101: 36.05 | G101: 36.05 | H101: 34.35 | I101: 31 | J101: 1100.15 | K101: 2018-07-03 | L101: 2 | M101: INE413D01011
A102: ARIHANTSUP | B102: EQ | C102: 74 | D102: 75 | E102: 68.2 | F102: 69.05 | G102: 69 | H102: 72.7 | I102: 84094 | J102: 5917889.05 | K102: 2018-07-03 | L102: 644 | M102: INE643K01018
A103: ARMANFIN | B103: BE | C103: 330.9 | D103: 339.95 | E103: 330 | F103: 334.05 | G103: 333 | H103: 334.85 | I103: 2060 | J103: 685853.5 | K103: 2018-07-03 | L103: 56 | M103: INE109C01017
A104: AROGRANITE | B104: EQ | C104: 55.5 | D104: 59.45 | E104: 54.3 | F104: 57 | G104: 57.35 | H104: 55.55 | I104: 18189 | J104: 1038709.25 | K104: 2018-07-03 | L104: 258 | M104: INE210C01013
A105: ARROWGREEN | B105: EQ | C105: 89.25 | D105: 89.25 | E105: 89.25 | F105: 89.25 | G105: 89.25 | H105: 93.9 | I105: 2381 | J105: 212504.25 | K105: 2018-07-03 | L105: 45 | M105: INE570D01018
A106: ARROWTEX | B106: EQ | C106: 30.85 | D106: 31.9 | E106: 30.8 | F106: 31.3 | G106: 31 | H106: 30.85 | I106: 1832 | J106: 56795.5 | K106: 2018-07-03 | L106: 27 | M106: INE933J01015
A107: ARSHIYA | B107: EQ | C107: 54.5 | D107: 60.7 | E107: 54.1 | F107: 59.15 | G107: 60.5 | H107: 57.25 | I107: 237385 | J107: 13749377.65 | K107: 2018-07-03 | L107: 2631 | M107: INE968D01022
A108: ARSSINFRA | B108: BE | C108: 27.7 | D108: 27.8 | E108: 26 | F108: 26.75 | G108: 26 | H108: 26.95 | I108: 5012 | J108: 133762.95 | K108: 2018-07-03 | L108: 59 | M108: INE267I01010
A109: ARVIND | B109: EQ | C109: 389.15 | D109: 394.8 | E109: 386.7 | F109: 390.5 | G109: 390.3 | H109: 389.7 | I109: 543808 | J109: 212819600.5 | K109: 2018-07-03 | L109: 9196 | M109: INE034A01011
A110: ARVSMART | B110: EQ | C110: 157.95 | D110: 160 | E110: 155.65 | F110: 158.3 | G110: 157.5 | H110: 158.05 | I110: 6561 | J110: 1034419.6 | K110: 2018-07-03 | L110: 315 | M110: INE034S01021
A111: ASAHIINDIA | B111: EQ | C111: 328.05 | D111: 332.9 | E111: 328.05 | F111: 330.1 | G111: 330 | H111: 330.1 | I111: 11759 | J111: 3881268.6 | K111: 2018-07-03 | L111: 210 | M111: INE439A01020
A112: ASAHISONG | B112: EQ | C112: 244 | D112: 248.95 | E112: 240.3 | F112: 247.95 | G112: 248 | H112: 246.25 | I112: 735 | J112: 181156.7 | K112: 2018-07-03 | L112: 65 | M112: INE228I01012
A113: ASAL | B113: EQ | C113: 53.55 | D113: 57 | E113: 51.85 | F113: 56.4 | G113: 56.15 | H113: 54.2 | I113: 20763 | J113: 1117852.05 | K113: 2018-07-03 | L113: 218 | M113: INE900C01027
A114: ASHAPURMIN | B114: EQ | C114: 43.1 | D114: 44.2 | E114: 41.85 | F114: 42.75 | G114: 42.65 | H114: 43.3 | I114: 65195 | J114: 2807271.35 | K114: 2018-07-03 | L114: 597 | M114: INE348A01023
A115: ASHIANA | B115: EQ | C115: 134 | D115: 136.55 | E115: 132.85 | F115: 135.15 | G115: 136.55 | H115: 134.1 | I115: 16138 | J115: 2170301.55 | K115: 2018-07-03 | L115: 330 | M115: INE365D01021
A116: ASHIMASYN | B116: EQ | C116: 20 | D116: 20.55 | E116: 19.6 | F116: 19.95 | G116: 20 | H116: 20.05 | I116: 30377 | J116: 608036.8 | K116: 2018-07-03 | L116: 134 | M116: INE440A01010
A117: ASHOKA | B117: EQ | C117: 227.9 | D117: 234 | E117: 224.5 | F117: 231.6 | G117: 229.95 | H117: 226.75 | I117: 126864 | J117: 29374684.45 | K117: 2018-07-03 | L117: 7245 | M117: INE442H01029
A118: ASHOKLEY | B118: EQ | C118: 127.7 | D118: 130.3 | E118: 124.4 | F118: 129.5 | G118: 129.85 | H118: 127.3 | I118: 16965698 | J118: 2156484851 | K118: 2018-07-03 | L118: 104720 | M118: INE208A01029
A119: ASIANHOTNR | B119: EQ | C119: 245.65 | D119: 249.95 | E119: 240 | F119: 240.05 | G119: 240 | H119: 245.65 | I119: 263 | J119: 63528.4 | K119: 2018-07-03 | L119: 12 | M119: INE363A01022
A120: ASIANPAINT | B120: EQ | C120: 1298.6 | D120: 1308.6 | E120: 1288.1 | F120: 1291.85 | G120: 1290 | H120: 1293.05 | I120: 1399979 | J120: 1818753303 | K120: 2018-07-03 | L120: 44513 | M120: INE021A01026
A121: ASIANTILES | B121: EQ | C121: 297.2 | D121: 297.2 | E121: 281.65 | F121: 285.65 | G121: 289.4 | H121: 297.65 | I121: 99371 | J121: 28591240.45 | K121: 2018-07-03 | L121: 3287 | M121: INE022I01019
A122: ASPINWALL | B122: EQ | C122: 262.05 | D122: 273.85 | E122: 262.05 | F122: 273.3 | G122: 273.85 | H122: 271.95 | I122: 437 | J122: 116887.55 | K122: 2018-07-03 | L122: 15 | M122: INE991I01015
A123: ASSAMCO | B123: EQ | C123: 2.7 | D123: 2.85 | E123: 2.7 | F123: 2.75 | G123: 2.8 | H123: 2.75 | I123: 116167 | J123: 321287 | K123: 2018-07-03 | L123: 109 | M123: INE442A01024
A124: ASTEC | B124: EQ | C124: 641.15 | D124: 664.8 | E124: 625 | F124: 641.15 | G124: 664 | H124: 641.15 | I124: 28640 | J124: 18194772.2 | K124: 2018-07-03 | L124: 1741 | M124: INE563J01010
A125: ASTERDM | B125: EQ | C125: 168.35 | D125: 169.1 | E125: 163.1 | F125: 168.5 | G125: 167.5 | H125: 167.8 | I125: 24468 | J125: 4079819.1 | K125: 2018-07-03 | L125: 1073 | M125: INE914M01019
A126: ASTRAL | B126: EQ | C126: 985.7 | D126: 994 | E126: 972.05 | F126: 980.7 | G126: 985.85 | H126: 987.8 | I126: 30593 | J126: 30033778.7 | K126: 2018-07-03 | L126: 5046 | M126: INE006I01046
A127: ASTRAMICRO | B127: EQ | C127: 99.05 | D127: 102.5 | E127: 99.05 | F127: 101.9 | G127: 101.7 | H127: 98.55 | I127: 665677 | J127: 67449599.2 | K127: 2018-07-03 | L127: 3216 | M127: INE386C01029
A128: ASTRAZEN | B128: EQ | C128: 1436.3 | D128: 1466.25 | E128: 1426.55 | F128: 1444.35 | G128: 1455.7 | H128: 1429.65 | I128: 42737 | J128: 61768636.2 | K128: 2018-07-03 | L128: 3728 | M128: INE203A01020
A129: ASTRON | B129: EQ | C129: 108.4 | D129: 108.4 | E129: 105.25 | F129: 106.5 | G129: 106.5 | H129: 107.8 | I129: 24723 | J129: 2632664.1 | K129: 2018-07-03 | L129: 536 | M129: INE646X01014
A130: ATFL | B130: EQ | C130: 672.8 | D130: 672.8 | E130: 655 | F130: 659.3 | G130: 655 | H130: 666.65 | I130: 8057 | J130: 5346366.8 | K130: 2018-07-03 | L130: 1391 | M130: INE209A01019
A131: ATLANTA | B131: EQ | C131: 39 | D131: 42.55 | E131: 37.65 | F131: 41.4 | G131: 41.6 | H131: 38.7 | I131: 456554 | J131: 18965839.15 | K131: 2018-07-03 | L131: 2230 | M131: INE285H01022
A132: ATLASCYCLE | B132: BE | C132: 126.45 | D132: 128.85 | E132: 122.05 | F132: 124.9 | G132: 124.85 | H132: 126.95 | I132: 1560 | J132: 194778.6 | K132: 2018-07-03 | L132: 39 | M132: INE446A01025
A133: ATUL | B133: EQ | C133: 2650.05 | D133: 2709.85 | E133: 2640 | F133: 2694.4 | G133: 2703 | H133: 2650.05 | I133: 2004 | J133: 5364049.45 | K133: 2018-07-03 | L133: 472 | M133: INE100A01010
A134: ATULAUTO | B134: EQ | C134: 384.9 | D134: 394 | E134: 383 | F134: 390.9 | G134: 393.95 | H134: 386 | I134: 16146 | J134: 6252208.5 | K134: 2018-07-03 | L134: 688 | M134: INE951D01028
A135: AUBANK | B135: EQ | C135: 664.85 | D135: 679.8 | E135: 658.15 | F135: 670.6 | G135: 669.2 | H135: 664.75 | I135: 91579 | J135: 61528855.1 | K135: 2018-07-03 | L135: 7648 | M135: INE949L01017
A136: AURIONPRO | B136: EQ | C136: 203 | D136: 205 | E136: 195.55 | F136: 200 | G136: 198 | H136: 202.1 | I136: 15599 | J136: 3146192.3 | K136: 2018-07-03 | L136: 756 | M136: INE132H01018
A137: AUROPHARMA | B137: EQ | C137: 604 | D137: 629.75 | E137: 602 | F137: 626.8 | G137: 628.75 | H137: 602.55 | I137: 4526156 | J137: 2806728386 | K137: 2018-07-03 | L137: 71848 | M137: INE406A01037
A138: AUSOMENT | B138: EQ | C138: 66 | D138: 71.1 | E138: 65.15 | F138: 67.75 | G138: 68.45 | H138: 66.55 | I138: 2423 | J138: 164358.35 | K138: 2018-07-03 | L138: 90 | M138: INE218C01016
A139: AUTOAXLES | B139: EQ | C139: 1214.75 | D139: 1214.75 | E139: 1165 | F139: 1176.9 | G139: 1173.05 | H139: 1193.35 | I139: 8656 | J139: 10242433.4 | K139: 2018-07-03 | L139: 1766 | M139: INE449A01011
A140: AUTOIND | B140: EQ | C140: 68.65 | D140: 68.7 | E140: 64 | F140: 64.6 | G140: 64.5 | H140: 66.1 | I140: 5883 | J140: 383716.25 | K140: 2018-07-03 | L140: 260 | M140: INE718H01014
A141: AUTOLITIND | B141: EQ | C141: 58.7 | D141: 58.85 | E141: 56.6 | F141: 57.05 | G141: 57 | H141: 56.85 | I141: 7337 | J141: 421427.3 | K141: 2018-07-03 | L141: 141 | M141: INE448A01013
A142: AVADHSUGAR | B142: EQ | C142: 325.4 | D142: 327.9 | E142: 320.45 | F142: 323.7 | G142: 325 | H142: 327.15 | I142: 6516 | J142: 2109275.3 | K142: 2018-07-03 | L142: 335 | M142: INE349W01017
A143: AVANTIFEED | B143: EQ | C143: 500 | D143: 501.05 | E143: 471 | F143: 483.05 | G143: 481.1 | H143: 509.6 | I143: 1326493 | J143: 642131043.2 | K143: 2018-07-03 | L143: 46982 | M143: INE871C01038
A144: AVTNPL | B144: EQ | C144: 31.85 | D144: 34.05 | E144: 31.15 | F144: 33.7 | G144: 33.55 | H144: 31.95 | I144: 96387 | J144: 3174665.1 | K144: 2018-07-03 | L144: 465 | M144: INE488D01021
A145: AXISBANK | B145: EQ | C145: 512.9 | D145: 519.9 | E145: 509.25 | F145: 511.55 | G145: 512 | H145: 512.25 | I145: 6658467 | J145: 3433544946 | K145: 2018-07-03 | L145: 81007 | M145: INE238A01034
A146: AXISCADES | B146: EQ | C146: 101.3 | D146: 107.3 | E146: 97.95 | F146: 105.5 | G146: 104.9 | H146: 101.15 | I146: 191455 | J146: 20005761.8 | K146: 2018-07-03 | L146: 4566 | M146: INE555B01013
A147: AXISGOLD | B147: EQ | C147: 2705 | D147: 2705 | E147: 2658 | F147: 2680 | G147: 2680 | H147: 2686 | I147: 68 | J147: 181688.35 | K147: 2018-07-03 | L147: 20 | M147: INF846K01347
A148: AYMSYNTEX | B148: EQ | C148: 50.15 | D148: 50.15 | E148: 47.1 | F148: 48.05 | G148: 48.05 | H148: 49.8 | I148: 20930 | J148: 1016684.65 | K148: 2018-07-03 | L148: 233 | M148: INE193B01039
A149: BAFNAPHARM | B149: EQ | C149: 23.05 | D149: 23.5 | E149: 22.1 | F149: 22.15 | G149: 22.45 | H149: 22.45 | I149: 6361 | J149: 141918.7 | K149: 2018-07-03 | L149: 101 | M149: INE878I01014
A150: BAGFILMS | B150: EQ | C150: 4.45 | D150: 4.45 | E150: 4.3 | F150: 4.3 | G150: 4.3 | H150: 4.35 | I150: 65881 | J150: 287677.85 | K150: 2018-07-03 | L150: 86 | M150: INE116D01028
A151: BAJAJ-AUTO | B151: EQ | C151: 2842.95 | D151: 2882 | E151: 2835 | F151: 2862.4 | G151: 2866 | H151: 2835.15 | I151: 510764 | J151: 1463911752 | K151: 2018-07-03 | L151: 29547 | M151: INE917I01010
A152: BAJAJCORP | B152: EQ | C152: 405 | D152: 405 | E152: 397.05 | F152: 401.65 | G152: 401 | H152: 401.25 | I152: 6662 | J152: 2669612.1 | K152: 2018-07-03 | L152: 1043 | M152: INE933K01021
A153: BAJAJELEC | B153: EQ | C153: 524.95 | D153: 532.9 | E153: 520.4 | F153: 525.65 | G153: 524.5 | H153: 523.45 | I153: 418657 | J153: 219857937.2 | K153: 2018-07-03 | L153: 10158 | M153: INE193E01025
A154: BAJAJFINSV | B154: EQ | C154: 5777.8 | D154: 5899 | E154: 5759.8 | F154: 5885.2 | G154: 5897.55 | H154: 5778.3 | I154: 162273 | J154: 949798044.5 | K154: 2018-07-03 | L154: 18450 | M154: INE918I01018
A155: BAJAJHIND | B155: EQ | C155: 6.65 | D155: 6.7 | E155: 6.45 | F155: 6.5 | G155: 6.45 | H155: 6.6 | I155: 1421939 | J155: 9296778.05 | K155: 2018-07-03 | L155: 1426 | M155: INE306A01021
A156: BAJAJHLDNG | B156: EQ | C156: 2899.95 | D156: 2934.05 | E156: 2851 | F156: 2895.9 | G156: 2910.55 | H156: 2884.35 | I156: 16455 | J156: 47337104.85 | K156: 2018-07-03 | L156: 3603 | M156: INE118A01012
A157: BAJFINANCE | B157: EQ | C157: 2305 | D157: 2334 | E157: 2285.75 | F157: 2321.1 | G157: 2326.9 | H157: 2299.55 | I157: 810667 | J157: 1875395909 | K157: 2018-07-03 | L157: 36557 | M157: INE296A01024
A158: BALAJITELE | B158: EQ | C158: 116 | D158: 119.85 | E158: 115.05 | F158: 118.15 | G158: 118 | H158: 116.35 | I158: 31298 | J158: 3666820.9 | K158: 2018-07-03 | L158: 643 | M158: INE794B01026
A159: BALAMINES | B159: EQ | C159: 525.45 | D159: 547 | E159: 511 | F159: 538.85 | G159: 541 | H159: 525.45 | I159: 14222 | J159: 7546656.65 | K159: 2018-07-03 | L159: 983 | M159: INE050E01027
A160: BALKRISHNA | B160: EQ | C160: 69.1 | D160: 70.1 | E160: 68.4 | F160: 69.45 | G160: 69.45 | H160: 69.95 | I160: 1336 | J160: 92580.8 | K160: 2018-07-03 | L160: 46 | M160: INE875R01011
A161: BALKRISIND | B161: EQ | C161: 1066.25 | D161: 1085 | E161: 1056.85 | F161: 1082.55 | G161: 1083 | H161: 1072.5 | I161: 454025 | J161: 486027566.6 | K161: 2018-07-03 | L161: 18532 | M161: INE787D01026
A162: BALLARPUR | B162: EQ | C162: 10.5 | D162: 10.6 | E162: 9.95 | F162: 10.15 | G162: 10.15 | H162: 10.35 | I162: 513387 | J162: 5240307.55 | K162: 2018-07-03 | L162: 1561 | M162: INE294A01037
A163: BALMLAWRIE | B163: EQ | C163: 209.55 | D163: 213 | E163: 208.05 | F163: 211.85 | G163: 212.1 | H163: 209.55 | I163: 18254 | J163: 3859987.85 | K163: 2018-07-03 | L163: 682 | M163: INE164A01016
A164: BALPHARMA | B164: EQ | C164: 76.3 | D164: 79.5 | E164: 76.2 | F164: 77.6 | G164: 77.85 | H164: 76.4 | I164: 14406 | J164: 1117417.3 | K164: 2018-07-03 | L164: 206 | M164: INE083D01012
A165: BALRAMCHIN | B165: EQ | C165: 62.6 | D165: 63.5 | E165: 61.5 | F165: 62.6 | G165: 62.5 | H165: 63.55 | I165: 3208931 | J165: 199702257.3 | K165: 2018-07-03 | L165: 12056 | M165: INE119A01028
A166: BANARBEADS | B166: EQ | C166: 44 | D166: 46.8 | E166: 41.45 | F166: 41.5 | G166: 41.5 | H166: 41.3 | I166: 747 | J166: 31900.15 | K166: 2018-07-03 | L166: 21 | M166: INE655B01011
A167: BANARISUG | B167: EQ | C167: 1486.55 | D167: 1486.55 | E167: 1451.7 | F167: 1475.05 | G167: 1475 | H167: 1450.3 | I167: 113 | J167: 166645.8 | K167: 2018-07-03 | L167: 14 | M167: INE459A01010
A168: BANCOINDIA | B168: EQ | C168: 201.4 | D168: 202.9 | E168: 199 | F168: 201.65 | G168: 200 | H168: 199.8 | I168: 26050 | J168: 5244168.5 | K168: 2018-07-03 | L168: 618 | M168: INE213C01025
A169: BANDHANBNK | B169: EQ | C169: 527 | D169: 567.8 | E169: 525 | F169: 559.25 | G169: 554 | H169: 527.65 | I169: 679896 | J169: 375112761.1 | K169: 2018-07-03 | L169: 14381 | M169: INE545U01014
A170: BANG | B170: EQ | C170: 52.45 | D170: 53.8 | E170: 51.55 | F170: 53.05 | G170: 53.1 | H170: 51.9 | I170: 54424 | J170: 2872347.7 | K170: 2018-07-03 | L170: 356 | M170: INE863I01016
A171: BANKBARODA | B171: EQ | C171: 113.6 | D171: 114.65 | E171: 111.8 | F171: 113 | G171: 113 | H171: 113.65 | I171: 12691360 | J171: 1435109372 | K171: 2018-07-03 | L171: 50341 | M171: INE028A01039
A172: BANKBEES | B172: EQ | C172: 2662.61 | D172: 2673.5 | E172: 2656 | F172: 2662.82 | G172: 2664 | H172: 2662.61 | I172: 4382 | J172: 11672254.73 | K172: 2018-07-03 | L172: 93 | M172: INF732E01078
A173: BANKINDIA | B173: EQ | C173: 87.2 | D173: 88.8 | E173: 86.2 | F173: 86.95 | G173: 86.8 | H173: 87.95 | I173: 4944188 | J173: 431788502.4 | K173: 2018-07-03 | L173: 14915 | M173: INE084A01016
A174: BANSWRAS | B174: EQ | C174: 90.05 | D174: 90.05 | E174: 87 | F174: 87.75 | G174: 88 | H174: 87.1 | I174: 2312 | J174: 201381.3 | K174: 2018-07-03 | L174: 19 | M174: INE629D01012
A175: BARTRONICS | B175: BE | C175: 10.3 | D175: 10.3 | E175: 9.4 | F175: 9.8 | G175: 9.9 | H175: 9.85 | I175: 36891 | J175: 358783.1 | K175: 2018-07-03 | L175: 157 | M175: INE855F01034
A176: BASF | B176: EQ | C176: 1923 | D176: 1923.2 | E176: 1882 | F176: 1892 | G176: 1888.55 | H176: 1907.8 | I176: 2425 | J176: 4611308.85 | K176: 2018-07-03 | L176: 389 | M176: INE373A01013
A177: BASML | B177: EQ | C177: 200.2 | D177: 211.9 | E177: 200.2 | F177: 204.75 | G177: 211.9 | H177: 202.1 | I177: 757 | J177: 155102.8 | K177: 2018-07-03 | L177: 24 | M177: INE186H01014
A178: BATAINDIA | B178: EQ | C178: 836.6 | D178: 853.6 | E178: 831.95 | F178: 835.85 | G178: 837 | H178: 838.05 | I178: 1238170 | J178: 1042659303 | K178: 2018-07-03 | L178: 30680 | M178: INE176A01028
A179: BAYERCROP | B179: EQ | C179: 4554.45 | D179: 4686 | E179: 4482.1 | F179: 4537.4 | G179: 4679.95 | H179: 4552.75 | I179: 4669 | J179: 21168326.8 | K179: 2018-07-03 | L179: 1700 | M179: INE462A01022
A180: BBL | B180: EQ | C180: 1224.95 | D180: 1243.8 | E180: 1185 | F180: 1210.15 | G180: 1207.85 | H180: 1208.6 | I180: 4398 | J180: 5300139.65 | K180: 2018-07-03 | L180: 525 | M180: INE464A01028
A181: BBTC | B181: EQ | C181: 1429 | D181: 1439.95 | E181: 1409.7 | F181: 1425.15 | G181: 1432 | H181: 1421.75 | I181: 72235 | J181: 103100377.7 | K181: 2018-07-03 | L181: 3141 | M181: INE050A01025
A182: BDL | B182: EQ | C182: 370 | D182: 380 | E182: 368.05 | F182: 377.7 | G182: 375.05 | H182: 371.15 | I182: 23467 | J182: 8815081.55 | K182: 2018-07-03 | L182: 1182 | M182: INE171Z01018
A183: BEARDSELL | B183: EQ | C183: 36.5 | D183: 37.95 | E183: 36.2 | F183: 37.55 | G183: 37.95 | H183: 37.7 | I183: 282 | J183: 10513.45 | K183: 2018-07-03 | L183: 30 | M183: INE520H01022
A184: BEDMUTHA | B184: BE | C184: 18.95 | D184: 18.95 | E184: 17.65 | F184: 18 | G184: 18 | H184: 18.15 | I184: 3130 | J184: 56450.45 | K184: 2018-07-03 | L184: 19 | M184: INE844K01012
A185: BEL | B185: EQ | C185: 105 | D185: 107.85 | E185: 104.3 | F185: 107.45 | G185: 107.4 | H185: 105.6 | I185: 6289381 | J185: 666256632.4 | K185: 2018-07-03 | L185: 24760 | M185: INE263A01024
A186: BEML | B186: EQ | C186: 814.55 | D186: 824.5 | E186: 802.35 | F186: 819.15 | G186: 819 | H186: 814.65 | I186: 853969 | J186: 694498133.1 | K186: 2018-07-03 | L186: 20144 | M186: INE258A01016
A187: BEPL | B187: EQ | C187: 139.75 | D187: 141.15 | E187: 136.2 | F187: 140.35 | G187: 140.35 | H187: 139.85 | I187: 249668 | J187: 34742006.45 | K187: 2018-07-03 | L187: 3058 | M187: INE922A01025
A188: BERGEPAINT | B188: EQ | C188: 287 | D188: 289.5 | E188: 282.55 | F188: 286.15 | G188: 285.95 | H188: 285.7 | I188: 590255 | J188: 168993982.7 | K188: 2018-07-03 | L188: 9211 | M188: INE463A01038
A189: BFINVEST | B189: EQ | C189: 222.65 | D189: 233.7 | E189: 220.3 | F189: 225.75 | G189: 228.8 | H189: 223.55 | I189: 102915 | J189: 23348985.3 | K189: 2018-07-03 | L189: 3913 | M189: INE878K01010
A190: BFUTILITIE | B190: EQ | C190: 305.25 | D190: 312.4 | E190: 301.2 | F190: 307.65 | G190: 308 | H190: 305 | I190: 292265 | J190: 89707905.45 | K190: 2018-07-03 | L190: 5594 | M190: INE243D01012
A191: BGLOBAL | B191: BE | C191: 2.75 | D191: 2.95 | E191: 2.75 | F191: 2.95 | G191: 2.95 | H191: 2.85 | I191: 20554 | J191: 59476.7 | K191: 2018-07-03 | L191: 20 | M191: INE224M01013
A192: BGRENERGY | B192: EQ | C192: 92.9 | D192: 94.15 | E192: 91.35 | F192: 91.8 | G192: 91.4 | H192: 92.8 | I192: 84012 | J192: 7752936.35 | K192: 2018-07-03 | L192: 999 | M192: INE661I01014
A193: BHAGERIA | B193: EQ | C193: 288.95 | D193: 304.4 | E193: 283.9 | F193: 295.7 | G193: 296 | H193: 288.95 | I193: 32580 | J193: 9644018.3 | K193: 2018-07-03 | L193: 1024 | M193: INE354C01027
A194: BHAGYANGR | B194: EQ | C194: 36.85 | D194: 42.8 | E194: 35.8 | F194: 39.95 | G194: 40.65 | H194: 36.95 | I194: 205384 | J194: 8045002.3 | K194: 2018-07-03 | L194: 826 | M194: INE458B01036
A195: BHAGYAPROP | B195: BE | C195: 19.85 | D195: 21 | E195: 19.85 | F195: 20.3 | G195: 20.3 | H195: 20 | I195: 12360 | J195: 259470.45 | K195: 2018-07-03 | L195: 31 | M195: INE363W01018
A196: BHANDARI | B196: EQ | C196: 2.3 | D196: 2.4 | E196: 2.25 | F196: 2.35 | G196: 2.35 | H196: 2.4 | I196: 51938 | J196: 121151.6 | K196: 2018-07-03 | L196: 74 | M196: INE474E01029
A197: BHARATFIN | B197: EQ | C197: 1172 | D197: 1182.9 | E197: 1164 | F197: 1180.95 | G197: 1180.3 | H197: 1172.6 | I197: 433231 | J197: 510171050.7 | K197: 2018-07-03 | L197: 22038 | M197: INE180K01011
A198: BHARATFORG | B198: EQ | C198: 610.95 | D198: 624.25 | E198: 608.55 | F198: 620.4 | G198: 619.5 | H198: 611.05 | I198: 680435 | J198: 421402133.1 | K198: 2018-07-03 | L198: 17921 | M198: INE465A01025
A199: BHARATGEAR | B199: EQ | C199: 156.9 | D199: 156.9 | E199: 150.4 | F199: 150.85 | G199: 151.6 | H199: 155.25 | I199: 11644 | J199: 1770144.7 | K199: 2018-07-03 | L199: 487 | M199: INE561C01019
A200: BHARATRAS | B200: EQ | C200: 6280 | D200: 6380 | E200: 6152 | F200: 6196.7 | G200: 6179 | H200: 6247.4 | I200: 600 | J200: 3755866.15 | K200: 2018-07-03 | L200: 269 | M200: INE838B01013
... 1444 more rows

Sheet Sheet1 (hidden)

Sheet Sheet3 (hidden)
